{"text_format":"1","workbook":"xlsx","n_sheets":27,"sheets":["INDUSTRIAS_MET_COMUN_IMP","INDUSTRIAS_MET_COMUN","INDUSTRIAS_MIN_NO_MET_IMP","INDUSTRIAS_MIN_NO_MET","INDUSTRIAS_CUERO_IMP","INDUSTRIAS_CUERO","INDUSTRIAS_TEXTIL_IMP","INDUSTRIAS_TEXTIL","INDUSTRIAS_QUIMICAS_IMP","INDUSTRIAS_QUIMICAS","medidas","INDUSTRIAS_ALIMENTOS_IMP","INDUSTRIAS_ALIMENTOS","INDUSTRIAS_BEBIDAS_IMP","INDUSTRIAS_BEBIDAS","INDUSTRIAS DEL PAPEL_IMP","INDUSTRIAS DEL PAPEL_1","MENU","Hoja5","INDUSTRIAS DE BEBIDAS","INDUSTRIAS_OTRAS_IND","INDUSTRIAS_OTRAS_IND_IMP","OTRAS INDUSTRIAS","Hoja4","Hoja3","Hoja1","data_ciiu"],"not_rendered":{"charts":0,"images":224,"macros":1,"external_links":2,"defined_names":482,"comments":0,"pivot_tables":0},"unopened":[],"bounds":{"document_bytes":16777216,"sheet_cells":100000,"rows_first":2000,"rows_last":500,"rows_between":2000,"halvings":0,"cell_chars":16384,"cell_head_chars":4096},"cells_cut":0,"cells_raw":0,"read":"whole","date_system":"1900"}

{"sheet":"INDUSTRIAS_MET_COMUN_IMP","index":0,"n_rows":42,"n_cols":15,"rows_kept":42,"cut":false,"hidden":false,"merged":[[7,2,7,5],[7,6,7,8],[4,2,4,8],[5,2,5,5],[5,6,5,8],[6,2,6,5],[6,6,6,8],[8,2,8,5],[8,6,8,8],[9,2,9,5],[9,6,9,8],[10,2,13,5],[10,7,10,8],[11,7,11,8],[12,7,12,8],[13,7,13,8],[14,2,14,5],[14,6,14,8],[15,2,15,8],[16,2,17,8],[18,4,18,6],[18,7,18,8],[26,4,26,6],[26,7,26,8],[19,2,28,2],[19,4,19,6],[19,7,19,8],[20,4,20,6],[20,7,20,8],[21,4,21,6],[21,7,21,8],[22,4,22,6],[22,7,22,8],[23,4,23,6],[23,7,23,8],[24,4,24,6],[24,7,24,8],[25,4,25,6],[25,7,25,8],[34,12,34,15],[27,4,27,6],[27,7,27,8],[28,4,28,6],[28,7,28,8],[29,4,29,6],[29,7,29,8],[30,4,30,6],[30,7,30,8],[31,4,31,6],[31,7,31,8],[32,4,32,6],[32,7,32,8],[34,2,36,6],[34,7,36,8],[47,2,47,3],[29,2,32,2],[37,2,39,8],[42,2,42,3],[43,2,43,3],[45,2,45,3]]}
[]
[]
[]
[null,null,"Dirección General de Asuntos Ambientales de Industria",null,null,null,null,"Fecha de Impresión:",{"$f":"TODAY()","v":"2019-08-22"}]
[null,null,"FABRICACIÓN DE  METALES COMUNES; FABRICACIÓN DE PRODUCTOS ELABORADOS DE METAL, EXCEPTO MAQUINARIA  EQUIPO"]
[null,null,"N° DE REGISTRO"]
[null,null,"RAZÓN SOCIAL"]
[null,null,"RUC",null,null,null,77777777777]
[null,null,"ACTIVIDAD INDUSTRIAL MANUFACTURERA DECLARADA POR EL ADMINISTRADO"]
[null,null,"CIIU REV. 4, SECCIÓN C - CLASE N°",null,null,null,{"$f":"IF(INDUSTRIAS_MET_COMUN!I10<>\"\",INDUSTRIAS_MET_COMUN!I10,\"SIN DATOS\")","v":"2431-Fundición de hierro y acero"}]
[null,null,"UBICACIÓN DE LA INSTALACIÓN INDUSTRIAL",null,null,null,"Departamento",{"$f":"INDUSTRIAS_MET_COMUN!H11","v":"AMAZONAS"}]
[null,null,null,null,null,null,"Provincia",{"$f":"INDUSTRIAS_MET_COMUN!H12","v":"CHACHAPOYAS"}]
[null,null,null,null,null,null,"Diistrito",{"$f":"INDUSTRIAS_MET_COMUN!H13","v":"CHACHAPOYAS"}]
[null,null,null,null,null,null,"Dirección"]
[null,null,"RANGO EMPRESARIAL DECLARADO POR EL ADMINISTRADO",null,null,null,{"$f":"IF(INDUSTRIAS_MET_COMUN!I15<>\"\",INDUSTRIAS_MET_COMUN!I15,\"SIN DATOS\")","v":"SIN DATOS"}]
[]
[null,null,"CONDICIONES DE ADECUACIÓN ESTABLECIDAS EN EL DS 006-2019-PRODUCE"]
[]
[null,null,"TIPO","N°","CONDICIONES ",null,null,"CUMPLE"]
[null,null,"Generales",1,"Los efluentes (de procesos industriales) son vertidos a un cuerpo/curso natural de agua.",null,null,{"$f":"INDUSTRIAS_MET_COMUN!I20","v":"NO"},"NO"]
[null,null,null,2,"Generen licor negro como efluente.",null,null,{"$f":"INDUSTRIAS_MET_COMUN!I21","v":"NO"},"NO"]
[null,null,null,3,"La actividad se realiza dentro de un ANP o zona de amortiguamiento.",null,null,{"$f":"INDUSTRIAS_MET_COMUN!I22","v":"NO"},"NO"]
[null,null,null,4,"La actividad se realiza a una distancia menor o igual de 250 m de ecosistemas frágiles.",null,null,{"$f":"INDUSTRIAS_MET_COMUN!I23","v":"NO"},"NO"]
[null,null,null,5,"La activida se realiza dentro de comunidades campesinas, nativas o pueblos indígenas.",null,null,{"$f":"INDUSTRIAS_MET_COMUN!I24","v":"NO"},"NO"]
[null,null,null,6,"Se realizan procesos mecanizados (no manuales) que generan emisiones difusas o fugitivas de material particulado y emisiones gaseosas (no incluye fuentes fijas ni móviles) colindantes con viviendas y no están encapsulados.",null,null,{"$f":"INDUSTRIAS_MET_COMUN!I25","v":"NO"},"NO"]
[null,null,null,7,"El proceso productivo usa agua de una fuente natural y no cuenta con la autorización de la autoridad de recursos hídricos correspondientes.",null,null,{"$f":"INDUSTRIAS_MET_COMUN!I26","v":"NO"},"NO"]
[null,null,null,8,"Genera ruido de los procesos mecanizados sin contar con alguna medida de mitigación (barreras acústicas, encapsulamiento u otros) y colindan con viviendas.",null,null,{"$f":"INDUSTRIAS_MET_COMUN!I27","v":"NO"},"NO"]
[null,null,null,9,"Utilizan combustibles sólidos o líquidos sin contar con sistemas de control de emisiones (filtros manga, lavador Venturi, precipitados electrostático u otros).",null,null,{"$f":"INDUSTRIAS_MET_COMUN!I28","v":"NO"},"NO"]
[null,null,null,10,"Genera emisiones atmosféricas de procesos industriales sin contar con sistemas de tratamiento de partículas y/o gases.",null,null,{"$f":"INDUSTRIAS_MET_COMUN!I29","v":"NO"},"NO",null,1]
[null,null,"Específica",11,"Para su proceso productivo emplea agua de alguna fuente natural subterránea y no cuenta con la autorización de la autoridad de recursos hídricos correspondientes.\n",null,null,{"$f":"INDUSTRIAS_MET_COMUN!I30","v":"SI"},"NO"]
[]
[]
[]
[]
[null,null,"INSTRUMENTO A PRESENTAR:",null,null,null,null,{"$f":"IF(INDUSTRIAS_MET_COMUN!H35<>\"\",INDUSTRIAS_MET_COMUN!H35,\"NO PROCESADO\")","v":"NO PROCESADO"}]
[]
[]
[null,null,"Nota: Esta información es proporcionada por el administrado, con carácter de Declaración Jurada, sujeta a fiscalización; y, en caso la información proporcionada no sea veraz está sujeta al procedimiento y a las sanciones previstas en el Texto Único Ordenado de la Ley N° 27444,  Ley del Procedimiento Administrativo General, aprobado por el Decreto Supremo N° 006-2017-JUS."]
[]
[]
[]
[null,null,null,null,null,null,null,null,null,null,null,null,null,null,"N25=2;N26=2;N27=2;N28=2;N29=2"]

{"sheet":"INDUSTRIAS_MET_COMUN","index":1,"n_rows":46,"n_cols":21,"rows_kept":46,"cut":false,"hidden":false,"merged":[[45,2,45,3],[47,2,47,3],[34,2,36,6],[34,7,36,8],[34,12,34,15],[37,2,39,8],[42,2,42,3],[43,2,43,3],[29,2,32,2],[29,4,29,6],[30,4,30,6],[31,4,31,6],[32,4,32,6],[16,2,17,8],[18,4,18,6],[18,7,18,8],[19,2,28,2],[19,4,19,6],[20,4,20,6],[21,4,21,6],[22,4,22,6],[23,4,23,6],[24,4,24,6],[25,4,25,6],[26,4,26,6],[27,4,27,6],[28,4,28,6],[15,2,15,8],[4,2,4,8],[5,2,5,5],[6,2,6,5],[7,2,7,5],[8,2,8,5],[9,2,9,5],[10,2,13,5],[10,7,10,8],[11,7,11,8],[12,7,12,8],[14,2,14,5]]}
[]
[null,null,null,null,null,null,null,null,null,null,null,null,null,null,null,1,"Seleccione"]
[null,null,null,null,null,null,null,null,null,null,null,null,null,null,null,2,"2410-Industrias básicas de hierro y acero"]
[null,null,null,null,null,null,null,null,null,null,null,null,null,null,null,3,"2420-Fabricación de productos primarios de metales preciosos y otros metales no ferrosos"]
[null,null,"FABRICACIÓN DE  METALES COMUNES; FABRICACIÓN DE PRODUCTOS ELABORADOS DE METAL, EXCEPTO MAQUINARIA  EQUIPO",null,null,null,null,null,null,null,null,null,null,{"$f":"IF(O5=Q2,1,IF(O5=Q3,2,IF(O5=Q4,3,IF(O5=Q5,4,IF(O5=Q6,5,IF(O5=Q7,6,IF(O5=Q8,7,IF(O5=Q9,8,IF(O5=Q10,9,IF(O5=Q11,10,IF(O5=Q12,11,IF(O5=Q13,12,IF(O5=Q14,13,)))))))))))))","v":1},"Seleccione",4,"2431-Fundición de hierro y acero"]
[null,null,"N° DE REGISTRO",null,null,null,null,null,null,null,null,null,null,null,null,5,"2432-Fundición de metales no ferrosos"]
[null,null,"RAZÓN SOCIAL",null,null,null,null,null,null,null,null,null,null,null,null,6,"2511-Fabricación de productos metálicos para uso estructural"]
[null,null,"RUC",null,null,null,null,null,null,null,null,null,null,null,null,7,"2512-Fabricación de tanques, depósitos y recipientes de metal",null,"Clase"]
[null,null,"ACTIVIDAD INDUSTRIAL MANUFACTURERA DECLARADA POR EL ADMINISTRADO",null,null,null,null,null,null,null,null,null,null,null,null,8,"2513-Fabricación de generadores de vapor, excepto calderas de agua caliente para calefacción central",null,null,"Destilación, rectificación y mezcla de bebidas alcohólicas"]
[null,null,"CIIU REV. 4, SECCIÓN C - CLASE N°",null,null,null,null,null,"2431-Fundición de hierro y acero",null,null,null,null,null,null,9,"2520-Fabricación de armas y municiones"]
[null,null,"UBICACIÓN DE LA INSTALACIÓN INDUSTRIAL",null,null,null,"Departamento","AMAZONAS",null,null,null,null,null,null,null,10,"2591-Forja, prensado, estampado y laminado de metales; pulvimetalurgia"]
[null,null,null,null,null,null,"Provincia","CHACHAPOYAS",null,null,null,null,null,null,null,11,"2592-Tratamiento y revestimiento de metales; maquinado"]
[null,null,null,null,null,null,"Diistrito","CHACHAPOYAS",null,null,null,null,null,null,null,12,"2593-Fabricación de artículos de cuchillería, herramientas de mano y artículos de ferretería"]
[null,null,null,null,null,null,"Dirección",null,null,null,null,null,null,null,null,13,"2599-Fabricación de otros productos elaborados de metal n.c.p."]
[null,null,"RANGO EMPRESARIAL DECLARADO POR EL ADMINISTRADO",null,null,null,null,null,null,null,null,null,null,null,null,{"$f":"IF(P16=S16,1,IF(P16=S17,2,IF(P16=S18,3,IF(P16=S19,4,IF(P16=S20,5,)))))","v":1}]
[null,null,null,null,null,null,null,null,null,null,null,null,null,null,null,"Seleccione",null,null,"Seleccione"]
[null,null,"CONDICIONES DE ADECUACIÓN ESTABLECIDAS EN EL DS 006-2019-PRODUCE",null,null,null,null,null,null,null,null,null,null,null,null,null,null,null,"GRAN EMPRESA"]
[null,null,null,null,null,null,null,null,null,null,null,null,null,null,null,null,null,null,"MEDIANA EMPRESA",null,"Condiciones"]
[null,null,"TIPO","N°","CONDICIONES ",null,null,"CUMPLE",null,null,null,null,null,null,null,null,null,null,"PEQUEÑA EMPRESA"]
[null,null,"Generales",1,"Los efluentes (de procesos industriales) son vertidos a un cuerpo/curso natural de agua.",null,null,null,"NO",null,null,null,null,"Seleccione",null,null,null,null,"MICRO EMPRESA"]
[null,null,null,2,"Generen licor negro como efluente.",null,null,null,"NO",null,null,null,null,"Seleccione"]
[null,null,null,3,"La actividad se realiza dentro de un ANP o zona de amortiguamiento.",null,null,null,"NO",null,null,null,null,"Seleccione",null,null,null,null,"Seleccione"]
[null,null,null,4,"La actividad se realiza a una distancia menor o igual de 250 m de ecosistemas frágiles.",null,null,null,"NO",null,null,null,null,"Seleccione",null,null,null,null,"SI"]
[null,null,null,5,"La actividad se realiza dentro de comunidades campesinas, nativas o pueblos indígenas.",null,null,null,"NO",null,null,null,null,"Seleccione",null,null,null,null,"NO"]
[null,null,null,6,"Se realizan procesos mecanizados (no manuales) que generan emisiones difusas o fugitivas de material particulado y emisiones gaseosas (no incluye fuentes fijas ni móviles) colindantes con viviendas y no están encapsulados.",null,null,null,"NO",null,null,null,null,"Seleccione"]
[null,null,null,7,"El proceso productivo usa agua de una fuente natural y no cuenta con la autorización de la autoridad de recursos hídricos correspondientes.",null,null,null,"NO",null,null,null,null,"Seleccione"]
[null,null,null,8,"Genera ruido de los procesos mecanizados sin contar con alguna medida de mitigación (barreras acústicas, encapsulamiento u otros) y colindan con viviendas.",null,null,null,"NO",null,null,null,null,"Seleccione"]
[null,null,null,9,"Utilizan combustibles sólidos o líquidos sin contar con sistemas de control de emisiones (filtros manga, lavador Venturi, precipitados electrostático u otros).",null,null,null,"NO",null,null,null,null,"Seleccione"]
[null,null,null,10,"Genera emisiones atmosféricas de procesos industriales sin contar con sistemas de tratamiento de partículas y/o gases.",null,null,null,"NO",null,null,{"$f":"IF(AND(OR($P$15=2,$P$15=3,$P$15=4),OR($N$25=\"SI\",$N$26=\"SI\",$N$27=\"SI\",$N$28=\"SI\",$N$29=\"SI\"),OR($N$5=2,$N$5=3,$N$5=4,$N$5=5,$N$5=6,$N$5=7,$N$5=8,$N$5=9)),\"DAA\",\"TT\")","v":"TT"},null,"Seleccione"]
[null,null,"Específica",11,"El proceso de cocción, fusión, templado, sinterización, preparación de coque y/o fundición se realiza usando como combustible biomasa, combustible residual u otro de menor calidad y no cuenta con sistema de tratamiento de emisiones (ejemplos: ventiladores, filtros de retención de partículas, lavadores de gases, etc.).",null,null,null,"SI",null,null,{"$f":"IF(AND(OR(N30=\"SI\"),OR($N$5=2,$N$5=3,$N$5=4,$N$5=5,$N$5=10,$N$5=11),OR($P$15=2,$P$15=3,$P$15=4)),\"PAMA*\",\"TT\")","v":"TT"},null,"Seleccione"]
[null,null,null,null,null,null,null,null,null,null,null,{"$f":"IF(AND(OR(N30=\"SI\",N31=\"SI\"),OR($N$5=2,$N$5=3,$N$5=4,$N$5=5,$N$5=6),OR($P$15=5)),\"DAA*\",\"TT\")","v":"TT"},null,"NO"]
[null,null,null,null,null,null,null,null,null,null,null,{"$f":"IF(AND($N$20=\"Seleccione\",$N$21=\"Seleccione\",$N$22=\"Seleccione\",$N$23=\"Seleccione\",$N$24=\"Seleccione\",N25=\"Seleccione\",N26=\"Seleccione\",N27=\"Seleccione\",N28=\"Seleccione\",N29=\"Seleccione\"),\"falta\",IF(AND($N$20=\"NO\",$N$21=\"NO\",$N$22=\"NO\",$N$23=\"NO\",$N$24=\"NO\",N25=\"NO\",N26=\"NO\",N27=\"NO\",N28=\"NO\",N29=\"NO\",N30=\"NO\",N31=\"NO\",N32=\"NO\",N33=\"NO\"),\"NO REQUIERE\",\"OK\"))","v":"falta"},null,"NO"]
[null,null,null,null,null,null,null,null,null,null,null,{"$f":"IF(AND(OR($P$15=2,$P$15=3,$P$15=4),OR($N$20=\"SI\",$N$21=\"SI\",$N$22=\"SI\",$N$23=\"SI\",$N$24=\"SI\"),OR($N$5=2,$N$5=3,$N$5=4,$N$5=5,$N$5=6,$N$5=7,$N$5=8,$N$5=9)),\"PAMA\",\"TT\")","v":"TT"},null,"NO"]
[]
[null,null,"INSTRUMENTO A PRESENTAR:",null,null,null,null,null,null,null,"DAA",{"$f":"IF(AND(OR(N32=\"SI\",N33=\"SI\"),OR($N$5=2,$N$5=3,$N$5=4,$N$5=5,$N$5=6),OR($P$15=2,$P$15=3,$P$15=4)),\"DAA*\",\"ww\")","v":"ww"}]
[null,null,null,null,null,null,null,null,null,null,null,{"$f":"IF(AND(OR(N32=\"SI\"),OR($N$5=2),OR($P$15=5)),\"DAA*\",\"ww\")","v":"ww"}]
[]
[null,null,"Nota: Esta información es proporcionada por el administrado, con carácter de Declaración Jurada, sujeta a fiscalización; y, en caso la información proporcionada no sea veraz está sujeta al procedimiento y a las sanciones previstas en el Texto Único Ordenado de la Ley N° 27444,  Ley del Procedimiento Administrativo General, aprobado por el Decreto Supremo N° 006-2017-JUS."]
[null,null,null,null,null,null,null,null,null,null,null,{"$f":"IF(L32=\"falta\",\"COMPLETE DATOS GENERALES\",IF(L32=\"NO REQUIERE\",\"NO REQUIERE\",IF(AND(OR(L30=\"PAMA*\",L33=\"PAMA\"),OR(L29=\"WW\",L35=\"WW\")),\"PAMA\",IF(AND(L30<>\"PAMA*\",L33=\"TT\",OR(L31=\"DAA*\",L29=\"DAA\",L35=\"DAA*\",L36=\"DAA*\")),\"DAA\",IF(AND(OR(L36=\"DAA*\",L33=\"PAMA\",L30=\"PAMA*\"),L35=\"DAA*\"),\"PAMA\",\"REVISE LOS DATOS INGRESADOS\")))))","v":"COMPLETE DATOS GENERALES"}]
[]
[]
[null,null,null,null,null,null,null,null,null,null,null,null,null,null,"N25=2;N26=2;N27=2;N28=2;N29=2"]
[null,null,"Leyenda"]
[null,null,"Objeto desglozable"]
[]
[null,null,"Registro de información"]

{"sheet":"INDUSTRIAS_MIN_NO_MET_IMP","index":2,"n_rows":42,"n_cols":15,"rows_kept":42,"cut":false,"hidden":false,"merged":[[47,2,47,3],[29,2,32,2],[37,2,39,8],[42,2,42,3],[43,2,43,3],[45,2,45,3],[25,7,25,8],[34,12,34,15],[27,4,27,6],[27,7,27,8],[28,4,28,6],[28,7,28,8],[29,4,29,6],[29,7,29,8],[30,4,30,6],[30,7,30,8],[31,4,31,6],[31,7,31,8],[32,4,32,6],[32,7,32,8],[34,2,36,6],[34,7,36,8],[26,4,26,6],[26,7,26,8],[19,2,28,2],[19,4,19,6],[19,7,19,8],[20,4,20,6],[20,7,20,8],[21,4,21,6],[21,7,21,8],[22,4,22,6],[22,7,22,8],[23,4,23,6],[23,7,23,8],[24,4,24,6],[24,7,24,8],[25,4,25,6],[14,2,14,5],[14,6,14,8],[15,2,15,8],[16,2,17,8],[18,4,18,6],[18,7,18,8],[8,2,8,5],[8,6,8,8],[9,2,9,5],[9,6,9,8],[10,2,13,5],[10,7,10,8],[11,7,11,8],[12,7,12,8],[13,7,13,8],[7,2,7,5],[7,6,7,8],[4,2,4,8],[5,2,5,5],[5,6,5,8],[6,2,6,5],[6,6,6,8]]}
[]
[]
[]
[null,null,"Dirección General de Asuntos Ambientales de Industria",null,null,null,null,"Fecha de Impresión:",{"$f":"TODAY()","v":"2019-08-22"}]
[null,null,"FABRICACIÓN DE OTROS PRODUCTOS MINERALES NO METÁLICOS"]
[null,null,"N° DE REGISTRO",null,null,null,"SDSDDFDDSDS"]
[null,null,"RAZÓN SOCIAL",null,null,null,"DSDSDSSAS"]
[null,null,"RUC",null,null,null,88888888888]
[null,null,"ACTIVIDAD INDUSTRIAL MANUFACTURERA DECLARADA POR EL ADMINISTRADO",null,null,null,"DSDXX"]
[null,null,"CIIU REV. 4, SECCIÓN C - CLASE N°",null,null,null,{"$f":"IF(INDUSTRIAS_MIN_NO_MET!I10<>\"\",INDUSTRIAS_MIN_NO_MET!I10,\"SIN DATOS\")","v":"2310-Fabricación de vidrio y productos de vidrio"}]
[null,null,"UBICACIÓN DE LA INSTALACIÓN INDUSTRIAL",null,null,null,"Departamento",{"$f":"INDUSTRIAS_MIN_NO_MET!H11","v":"AMAZONAS"}]
[null,null,null,null,null,null,"Provincia",{"$f":"INDUSTRIAS_MIN_NO_MET!H12","v":"CHACHAPOYAS"}]
[null,null,null,null,null,null,"Diistrito",{"$f":"INDUSTRIAS_MIN_NO_MET!H13","v":"CHACHAPOYAS"}]
[null,null,null,null,null,null,"Dirección","SDXXXX"]
[null,null,"RANGO EMPRESARIAL DECLARADO POR EL ADMINISTRADO",null,null,null,{"$f":"IF(INDUSTRIAS_MIN_NO_MET!I15<>\"\",INDUSTRIAS_MIN_NO_MET!I15,\"SIN DATOS\")","v":"SIN DATOS"}]
[]
[null,null,"CONDICIONES DE ADECUACIÓN ESTABLECIDAS EN EL DS 006-2019-PRODUCE"]
[]
[null,null,"TIPO","N°","CONDICIONES ",null,null,"CUMPLE"]
[null,null,"Generales",1,"Los efluentes (de procesos industriales) son vertidos a un cuerpo/curso natural de agua.",null,null,{"$f":"INDUSTRIAS_MIN_NO_MET!I20","v":"NO"},"NO"]
[null,null,null,2,"Generen licor negro como efluente.",null,null,{"$f":"INDUSTRIAS_MIN_NO_MET!I21","v":"NO"},"NO"]
[null,null,null,3,"La actividad se realiza dentro de un ANP o zona de amortiguamiento.",null,null,{"$f":"INDUSTRIAS_MIN_NO_MET!I22","v":"NO"},"NO"]
[null,null,null,4,"La actividad se realiza a una distancia menor o igual de 250 m de ecosistemas frágiles.",null,null,{"$f":"INDUSTRIAS_MIN_NO_MET!I23","v":"NO"},"NO"]
[null,null,null,5,"La activida se realiza dentro de comunidades campesinas, nativas o pueblos indígenas.",null,null,{"$f":"INDUSTRIAS_MIN_NO_MET!I24","v":"NO"},"NO"]
[null,null,null,6,"Se realizan procesos mecanizados (no manuales) que generan emisiones difusas o fugitivas de material particulado y emisiones gaseosas (no incluye fuentes fijas ni móviles) colindantes con viviendas y no están encapsulados.",null,null,{"$f":"INDUSTRIAS_MIN_NO_MET!I25","v":"NO"},"NO"]
[null,null,null,7,"El proceso productivo usa agua de una fuente natural y no cuenta con la autorización de la autoridad de recursos hídricos correspondientes.",null,null,{"$f":"INDUSTRIAS_MIN_NO_MET!I26","v":"NO"},"NO"]
[null,null,null,8,"Genera ruido de los procesos mecanizados sin contar con alguna medida de mitigación (barreras acústicas, encapsulamiento u otros) y colindan con viviendas.",null,null,{"$f":"INDUSTRIAS_MIN_NO_MET!I27","v":"NO"},"NO"]
[null,null,null,9,"Utilizan combustibles sólidos o líquidos sin contar con sistemas de control de emisiones (filtros manga, lavador Venturi, precipitados electrostático u otros).",null,null,{"$f":"INDUSTRIAS_MIN_NO_MET!I28","v":"NO"},"NO"]
[null,null,null,10,"Genera emisiones atmosféricas de procesos industriales sin contar con sistemas de tratamiento de partículas y/o gases.",null,null,{"$f":"INDUSTRIAS_MIN_NO_MET!I29","v":"NO"},"NO",null,1]
[null,null,"Específica",11,"Para su proceso productivo emplea agua de alguna fuente natural subterránea y no cuenta con la autorización de la autoridad de recursos hídricos correspondientes.\n",null,null,{"$f":"INDUSTRIAS_MIN_NO_MET!I30","v":"SI"},"NO"]
[null,null,null,12,"Genera efluentes de procesos industriales y los vierte al sistema de alcantarillado sin tratamiento previo.\n",null,null,{"$f":"INDUSTRIAS_MIN_NO_MET!I31","v":"NO"},"NO"]
[null,null,null,13,"Genera efluentes de procesos industriales y los vierte a un cuerpo receptor.\n",null,null,{"$f":"INDUSTRIAS_MIN_NO_MET!I32","v":"NO"},"NO"]
[null,null,null,14,"Procesos de molienda en seco de clinker, caliza, cal, entre otras, destinados para un proceso industrial. ",null,null,{"$f":"INDUSTRIAS_MIN_NO_MET!I33","v":"NO"},"NO"]
[]
[null,null,"INSTRUMENTO A PRESENTAR:",null,null,null,null,{"$f":"IF(INDUSTRIAS_MIN_NO_MET!H35<>\"\",INDUSTRIAS_MIN_NO_MET!H35,\"NO PROCESADO\")","v":"NO PROCESADO"}]
[]
[]
[null,null,"Nota: Esta información es proporcionada por el administrado, con carácter de Declaración Jurada, sujeta a fiscalización; y, en caso la información proporcionada no sea veraz está sujeta al procedimiento y a las sanciones previstas en el Texto Único Ordenado de la Ley N° 27444,  Ley del Procedimiento Administrativo General, aprobado por el Decreto Supremo N° 006-2017-JUS."]
[]
[]
[]
[null,null,null,null,null,null,null,null,null,null,null,null,null,null,"N25=2;N26=2;N27=2;N28=2;N29=2"]

{"sheet":"INDUSTRIAS_MIN_NO_MET","index":3,"n_rows":46,"n_cols":21,"rows_kept":46,"cut":false,"hidden":false,"merged":[[7,2,7,5],[4,2,4,8],[5,2,5,5],[6,2,6,5],[8,2,8,5],[9,2,9,5],[10,2,13,5],[10,7,10,8],[11,7,11,8],[12,7,12,8],[28,4,28,6],[14,2,14,5],[15,2,15,8],[16,2,17,8],[18,4,18,6],[18,7,18,8],[19,2,28,2],[19,4,19,6],[20,4,20,6],[21,4,21,6],[22,4,22,6],[23,4,23,6],[24,4,24,6],[25,4,25,6],[26,4,26,6],[27,4,27,6],[29,2,32,2],[29,4,29,6],[30,4,30,6],[31,4,31,6],[32,4,32,6],[47,2,47,3],[34,7,36,8],[34,12,34,15],[37,2,39,8],[42,2,42,3],[43,2,43,3],[45,2,45,3],[34,2,36,6]]}
[]
[null,null,null,null,null,null,null,null,null,null,null,null,null,null,null,1,"Seleccione"]
[null,null,null,null,null,null,null,null,null,null,null,null,null,null,null,2,"2310-Fabricación de vidrio y productos de vidrio"]
[null,null,null,null,null,null,null,null,null,null,null,null,null,null,null,3,"2391-Fabricación de productos refractarios"]
[null,null,"FABRICACIÓN DE OTROS PRODUCTOS MINERALES NO METÁLICOS",null,null,null,null,null,null,null,null,null,null,{"$f":"IF(O5=Q2,1,IF(O5=Q3,2,IF(O5=Q4,3,IF(O5=Q5,4,IF(O5=Q6,5,IF(O5=Q7,6,IF(O5=Q8,7,IF(O5=Q9,8,IF(O5=Q10,9,IF(O5=Q11,10))))))))))","v":1},"Seleccione",4,"2392-Fabricación de materiales de construcción de arcilla"]
[null,null,"N° DE REGISTRO",null,null,null,null,null,null,null,null,null,null,null,null,5,"2393-Fabricación de otros productos de porcelana y de cerámica"]
[null,null,"RAZÓN SOCIAL",null,null,null,null,null,null,null,null,null,null,null,null,6,"2394-Fabricación de cemento, cal y yeso"]
[null,null,"RUC",null,null,null,null,null,null,null,null,null,null,null,null,7,"2395-Fabricación de artículos de hormigón, cemento y yeso",null,"Clase"]
[null,null,"ACTIVIDAD INDUSTRIAL MANUFACTURERA DECLARADA POR EL ADMINISTRADO",null,null,null,null,null,null,null,null,null,null,null,null,8,"2396-Corte, talla y acabado de la piedra",null,null,"Destilación, rectificación y mezcla de bebidas alcohólicas"]
[null,null,"CIIU REV. 4, SECCIÓN C - CLASE N°",null,null,null,null,null,"2310-Fabricación de vidrio y productos de vidrio",null,null,null,null,null,null,9,"2399-Fabricación de otros productos minerales no metálicos n.c.p."]
[null,null,"UBICACIÓN DE LA INSTALACIÓN INDUSTRIAL",null,null,null,"Departamento","AMAZONAS"]
[null,null,null,null,null,null,"Provincia","CHACHAPOYAS",null,null,null,null,null,null,null,null,null,null,"Seleccione"]
[null,null,null,null,null,null,"Diistrito","CHACHAPOYAS",null,null,null,null,null,null,null,null,null,null,"GRAN EMPRESA"]
[null,null,null,null,null,null,"Dirección",null,null,null,null,null,null,null,null,null,null,null,"MEDIANA EMPRESA"]
[null,null,"RANGO EMPRESARIAL DECLARADO POR EL ADMINISTRADO",null,null,null,null,null,null,null,null,null,null,null,null,{"$f":"IF(P16=S12,1,IF(P16=S13,2,IF(P16=S14,3,IF(P16=S15,4,IF(P16=S16,5,)))))","v":1},null,null,"PEQUEÑA EMPRESA"]
[null,null,null,null,null,null,null,null,null,null,null,null,null,null,null,"Seleccione",null,null,"MICRO EMPRESA"]
[null,null,"CONDICIONES DE ADECUACIÓN ESTABLECIDAS EN EL DS 006-2019-PRODUCE"]
[null,null,null,null,null,null,null,null,null,null,null,null,null,null,null,null,null,null,"Seleccione",null,"Condiciones"]
[null,null,"TIPO","N°","CONDICIONES ",null,null,"CUMPLE",null,null,null,null,null,null,null,null,null,null,"SI"]
[null,null,"Generales",1,"Los efluentes (de procesos industriales) son vertidos a un cuerpo/curso natural de agua.",null,null,null,"NO",null,null,null,null,"Seleccione",null,null,null,null,"NO"]
[null,null,null,2,"Generen licor negro como efluente.",null,null,null,"NO",null,null,null,null,"Seleccione"]
[null,null,null,3,"La actividad se realiza dentro de un ANP o zona de amortiguamiento.",null,null,null,"NO",null,null,null,null,"Seleccione"]
[null,null,null,4,"La actividad se realiza a una distancia menor o igual de 250 m de ecosistemas frágiles.",null,null,null,"NO",null,null,null,null,"Seleccione"]
[null,null,null,5,"La actividad se realiza dentro de comunidades campesinas, nativas o pueblos indígenas.",null,null,null,"NO",null,null,null,null,"Seleccione"]
[null,null,null,6,"Se realizan procesos mecanizados (no manuales) que generan emisiones difusas o fugitivas de material particulado y emisiones gaseosas (no incluye fuentes fijas ni móviles) colindantes con viviendas y no están encapsulados.",null,null,null,"NO",null,null,null,null,"Seleccione"]
[null,null,null,7,"El proceso productivo usa agua de una fuente natural y no cuenta con la autorización de la autoridad de recursos hídricos correspondientes.",null,null,null,"NO",null,null,null,null,"Seleccione"]
[null,null,null,8,"Genera ruido de los procesos mecanizados sin contar con alguna medida de mitigación (barreras acústicas, encapsulamiento u otros) y colindan con viviendas.",null,null,null,"NO",null,null,null,null,"Seleccione"]
[null,null,null,9,"Utilizan combustibles sólidos o líquidos sin contar con sistemas de control de emisiones (filtros manga, lavador Venturi, precipitados electrostático u otros).",null,null,null,"NO",null,null,null,null,"Seleccione"]
[null,null,null,10,"Genera emisiones atmosféricas de procesos industriales sin contar con sistemas de tratamiento de partículas y/o gases.",null,null,null,"NO",null,null,{"$f":"IF(AND(OR($P$15=2,$P$15=3,$P$15=4),OR($N$25=\"SI\",$N$26=\"SI\",$N$27=\"SI\",$N$28=\"SI\",$N$29=\"SI\"),OR($N$5=2,$N$5=3,$N$5=4,$N$5=5,$N$5=6,$N$5=7,$N$5=8,$N$5=9)),\"DAA\",\"TT\")","v":"TT"},null,"Seleccione"]
[null,null,"Específica",11,"El proceso de cocción, fusión, templado, sinterización, preparación de coque y/o fundición se realiza usando como combustible biomasa, combustible residual u otro de menor calidad y no cuenta con sistema de tratamiento de emisiones (ejemplos: ventiladores, filtros de retención de partículas, lavadores de gases, etc.).",null,null,null,"SI",null,null,{"$f":"IF(AND(OR(N30=\"SI\",N31=\"SI\"),OR($N$5=2,$N$5=3,$N$5=4,$N$5=5,$N$5=6),OR($P$15=2,$P$15=3,$P$15=4)),\"PAMA*\",\"TT\")","v":"TT"},null,"Seleccione"]
[null,null,null,12,"Realiza procesos de fundición orefinación de metales ferrosos y no ferrosos",null,null,null,"NO",null,null,{"$f":"IF(AND(OR(N30=\"SI\",N31=\"SI\"),OR($N$5=2,$N$5=3,$N$5=4,$N$5=5,$N$5=6),OR($P$15=5)),\"DAA*\",\"TT\")","v":"TT"},null,"Seleccione"]
[null,null,null,13,"Fabricación de concreto (concretera) y afines.",null,null,null,"NO",null,null,{"$f":"IF(AND($N$20=\"Seleccione\",$N$21=\"Seleccione\",$N$22=\"Seleccione\",$N$23=\"Seleccione\",$N$24=\"Seleccione\",N25=\"Seleccione\",N26=\"Seleccione\",N27=\"Seleccione\",N28=\"Seleccione\",N29=\"Seleccione\"),\"falta\",IF(AND($N$20=\"NO\",$N$21=\"NO\",$N$22=\"NO\",$N$23=\"NO\",$N$24=\"NO\",N25=\"NO\",N26=\"NO\",N27=\"NO\",N28=\"NO\",N29=\"NO\",N30=\"NO\",N31=\"NO\",N32=\"NO\",N33=\"NO\"),\"NO REQUIERE\",\"OK\"))","v":"falta"},null,"Seleccione"]
[null,null,null,14,"Procesos de molienda en seco de clinker, caliza, cal, entre otras, destinados para un proceso industrial. ",null,null,null,"NO",null,null,{"$f":"IF(AND(OR($P$15=2,$P$15=3,$P$15=4),OR($N$20=\"SI\",$N$21=\"SI\",$N$22=\"SI\",$N$23=\"SI\",$N$24=\"SI\"),OR($N$5=2,$N$5=3,$N$5=4,$N$5=5,$N$5=6,$N$5=7,$N$5=8,$N$5=9)),\"PAMA\",\"TT\")","v":"TT"},null,"Seleccione"]
[]
[null,null,"INSTRUMENTO A PRESENTAR:",null,null,null,null,null,null,null,"DAA",{"$f":"IF(AND(OR(N32=\"SI\",N33=\"SI\"),OR($N$5=2,$N$5=3,$N$5=4,$N$5=5,$N$5=6),OR($P$15=2,$P$15=3,$P$15=4)),\"DAA*\",\"ww\")","v":"ww"}]
[null,null,null,null,null,null,null,null,null,null,null,{"$f":"IF(AND(OR(N32=\"SI\"),OR($N$5=2),OR($P$15=5)),\"DAA*\",\"ww\")","v":"ww"}]
[]
[null,null,"Nota: Esta información es proporcionada por el administrado, con carácter de Declaración Jurada, sujeta a fiscalización; y, en caso la información proporcionada no sea veraz está sujeta al procedimiento y a las sanciones previstas en el Texto Único Ordenado de la Ley N° 27444,  Ley del Procedimiento Administrativo General, aprobado por el Decreto Supremo N° 006-2017-JUS."]
[null,null,null,null,null,null,null,null,null,null,null,{"$f":"IF(L32=\"falta\",\"COMPLETE DATOS GENERALES\",IF(L32=\"NO REQUIERE\",\"NO REQUIERE\",IF(AND(OR(L30=\"PAMA*\",L33=\"PAMA\"),OR(L29=\"WW\",L35=\"WW\")),\"PAMA\",IF(AND(L30<>\"PAMA*\",L33=\"TT\",OR(L31=\"DAA*\",L29=\"DAA\",L35=\"DAA*\",L36=\"DAA*\")),\"DAA\",IF(AND(OR(L36=\"DAA*\",L33=\"PAMA\",L30=\"PAMA*\"),L35=\"DAA*\"),\"PAMA\",\"REVISE LOS DATOS INGRESADOS\")))))","v":"COMPLETE DATOS GENERALES"}]
[]
[]
[null,null,null,null,null,null,null,null,null,null,null,null,null,null,"N25=2;N26=2;N27=2;N28=2;N29=2"]
[null,null,"Leyenda"]
[null,null,"Objeto desglozable"]
[]
[null,null,"Registro de información"]

{"sheet":"INDUSTRIAS_CUERO_IMP","index":4,"n_rows":42,"n_cols":15,"rows_kept":42,"cut":false,"hidden":false,"merged":[[47,2,47,3],[29,2,32,2],[37,2,39,8],[42,2,42,3],[43,2,43,3],[45,2,45,3],[25,7,25,8],[34,12,34,15],[27,4,27,6],[27,7,27,8],[28,4,28,6],[28,7,28,8],[29,4,29,6],[29,7,29,8],[30,4,30,6],[30,7,30,8],[31,4,31,6],[31,7,31,8],[32,4,32,6],[32,7,32,8],[34,2,36,6],[34,7,36,8],[26,4,26,6],[26,7,26,8],[19,2,28,2],[19,4,19,6],[19,7,19,8],[20,4,20,6],[20,7,20,8],[21,4,21,6],[21,7,21,8],[22,4,22,6],[22,7,22,8],[23,4,23,6],[23,7,23,8],[24,4,24,6],[24,7,24,8],[25,4,25,6],[14,2,14,5],[14,6,14,8],[15,2,15,8],[16,2,17,8],[18,4,18,6],[18,7,18,8],[8,2,8,5],[8,6,8,8],[9,2,9,5],[9,6,9,8],[10,2,13,5],[10,7,10,8],[11,7,11,8],[12,7,12,8],[13,7,13,8],[7,2,7,5],[7,6,7,8],[4,2,4,8],[5,2,5,5],[5,6,5,8],[6,2,6,5],[6,6,6,8]]}
[]
[]
[]
[null,null,"Dirección General de Asuntos Ambientales de Industria",null,null,null,null,"Fecha de Impresión:",{"$f":"TODAY()","v":"2019-08-22"}]
[null,null,"INDUSTRIA DEL CUERO Y SUS PRODUCTOS"]
[null,null,"N° DE REGISTRO",null,null,null,"c"]
[null,null,"RAZÓN SOCIAL",null,null,null,"c"]
[null,null,"RUC",null,null,null,66666666666]
[null,null,"ACTIVIDAD INDUSTRIAL MANUFACTURERA DECLARADA POR EL ADMINISTRADO",null,null,null,"xc"]
[null,null,"CIIU REV. 4, SECCIÓN C - CLASE N°",null,null,null,{"$f":"IF(INDUSTRIAS_CUERO!I10<>\"\",INDUSTRIAS_CUERO!I10,\"SIN DATOS\")","v":"1511 - Curtido y adobo de cueros; adobo y teñido de pieles"}]
[null,null,"UBICACIÓN DE LA INSTALACIÓN INDUSTRIAL",null,null,null,"Departamento",{"$f":"INDUSTRIAS_CUERO!H11","v":"AMAZONAS"}]
[null,null,null,null,null,null,"Provincia",{"$f":"INDUSTRIAS_CUERO!H12","v":"CHACHAPOYAS"}]
[null,null,null,null,null,null,"Diistrito",{"$f":"INDUSTRIAS_CUERO!H13","v":"CHACHAPOYAS"}]
[null,null,null,null,null,null,"Dirección","xcx"]
[null,null,"RANGO EMPRESARIAL DECLARADO POR EL ADMINISTRADO",null,null,null,{"$f":"IF(INDUSTRIAS_CUERO!I15<>\"\",INDUSTRIAS_CUERO!I15,\"SIN DATOS\")","v":"SIN DATOS"}]
[]
[null,null,"CONDICIONES DE ADECUACIÓN ESTABLECIDAS EN EL DS 006-2019-PRODUCE"]
[]
[null,null,"TIPO","N°","CONDICIONES ",null,null,"CUMPLE"]
[null,null,"Generales",1,"Los efluentes (de procesos industriales) son vertidos a un cuerpo/curso natural de agua.",null,null,{"$f":"INDUSTRIAS_CUERO!I20","v":"NO"},"NO"]
[null,null,null,2,"Generen licor negro como efluente.",null,null,{"$f":"INDUSTRIAS_CUERO!I21","v":"NO"},"NO"]
[null,null,null,3,"La actividad se realiza dentro de un ANP o zona de amortiguamiento.",null,null,{"$f":"INDUSTRIAS_CUERO!I22","v":"NO"},"NO"]
[null,null,null,4,"La actividad se realiza a una distancia menor o igual de 250 m de ecosistemas frágiles.",null,null,{"$f":"INDUSTRIAS_CUERO!I23","v":"NO"},"NO"]
[null,null,null,5,"La actividad se realiza dentro de comunidades campesinas, nativas o pueblos indígenas.",null,null,{"$f":"INDUSTRIAS_CUERO!I24","v":"NO"},"NO"]
[null,null,null,6,"Se realizan procesos mecanizados (no manuales) que generan emisiones difusas o fugitivas de material particulado y emisiones gaseosas (no incluye fuentes fijas ni móviles) colindantes con viviendas y no están encapsulados.",null,null,{"$f":"INDUSTRIAS_CUERO!I25","v":"NO"},"NO"]
[null,null,null,7,"El proceso productivo usa agua de una fuente natural y no cuenta con la autorización de la autoridad de recursos hídricos correspondientes.",null,null,{"$f":"INDUSTRIAS_CUERO!I26","v":"NO"},"NO"]
[null,null,null,8,"Genera ruido de los procesos mecanizados sin contar con alguna medida de mitigación (barreras acústicas, encapsulamiento u otros) y colindan con viviendas.",null,null,{"$f":"INDUSTRIAS_CUERO!I27","v":"NO"},"NO"]
[null,null,null,9,"Utilizan combustibles sólidos o líquidos sin contar con sistemas de control de emisiones (filtros manga, lavador Venturi, precipitados electrostático u otros).",null,null,{"$f":"INDUSTRIAS_CUERO!I28","v":"NO"},"NO"]
[null,null,null,10,"Genera emisiones atmosféricas de procesos industriales sin contar con sistemas de tratamiento de partículas y/o gases.",null,null,{"$f":"INDUSTRIAS_CUERO!I29","v":"NO"},"NO",null,1]
[null,null,"Específica",11,"Para su proceso productivo emplea agua de alguna fuente natural subterránea y no cuenta con la autorización de la autoridad de recursos hídricos correspondientes.\n(Aplica sólo para la CLASE: 1511)",null,null,{"$f":"INDUSTRIAS_CUERO!I30","v":"SI"},"NO"]
[null,null,null,12,"Genera efluentes de procesos industriales y los vierte al sistema de alcantarillado sin tratamiento previo.\n(Aplica sólo para CLASES: 1511)",null,null,{"$f":"INDUSTRIAS_CUERO!I31","v":"NO"},"NO"]
[null,null,null,13,"Genera efluentes de procesos industriales y los vierte a un cuerpo receptor.\n(Aplica sólo para MICRO EMPRESAS de la CLASE: 1511)",null,null,{"$f":"INDUSTRIAS_CUERO!I32","v":"SI"},"NO"]
[null,null,null,"-","-"]
[]
[null,null,"INSTRUMENTO A PRESENTAR:",null,null,null,null,{"$f":"IF(INDUSTRIAS_CUERO!H35<>\"\",INDUSTRIAS_CUERO!H35,\"NO PROCESADO\")","v":"NO PROCESADO"}]
[]
[]
[null,null,"Nota: Esta información es proporcionada por el administrado, con carácter de Declaración Jurada, sujeta a fiscalización; y, en caso la información proporcionada no sea veraz está sujeta al procedimiento y a las sanciones previstas en el Texto Único Ordenado de la Ley N° 27444,  Ley del Procedimiento Administrativo General, aprobado por el Decreto Supremo N° 006-2017-JUS."]
[]
[]
[]
[null,null,null,null,null,null,null,null,null,null,null,null,null,null,"N25=2;N26=2;N27=2;N28=2;N29=2"]

{"sheet":"INDUSTRIAS_CUERO","index":5,"n_rows":46,"n_cols":21,"rows_kept":46,"cut":false,"hidden":false,"merged":[[7,2,7,5],[4,2,4,8],[5,2,5,5],[6,2,6,5],[8,2,8,5],[9,2,9,5],[10,2,13,5],[10,7,10,8],[11,7,11,8],[12,7,12,8],[28,4,28,6],[14,2,14,5],[15,2,15,8],[16,2,17,8],[18,4,18,6],[18,7,18,8],[19,2,28,2],[19,4,19,6],[20,4,20,6],[21,4,21,6],[22,4,22,6],[23,4,23,6],[24,4,24,6],[25,4,25,6],[26,4,26,6],[27,4,27,6],[29,2,32,2],[29,4,29,6],[30,4,30,6],[31,4,31,6],[32,4,32,6],[47,2,47,3],[34,7,36,8],[34,12,34,15],[37,2,39,8],[42,2,42,3],[43,2,43,3],[45,2,45,3],[34,2,36,6]]}
[]
[null,null,null,null,null,null,null,null,null,null,null,null,null,null,null,1,"Seleccione"]
[null,null,null,null,null,null,null,null,null,null,null,null,null,null,null,2,"1511 - Curtido y adobo de cueros; adobo y teñido de pieles"]
[null,null,null,null,null,null,null,null,null,null,null,null,null,null,null,3,"1512 - Fabricación de maletas, bolsos de mano y artículos similares, y artículos de talabartería y guarnicionería"]
[null,null,"INDUSTRIA DEL CUERO Y SUS PRODUCTOS",null,null,null,null,null,null,null,null,null,null,{"$f":"IF(O5=Q2,1,IF(O5=Q3,2,IF(O5=Q4,3,IF(O5=Q5,4,IF(O5=Q6,5,IF(O5=Q7,6,IF(O5=Q8,7,IF(O5=Q9,8,IF(O5=Q10,9,IF(O5=Q11,10))))))))))","v":1},"Seleccione",4,"1520 - Fabricación de calzado"]
[null,null,"N° DE REGISTRO"]
[null,null,"RAZÓN SOCIAL"]
[null,null,"RUC",null,null,null,null,null,null,null,null,null,null,null,null,null,null,null,"Clase"]
[null,null,"ACTIVIDAD INDUSTRIAL MANUFACTURERA DECLARADA POR EL ADMINISTRADO",null,null,null,null,null,null,null,null,null,null,null,null,null,null,null,1101,"Destilación, rectificación y mezcla de bebidas alcohólicas"]
[null,null,"CIIU REV. 4, SECCIÓN C - CLASE N°",null,null,null,null,null,"1511 - Curtido y adobo de cueros; adobo y teñido de pieles"]
[null,null,"UBICACIÓN DE LA INSTALACIÓN INDUSTRIAL",null,null,null,"Departamento","AMAZONAS"]
[null,null,null,null,null,null,"Provincia","CHACHAPOYAS",null,null,null,null,null,null,null,null,null,null,"Seleccione"]
[null,null,null,null,null,null,"Diistrito","CHACHAPOYAS",null,null,null,null,null,null,null,null,null,null,"GRAN EMPRESA"]
[null,null,null,null,null,null,"Dirección",null,null,null,null,null,null,null,null,null,null,null,"MEDIANA EMPRESA"]
[null,null,"RANGO EMPRESARIAL DECLARADO POR EL ADMINISTRADO",null,null,null,null,null,null,null,null,null,null,null,null,{"$f":"IF(P16=S12,1,IF(P16=S13,2,IF(P16=S14,3,IF(P16=S15,4,IF(P16=S16,5,)))))","v":1},null,null,"PEQUEÑA EMPRESA"]
[null,null,null,null,null,null,null,null,null,null,null,null,null,null,null,"Seleccione",null,null,"MICRO EMPRESA"]
[null,null,"CONDICIONES DE ADECUACIÓN ESTABLECIDAS EN EL DS 006-2019-PRODUCE"]
[null,null,null,null,null,null,null,null,null,null,null,null,null,null,null,null,null,null,"Seleccione",null,"Condiciones"]
[null,null,"TIPO","N°","CONDICIONES ",null,null,"CUMPLE",null,null,null,null,null,null,null,null,null,null,"SI"]
[null,null,"Generales",1,"Los efluentes (de procesos industriales) son vertidos a un cuerpo/curso natural de agua.",null,null,null,"NO",null,null,null,null,"Seleccione",null,null,null,null,"NO"]
[null,null,null,2,"Generen licor negro como efluente.",null,null,null,"NO",null,null,null,null,"Seleccione"]
[null,null,null,3,"La actividad se realiza dentro de un ANP o zona de amortiguamiento.",null,null,null,"NO",null,null,null,null,"Seleccione"]
[null,null,null,4,"La actividad se realiza a una distancia menor o igual de 250 m de ecosistemas frágiles.",null,null,null,"NO",null,null,null,null,"Seleccione"]
[null,null,null,5,"La actividad se realiza dentro de comunidades campesinas, nativas o pueblos indígenas.",null,null,null,"NO",null,null,null,null,"Seleccione"]
[null,null,null,6,"Se realizan procesos mecanizados (no manuales) que generan emisiones difusas o fugitivas de material particulado y emisiones gaseosas (no incluye fuentes fijas ni móviles) colindantes con viviendas y no están encapsulados.",null,null,null,"NO",null,null,null,null,"Seleccione"]
[null,null,null,7,"El proceso productivo usa agua de una fuente natural y no cuenta con la autorización de la autoridad de recursos hídricos correspondientes.",null,null,null,"NO",null,null,null,null,"Seleccione"]
[null,null,null,8,"Genera ruido de los procesos mecanizados sin contar con alguna medida de mitigación (barreras acústicas, encapsulamiento u otros) y colindan con viviendas.",null,null,null,"NO",null,null,null,null,"Seleccione"]
[null,null,null,9,"Utilizan combustibles sólidos o líquidos sin contar con sistemas de control de emisiones (filtros manga, lavador Venturi, precipitados electrostático u otros).",null,null,null,"NO",null,null,null,null,"Seleccione"]
[null,null,null,10,"Genera emisiones atmosféricas de procesos industriales sin contar con sistemas de tratamiento de partículas y/o gases.",null,null,null,"NO",null,null,{"$f":"IF(AND(OR($P$15=2,$P$15=3,$P$15=4),OR($N$25=\"SI\",$N$26=\"SI\",$N$27=\"SI\",$N$28=\"SI\",$N$29=\"SI\"),OR($N$5=2,$N$5=3,$N$5=4,)),\"DAA\",\"TT\")","v":"TT"},null,"Seleccione"]
[null,null,"Específica",11,"Para su proceso productivo emplea agua de alguna fuente natural subterránea y no cuenta con la autorización de la autoridad de recursos hídricos correspondientes.\n",null,null,null,"SI",null,null,{"$f":"IF(AND(N30=\"SI\",OR($N$5=2),OR($P$15=2,$P$15=3,$P$15=4)),\"PAMA*\",\"TT\")","v":"TT"},null,"Seleccione"]
[null,null,null,12,"Genera efluentes de procesos industriales y los vierte al sistema de alcantarillado sin tratamiento previo.\n",null,null,null,"NO",null,null,{"$f":"IF(AND(N30=\"SI\",OR($N$5=2),OR($P$15=5)),\"DAA*\",\"TT\")","v":"TT"},null,"Seleccione"]
[null,null,null,13,"Genera efluentes de procesos industriales y los vierte a un cuerpo receptor.\n",null,null,null,"SI",null,null,{"$f":"IF(AND($N$20=\"Seleccione\",$N$21=\"Seleccione\",$N$22=\"Seleccione\",$N$23=\"Seleccione\",$N$24=\"Seleccione\",N25=\"Seleccione\",N26=\"Seleccione\",N27=\"Seleccione\",N28=\"Seleccione\",N29=\"Seleccione\"),\"falta\",IF(AND($N$20=\"NO\",$N$21=\"NO\",$N$22=\"NO\",$N$23=\"NO\",$N$24=\"NO\",N25=\"NO\",N26=\"NO\",N27=\"NO\",N28=\"NO\",N29=\"NO\",N30=\"NO\",N31=\"NO\",N32=\"NO\",N33=\"NO\"),\"NO REQUIERE\",\"OK\"))","v":"falta"},null,"Seleccione"]
[null,null,null,null,"-",null,null,null,"NO",null,null,{"$f":"IF(AND(OR($P$15=2,$P$15=3,$P$15=4),OR($N$20=\"SI\",$N$21=\"SI\",$N$22=\"SI\",$N$23=\"SI\",$N$24=\"SI\"),OR($N$5=2,$N$5=3,$N$5=4)),\"PAMA\",\"TT\")","v":"TT"},null,"NO"]
[]
[null,null,"INSTRUMENTO A PRESENTAR:",null,null,null,null,null,null,null,"DAA",{"$f":"IF(AND(OR(N31=\"SI\"),OR($N$5=2),OR($P$15=2,$P$15=3,$P$15=4,$P$15=5)),\"DAA*\",\"ww\")","v":"ww"}]
[null,null,null,null,null,null,null,null,null,null,null,{"$f":"IF(AND(OR(N32=\"SI\"),OR($N$5=2),OR($P$15=5)),\"DAA*\",\"ww\")","v":"ww"}]
[]
[null,null,"Nota: Esta información es proporcionada por el administrado, con carácter de Declaración Jurada, sujeta a fiscalización; y, en caso la información proporcionada no sea veraz está sujeta al procedimiento y a las sanciones previstas en el Texto Único Ordenado de la Ley N° 27444,  Ley del Procedimiento Administrativo General, aprobado por el Decreto Supremo N° 006-2017-JUS."]
[null,null,null,null,null,null,null,null,null,null,null,{"$f":"IF(L32=\"falta\",\"COMPLETE DATOS GENERALES\",IF(L32=\"NO REQUIERE\",\"NO REQUIERE\",IF(AND(OR(L30=\"PAMA*\",L33=\"PAMA\"),OR(L29=\"WW\",L35=\"WW\")),\"PAMA\",IF(AND(L30<>\"PAMA*\",L33=\"TT\",OR(L31=\"DAA*\",L29=\"DAA\",L35=\"DAA*\",L36=\"DAA*\")),\"DAA\",IF(AND(OR(L36=\"DAA*\",L33=\"PAMA\",L30=\"PAMA*\"),L35=\"DAA*\"),\"PAMA\",\"REVISE LOS DATOS INGRESADOS\")))))","v":"COMPLETE DATOS GENERALES"}]
[]
[]
[null,null,null,null,null,null,null,null,null,null,null,null,null,null,"N25=2;N26=2;N27=2;N28=2;N29=2"]
[null,null,"Leyenda"]
[null,null,"Objeto desglozable"]
[]
[null,null,"Registro de información"]

{"sheet":"INDUSTRIAS_TEXTIL_IMP","index":6,"n_rows":42,"n_cols":15,"rows_kept":42,"cut":false,"hidden":false,"merged":[[7,2,7,5],[7,6,7,8],[4,2,4,8],[5,2,5,5],[5,6,5,8],[6,2,6,5],[6,6,6,8],[8,2,8,5],[8,6,8,8],[9,2,9,5],[10,2,13,5],[10,7,10,8],[11,7,11,8],[12,7,12,8],[13,7,13,8],[28,4,28,6],[14,2,14,5],[15,2,15,8],[16,2,17,8],[18,4,18,6],[18,7,18,8],[19,2,28,2],[19,4,19,6],[20,4,20,6],[21,4,21,6],[22,4,22,6],[23,4,23,6],[24,4,24,6],[25,4,25,6],[26,4,26,6],[27,4,27,6],[34,12,34,15],[37,2,39,8],[42,2,42,3],[43,2,43,3],[45,2,45,3],[34,2,36,6],[47,2,47,3],[9,6,9,8],[14,6,14,8],[19,7,19,8],[20,7,20,8],[21,7,21,8],[22,7,22,8],[23,7,23,8],[24,7,24,8],[25,7,25,8],[34,7,36,8],[29,2,32,2],[29,4,29,6],[30,4,30,6],[31,4,31,6],[32,4,32,6],[32,7,32,8],[26,7,26,8],[27,7,27,8],[28,7,28,8],[29,7,29,8],[30,7,30,8],[31,7,31,8]]}
[]
[]
[]
[null,null,"Dirección General de Asuntos Ambientales de Industria",null,null,null,null,"Fecha de Impresión:",{"$f":"TODAY()","v":"2019-08-22"}]
[null,null,"INDUSTRIA TEXTIL"]
[null,null,"N° DE REGISTRO",null,null,null,"df"]
[null,null,"RAZÓN SOCIAL",null,null,null,"dfd"]
[null,null,"RUC",null,null,null,33333333333]
[null,null,"ACTIVIDAD INDUSTRIAL MANUFACTURERA DECLARADA POR EL ADMINISTRADO",null,null,null,"dfdfd"]
[null,null,"CIIU REV. 4, SECCIÓN C - CLASE N°",null,null,null,{"$f":"IF(INDUSTRIAS_TEXTIL!I10<>\"\",INDUSTRIAS_TEXTIL!I10,\"SIN DATOS\")","v":"1313-Acabado de productos textiles"}]
[null,null,"UBICACIÓN DE LA INSTALACIÓN INDUSTRIAL",null,null,null,"Departamento",{"$f":"INDUSTRIAS_TEXTIL!H11","v":"AMAZONAS"}]
[null,null,null,null,null,null,"Provincia",{"$f":"INDUSTRIAS_TEXTIL!H12","v":"CHACHAPOYAS"}]
[null,null,null,null,null,null,"Diistrito",{"$f":"INDUSTRIAS_TEXTIL!H13","v":"CHACHAPOYAS"}]
[null,null,null,null,null,null,"Dirección","dd"]
[null,null,"RANGO EMPRESARIAL DECLARADO POR EL ADMINISTRADO",null,null,null,{"$f":"IF(INDUSTRIAS_TEXTIL!I15<>\"\",INDUSTRIAS_TEXTIL!I15,\"SIN DATOS\")","v":"MICRO EMPRESA"}]
[]
[null,null,"CONDICIONES DE ADECUACIÓN ESTABLECIDAS EN EL DS 006-2019-PRODUCE"]
[]
[null,null,"TIPO","N°","CONDICIONES ",null,null,"OPCIONES"]
[null,null,"Generales",1,"Los efluentes (de procesos industriales) son vertidos a un cuerpo/curso natural de agua.",null,null,{"$f":"INDUSTRIAS_TEXTIL!I20","v":"NO"},"NO"]
[null,null,null,2,"Generen licor negro como efluente.",null,null,{"$f":"INDUSTRIAS_TEXTIL!I21","v":"NO"},"NO"]
[null,null,null,3,"La actividad se realiza dentro de un ANP o zona de amortiguamiento.",null,null,{"$f":"INDUSTRIAS_TEXTIL!I22","v":"NO"},"NO"]
[null,null,null,4,"La actividad se realiza a una distancia menor o igual de 250 m de ecosistemas frágiles.",null,null,{"$f":"INDUSTRIAS_TEXTIL!I23","v":"NO"},"NO"]
[null,null,null,5,"La actividad se realiza dentro de comunidades campesinas, nativas o pueblos indígenas.",null,null,{"$f":"INDUSTRIAS_TEXTIL!I24","v":"NO"},"NO"]
[null,null,null,6,"Se realizan procesos mecanizados (no manuales) que generan emisiones difusas o fugitivas de material particulado y emisiones gaseosas (no incluye fuentes fijas ni móviles) colindantes con viviendas y no están encapsulados.",null,null,{"$f":"INDUSTRIAS_TEXTIL!I25","v":"NO"},"NO"]
[null,null,null,7,"El proceso productivo usa agua de una fuente natural y no cuenta con la autorización de la autoridad de recursos hídricos correspondientes.",null,null,{"$f":"INDUSTRIAS_TEXTIL!I26","v":"NO"},"NO"]
[null,null,null,8,"Genera ruido de los procesos mecanizados sin contar con alguna medida de mitigación (barreras acústicas, encapsulamiento u otros) y colindan con viviendas.",null,null,{"$f":"INDUSTRIAS_TEXTIL!I27","v":"NO"},"NO"]
[null,null,null,9,"Utilizan combustibles sólidos o líquidos sin contar con sistemas de control de emisiones (filtros manga, lavador Venturi, precipitados electrostático u otros).",null,null,{"$f":"INDUSTRIAS_TEXTIL!I28","v":"NO"},"NO"]
[null,null,null,10,"Genera emisiones atmosféricas de procesos industriales sin contar con sistemas de tratamiento de partículas y/o gases.",null,null,{"$f":"INDUSTRIAS_TEXTIL!I29","v":"NO"},"NO",null,1]
[null,null,"Específica",11,"-",null,null,{"$f":"INDUSTRIAS_TEXTIL!I30","v":"SI"},"NO"]
[null,null,null,11,"Genera emisiones atmosféricas de procesos de secado de textiles lavados y/o teñidos, sin contar con medidas de control (filtro de partículas y/o gases).\n",null,null,{"$f":"INDUSTRIAS_TEXTIL!I31","v":"NO"},"NO"]
[null,null,null,12,"Genera efluentes de procesos industriales y los vierte al sistema de alcantarillado sin tratamiento previo.\n",null,null,{"$f":"INDUSTRIAS_TEXTIL!I32","v":"NO"},"NO"]
[null,null,null,13,"Genera efluentes de procesos industriales y los vierte a un cuerpo receptor.\n",null,null,{"$f":"INDUSTRIAS_TEXTIL!I33","v":"NO"},"NO"]
[]
[null,null,"INSTRUMENTO A PRESENTAR:",null,null,null,null,{"$f":"IF(INDUSTRIAS_TEXTIL!H35 <>\"\",INDUSTRIAS_TEXTIL!H35,\"NO PROCESADO\")","v":"NO PROCESADO"}]
[]
[]
[null,null,"Nota: Esta información es proporcionada por el administrado, con carácter de Declaración Jurada, sujeta a fiscalización; y, en caso la información proporcionada no sea veraz está sujeta al procedimiento y a las sanciones previstas en el Texto Único Ordenado de la Ley N° 27444,  Ley del Procedimiento Administrativo General, aprobado por el Decreto Supremo N° 006-2017-JUS."]
[]
[]
[]
[null,null,null,null,null,null,null,null,null,null,null,null,null,null,"N25=2;N26=2;N27=2;N28=2;N29=2"]

{"sheet":"INDUSTRIAS_TEXTIL","index":7,"n_rows":46,"n_cols":21,"rows_kept":46,"cut":false,"hidden":false,"merged":[[7,2,7,5],[4,2,4,8],[5,2,5,5],[6,2,6,5],[8,2,8,5],[9,2,9,5],[10,2,13,5],[10,7,10,8],[11,7,11,8],[12,7,12,8],[28,4,28,6],[14,2,14,5],[15,2,15,8],[16,2,17,8],[18,4,18,6],[18,7,18,8],[19,2,28,2],[19,4,19,6],[20,4,20,6],[21,4,21,6],[22,4,22,6],[23,4,23,6],[24,4,24,6],[25,4,25,6],[26,4,26,6],[27,4,27,6],[29,2,32,2],[29,4,29,6],[30,4,30,6],[31,4,31,6],[32,4,32,6],[47,2,47,3],[34,7,36,8],[34,12,34,15],[37,2,39,8],[42,2,42,3],[43,2,43,3],[45,2,45,3],[34,2,36,6]]}
[]
[null,null,null,null,null,null,null,null,null,null,null,null,null,null,null,1,"Seleccione"]
[null,null,null,null,null,null,null,null,null,null,null,null,null,null,null,2,"1311-Preparación e hilatura de fibras textiles"]
[null,null,null,null,null,null,null,null,null,null,null,null,null,null,null,3,"1312-Tejedura de productos textiles"]
[null,null,"INDUSTRIA TEXTIL",null,null,null,null,null,null,null,null,null,null,{"$f":"IF(O5=Q2,1,IF(O5=Q3,2,IF(O5=Q4,3,IF(O5=Q5,4,IF(O5=Q6,5,IF(O5=Q7,6,IF(O5=Q8,7,IF(O5=Q9,8,IF(O5=Q10,9,IF(O5=Q11,10,IF(O5=Q12,11,IF(O5=Q13,12,))))))))))))","v":1},"Seleccione",4,"1313-Acabado de productos textiles"]
[null,null,"N° DE REGISTRO",null,null,null,null,null,null,null,null,null,null,null,null,5,"1391-Fabricación de tejidos de punto y ganchillo"]
[null,null,"RAZÓN SOCIAL",null,null,null,null,null,null,null,null,null,null,null,null,6,"1392-Fabricación de artículos confeccionados de materiales textiles, excepto prendas de vestir"]
[null,null,"RUC",null,null,null,33333333333,null,null,null,null,null,null,null,null,7,"1393-Fabricación de tapices y alfombras",null,"Clase"]
[null,null,"ACTIVIDAD INDUSTRIAL MANUFACTURERA DECLARADA POR EL ADMINISTRADO",null,null,null,null,null,null,null,null,null,null,null,null,8,"1394-Fabricación de cuerdas, cordeles, bramantes y redes",null,1101,"Destilación, rectificación y mezcla de bebidas alcohólicas"]
[null,null,"CIIU REV. 4, SECCIÓN C - CLASE N°",null,null,null,null,null,"1313-Acabado de productos textiles",null,null,null,null,null,null,9,"1399-Fabricación de otros productos textiles n.c.p."]
[null,null,"UBICACIÓN DE LA INSTALACIÓN INDUSTRIAL",null,null,null,"Departamento","AMAZONAS",null,null,null,null,null,null,null,10,"1410-Fabricación de prendas de vestir, excepto prendas de piel"]
[null,null,null,null,null,null,"Provincia","CHACHAPOYAS",null,null,null,null,null,null,null,11,"1420-Fabricación de artículos de piel"]
[null,null,null,null,null,null,"Diistrito","CHACHAPOYAS",null,null,null,null,null,null,null,12,"1430-Fabricación de artículos de punto y ganchillo"]
[null,null,null,null,null,null,"Dirección",null,null,null,null,null,null,null,null,null,null,null,"Seleccione"]
[null,null,"RANGO EMPRESARIAL DECLARADO POR EL ADMINISTRADO",null,null,null,null,null,"MICRO EMPRESA",null,null,null,null,null,null,{"$f":"IF(P16=S14,1,IF(P16=S15,2,IF(P16=S16,3,IF(P16=S17,4,IF(P16=S18,5,)))))","v":1},null,null,"GRAN EMPRESA"]
[null,null,null,null,null,null,null,null,null,null,null,null,null,null,null,"Seleccione",null,null,"MEDIANA EMPRESA"]
[null,null,"CONDICIONES DE ADECUACIÓN ESTABLECIDAS EN EL DS 006-2019-PRODUCE",null,null,null,null,null,null,null,null,null,null,null,null,null,null,null,"PEQUEÑA EMPRESA"]
[null,null,null,null,null,null,null,null,null,null,null,null,null,null,null,null,null,null,"MICRO EMPRESA",null,"Condiciones"]
[null,null,"TIPO","N°","CONDICIONES ",null,null,"OPCIONES"]
[null,null,"Generales",1,"Los efluentes (de procesos industriales) son vertidos a un cuerpo/curso natural de agua.",null,null,null,"NO",null,null,null,null,"Seleccione",null,null,null,null,"Seleccione"]
[null,null,null,2,"Generen licor negro como efluente.",null,null,null,"NO",null,null,null,null,"Seleccione",null,null,null,null,"SI"]
[null,null,null,3,"La actividad se realiza dentro de un ANP o zona de amortiguamiento.",null,null,null,"NO",null,null,null,null,"Seleccione",null,null,null,null,"NO"]
[null,null,null,4,"La actividad se realiza a una distancia menor o igual de 250 m de ecosistemas frágiles.",null,null,null,"NO",null,null,null,null,"Seleccione"]
[null,null,null,5,"La activida se realiza dentro de comunidades campesinas, nativas o pueblos indígenas.",null,null,null,"NO",null,null,null,null,"Seleccione"]
[null,null,null,6,"Se realizan procesos mecanizados (no manuales) que generan emisiones difusas o fugitivas de material particulado y emisiones gaseosas (no incluye fuentes fijas ni móviles) colindantes con viviendas y no están encapsulados.",null,null,null,"NO",null,null,null,null,"Seleccione"]
[null,null,null,7,"El proceso productivo usa agua de una fuente natural y no cuenta con la autorización de la autoridad de recursos hídricos correspondientes.",null,null,null,"NO",null,null,null,null,"Seleccione"]
[null,null,null,8,"Genera ruido de los procesos mecanizados sin contar con alguna medida de mitigación (barreras acústicas, encapsulamiento u otros) y colindan con viviendas.",null,null,null,"NO",null,null,null,null,"Seleccione"]
[null,null,null,9,"Utilizan combustibles sólidos o líquidos sin contar con sistemas de control de emisiones (filtros manga, lavador Venturi, precipitados electrostático u otros).",null,null,null,"NO",null,null,null,null,"Seleccione"]
[null,null,null,10,"Genera emisiones atmosféricas de procesos industriales sin contar con sistemas de tratamiento de partículas y/o gases.",null,null,null,"NO",null,1,{"$f":"IF(AND(OR($P$15=2,$P$15=3,$P$15=4),OR($N$25=\"SI\",$N$26=\"SI\",$N$27=\"SI\",$N$28=\"SI\",$N$29=\"SI\"),OR($N$5=7,$N$5=2,$N$5=3,$N$5=4,$N$5=5,$N$5=6,$N$5=8,$N$5=9,$N$5=10,$N$5=11,$N$5=12)),\"DAA\",\"TT\")","v":"TT"},null,"Seleccione"]
[null,null,"Específica",11,"-",null,null,null,"SI",null,null,{"$f":"IF(AND(N30=\"SI\",OR($N$5=2,$N$5=5),OR($P$15=2,$P$15=3,$P$15=4)),\"PAMA*\",\"TT\")","v":"TT"},null,"Seleccione"]
[null,null,null,11,"Genera emisiones atmosféricas de procesos de secado de textiles lavados y/o teñidos, sin contar con medidas de control (filtro de partículas y/o gases).\n",null,null,null,"NO",null,null,{"$f":"IF(AND(OR(N31=\"SI\"),OR($N$5=2,$N$5=4),OR(P15=2,P15=3,P15=4)),\"DAA*\",\"ww\")","v":"ww"},null,"Seleccione"]
[null,null,null,12,"Genera efluentes de procesos industriales y los vierte al sistema de alcantarillado sin tratamiento previo.\n",null,null,null,"NO",null,null,{"$f":"IF(AND($N$20=\"Seleccione\",$N$21=\"Seleccione\",$N$22=\"Seleccione\",$N$23=\"Seleccione\",$N$24=\"Seleccione\",N25=\"Seleccione\",N26=\"Seleccione\",N27=\"Seleccione\",N28=\"Seleccione\",N29=\"Seleccione\"),\"falta\",IF(AND($N$20=\"NO\",$N$21=\"NO\",$N$22=\"NO\",$N$23=\"NO\",$N$24=\"NO\",N25=\"NO\",N26=\"NO\",N27=\"NO\",N28=\"NO\",N29=\"NO\",N31=\"NO\",N32=\"NO\",N33=\"NO\"),\"NO REQUIERE\",\"OK\"))","v":"falta"},null,"Seleccione"]
[null,null,null,13,"Genera efluentes de procesos industriales y los vierte a un cuerpo receptor.\n",null,null,null,"NO",null,null,{"$f":"IF(AND(OR($P$15=2,$P$15=3,$P$15=4),OR($N$20=\"SI\",$N$21=\"SI\",$N$22=\"SI\",$N$23=\"SI\",$N$24=\"SI\"),OR($N$5=7,$N$5=2,$N$5=3,$N$5=4,$N$5=5,$N$5=6,$N$5=8,$N$5=9,$N$5=10,$N$5=11,$N$5=12)),\"PAMA\",\"TT\")","v":"TT"},null,"Seleccione"]
[]
[null,null,"INSTRUMENTO A PRESENTAR:",null,null,null,null,null,null,null,"NO REQUIERE",{"$f":"IF(AND(OR(N33=\"SI\"),OR($N$5=4),OR($P$15=5)),\"DAA*\",\"ww\")","v":"ww"}]
[null,null,null,null,null,null,null,null,null,null,null,{"$f":"IF(AND(OR(N32=\"SI\"),OR($N$5=4),OR($P$15=5,P15=2,P15=3,P15=4)),\"DAA*\",\"ww\")","v":"ww"}]
[]
[null,null,"Nota: Esta información es proporcionada por el administrado, con carácter de Declaración Jurada, sujeta a fiscalización; y, en caso la información proporcionada no sea veraz está sujeta al procedimiento y a las sanciones previstas en el Texto Único Ordenado de la Ley N° 27444,  Ley del Procedimiento Administrativo General, aprobado por el Decreto Supremo N° 006-2017-JUS."]
[null,null,null,null,null,null,null,null,null,null,null,{"$f":"IF(L32=\"falta\",\"COMPLETE DATOS GENERALES\",IF(L32=\"NO REQUIERE\",\"NO REQUIERE\",IF(AND(OR(L30=\"PAMA*\",L33=\"PAMA\"),OR(L29=\"DAA\",L35=\"DAA\")),\"PAMA\",IF(AND(L30<>\"PAMA*\",L33=\"TT\",OR(L31=\"DAA*\",L29=\"DAA\",L35=\"DAA*\",L36=\"DAA*\")),\"DAA\",IF(AND(OR(L36=\"DAA*\",L33=\"PAMA\",L30=\"PAMA*\"),L35=\"ww\"),\"PAMA\",\"REVISE LOS DATOS INGRESADOS\")))))","v":"COMPLETE DATOS GENERALES"}]
[]
[]
[null,null,null,null,null,null,null,null,null,null,null,null,null,null,"N25=2;N26=2;N27=2;N28=2;N29=2"]
[null,null,"Leyenda"]
[null,null,"Objeto desglozable"]
[]
[null,null,"Registro de información"]

{"sheet":"INDUSTRIAS_QUIMICAS_IMP","index":8,"n_rows":38,"n_cols":21,"rows_kept":38,"cut":false,"hidden":false,"merged":[[7,2,7,5],[7,6,7,8],[4,2,4,8],[5,2,5,5],[5,6,5,8],[6,2,6,5],[6,6,6,8],[26,7,26,8],[8,2,8,5],[8,6,8,8],[9,2,9,5],[10,2,13,5],[10,7,10,8],[11,7,11,8],[12,7,12,8],[13,7,13,8],[14,2,14,5],[15,2,15,8],[16,2,17,8],[18,4,18,6],[18,7,18,8],[43,2,43,3],[45,2,45,3],[32,4,32,6],[34,2,36,6],[25,4,25,6],[26,4,26,6],[27,4,27,6],[34,12,34,15],[37,2,39,8],[32,7,32,8],[28,4,28,6],[19,2,28,2],[19,4,19,6],[20,4,20,6],[21,4,21,6],[22,4,22,6],[31,7,31,8],[27,7,27,8],[28,7,28,8],[29,7,29,8],[23,4,23,6],[24,4,24,6],[30,7,30,8],[47,2,47,3],[9,6,9,8],[14,6,14,8],[19,7,19,8],[20,7,20,8],[21,7,21,8],[22,7,22,8],[23,7,23,8],[24,7,24,8],[25,7,25,8],[34,7,36,8],[29,2,32,2],[29,4,29,6],[30,4,30,6],[31,4,31,6],[42,2,42,3]]}
[]
[null,"VISTA DE IMPRESIÓN DE FICHA"]
[]
[null,null,"Dirección General de Asuntos Ambientales de Industria",null,null,null,null,"Fecha de Impresión:",{"$f":"TODAY()","v":"2019-08-22"}]
[null,null,"FABRICACIÓN DE SUSTANCIAS Y PRODUCTOS QUÍMICOS; FABRICACIÓN DE PRODUCTOS FARMACÉUTICAS, SUSTANCIAS QUÍMICAS MEDICINALES Y PRODUCTOS BOTÁNICOS DE USO FARMACÉUTICO"]
[null,null,"N° DE REGISTRO",null,null,null,"s"]
[null,null,"RAZÓN SOCIAL",null,null,null,"sasas"]
[null,null,"RUC",null,null,null,11111111111]
[null,null,"ACTIVIDAD INDUSTRIAL MANUFACTURERA DECLARADA POR EL ADMINISTRADO",null,null,null,"sas333FGFGF"]
[null,null,"CIIU REV. 4, SECCIÓN C - CLASE N°",null,null,null,11111111111]
[null,null,"UBICACIÓN DE LA INSTALACIÓN INDUSTRIAL",null,null,null,"sas",{"$f":"INDUSTRIAS_QUIMICAS!H11","v":"AMAZONAS"}]
[null,null,null,null,null,null,"Provincia",{"$f":"INDUSTRIAS_QUIMICAS!H12","v":"CHACHAPOYAS"}]
[null,null,null,null,null,null,"Diistrito",{"$f":"INDUSTRIAS_QUIMICAS!H13","v":"CHACHAPOYAS"}]
[null,null,null,null,null,null,"Dirección","K"]
[null,null,"RANGO EMPRESARIAL DECLARADO POR EL ADMINISTRADO",null,null,null,{"$f":"IF(INDUSTRIAS_QUIMICAS!I15<>\"\",INDUSTRIAS_QUIMICAS!I15,\"SIN DATOS\")","v":"SIN DATOS"}]
[]
[null,null,"CONDICIONES DE ADECUACIÓN ESTABLECIDAS EN EL DS 006-2019-PRODUCE"]
[null,null,null,null,null,null,null,null,null,null,null,null,null,null,null,null,null,null,null,null,"Condiciones"]
[null,null,"TIPO","N°","CONDICIONES ",null,null,"OPCIONES"]
[null,null,"Generales",1,"Los efluentes (de procesos industriales) son vertidos a un cuerpo/curso natural de agua.",null,null,{"$f":"INDUSTRIAS_QUIMICAS!I20","v":"NO"},"Seleccione"]
[null,null,null,2,"Generen licor negro como efluente.",null,null,{"$f":"INDUSTRIAS_QUIMICAS!I21","v":"NO"},"Seleccione"]
[null,null,null,3,"La actividad se realiza dentro de un ANP o zona de amortiguamiento.",null,null,{"$f":"INDUSTRIAS_QUIMICAS!I22","v":"NO"},"Seleccione"]
[null,null,null,4,"La actividad se realiza a una distancia menor o igual de 250 m de ecosistemas frágiles.",null,null,{"$f":"INDUSTRIAS_QUIMICAS!I23","v":"NO"},"Seleccione"]
[null,null,null,5,"La actividad se realiza dentro de comunidades campesinas, nativas o pueblos indígenas.",null,null,{"$f":"INDUSTRIAS_QUIMICAS!I24","v":"NO"},"Seleccione"]
[null,null,null,6,"Se realizan procesos mecanizados (no manuales) que generan emisiones difusas o fugitivas de material particulado y emisiones gaseosas (no incluye fuentes fijas ni móviles) colindantes con viviendas y no están encapsulados.",null,null,{"$f":"INDUSTRIAS_QUIMICAS!I25","v":"NO"},"Seleccione"]
[null,null,null,7,"El proceso productivo usa agua de una fuente natural y no cuenta con la autorización de la autoridad de recursos hídricos correspondientes.",null,null,{"$f":"INDUSTRIAS_QUIMICAS!I26","v":"NO"},"Seleccione"]
[null,null,null,8,"Genera ruido de los procesos mecanizados sin contar con alguna medida de mitigación (barreras acústicas, encapsulamiento u otros) y colindan con viviendas.",null,null,{"$f":"INDUSTRIAS_QUIMICAS!I27","v":"NO"},"Seleccione"]
[null,null,null,9,"Utilizan combustibles sólidos o líquidos sin contar con sistemas de control de emisiones (filtros manga, lavador Venturi, precipitados electrostático u otros).",null,null,{"$f":"INDUSTRIAS_QUIMICAS!I28","v":"NO"},"Seleccione"]
[null,null,null,10,"Genera emisiones atmosféricas de procesos industriales sin contar con sistemas de tratamiento de partículas y/o gases.",null,null,{"$f":"INDUSTRIAS_QUIMICAS!I29","v":"NO"},"Seleccione"]
[null,null,"Específica",11,"Realiza actividades de fabricación de sustancias químicas básicas; fabricación y/o síntesis de productos fitosanitarios y/o biocidas.\n(Aplica sólo para CLASES: 2011 Y 2021)",null,null,{"$f":"INDUSTRIAS_QUIMICAS!I30","v":"NO"},"Seleccione"]
[null,null,null,12,"Realizan la fabricación de productos químicos secundarios (pinturas, barnices, agroquímicos, soluciones ácidas).\n(Aplica sólo para CLASES: 2012, 2022 Y 2029)",null,null,{"$f":"INDUSTRIAS_QUIMICAS!I31","v":"NO"},"Seleccione"]
[null,null,null,13,"Genera efluentes de procesos industriales y los vierte al sistema de alcantarillado sin tratamiento previo.\n(Aplica sólo para CLASES: 2011, 2012, 2013, 2021, 2022, 2023, 2029, 2030 y 2100)",null,null,{"$f":"INDUSTRIAS_QUIMICAS!I32","v":"SI"},"Seleccione"]
[null,null,null,14,"Genera efluentes de procesos industriales y los vierte a un cuerpo receptor.\n(Aplica sólo para MICRO EMPRESA - CLASES: 2011, 2012, 2013, 2021, 2022, 2023, 2029, 2030 y 2100)",null,null,{"$f":"INDUSTRIAS_QUIMICAS!I33","v":"SI"},"Seleccione"]
[]
[null,null,"INSTRUMENTO A PRESENTAR:",null,null,null,null,{"$f":"IF(INDUSTRIAS_QUIMICAS!H35 <>\"\",INDUSTRIAS_QUIMICAS!H35,\"NO PROCESADO\")","v":"NO PROCESADO"}]
[]
[]
[null,null,"Nota: Esta información es proporcionada por el administrado, con carácter de Declaración Jurada, sujeta a fiscalización; y, en caso la información proporcionada no sea veraz está sujeta al procedimiento y a las sanciones previstas en el Texto Único Ordenado de la Ley N° 27444,  Ley del Procedimiento Administrativo General, aprobado por el Decreto Supremo N° 006-2017-JUS."]

{"sheet":"INDUSTRIAS_QUIMICAS","index":9,"n_rows":46,"n_cols":21,"rows_kept":46,"cut":false,"hidden":false,"merged":[[7,2,7,5],[4,2,4,8],[5,2,5,5],[6,2,6,5],[8,2,8,5],[9,2,9,5],[10,2,13,5],[10,7,10,8],[11,7,11,8],[12,7,12,8],[28,4,28,6],[14,2,14,5],[15,2,15,8],[16,2,17,8],[18,4,18,6],[18,7,18,8],[19,2,28,2],[19,4,19,6],[20,4,20,6],[21,4,21,6],[22,4,22,6],[23,4,23,6],[24,4,24,6],[25,4,25,6],[26,4,26,6],[27,4,27,6],[47,2,47,3],[29,2,32,2],[29,4,29,6],[31,4,31,6],[32,4,32,6],[34,2,36,6],[30,4,30,6],[34,12,34,15],[37,2,39,8],[42,2,42,3],[43,2,43,3],[45,2,45,3],[34,7,36,8]]}
[]
[null,null,null,null,null,null,null,null,null,null,null,null,null,null,null,1,"Seleccione"]
[null,null,null,null,null,null,null,null,null,null,null,null,null,null,null,2,"2011-Fabricación de sustancias químicas básicas"]
[null,null,null,null,null,null,null,null,null,null,null,null,null,null,null,3,"2012-Fabricación de abonos y compuestos de nitrógeno"]
[null,null,"FABRICACIÓN DE SUSTANCIAS Y PRODUCTOS QUÍMICOS; FABRICACIÓN DE PRODUCTOS FARMACÉUTICAS, SUSTANCIAS QUÍMICAS MEDICINALES Y PRODUCTOS BOTÁNICOS DE USO FARMACÉUTICO",null,null,null,null,null,null,null,null,null,null,{"$f":"IF(O5=Q2,1,IF(O5=Q3,2,IF(O5=Q4,3,IF(O5=Q5,4,IF(O5=Q6,5,IF(O5=Q7,6,IF(O5=Q8,7,IF(O5=Q9,8,IF(O5=Q10,9,IF(O5=Q11,10))))))))))","v":1},"Seleccione",4,"2013-Fabricación de plásticos y caucho sintético en formas primarias"]
[null,null,"N° DE REGISTRO",null,null,null,null,null,null,null,null,null,null,null,null,5,"2021-Fabricación de plaguicidas y otros productos químicos de uso agropecuario"]
[null,null,"RAZÓN SOCIAL",null,null,null,null,null,null,null,null,null,null,null,null,6,"2022-Fabricación de pinturas, barnices y productos de revestimiento similares, tintas de imprenta y masillas"]
[null,null,"RUC",null,null,null,null,null,null,null,null,null,null,null,null,7,"2023-Fabricación de jabones y detergentes, preparados para limpiar y pulir, perfumes y preparados de tocador",null,"Clase"]
[null,null,"ACTIVIDAD INDUSTRIAL MANUFACTURERA DECLARADA POR EL ADMINISTRADO",null,null,null,null,null,null,null,null,null,null,null,null,8,"2029-Fabricación de otros productos químicos n.c.p.",null,1101,"Destilación, rectificación y mezcla de bebidas alcohólicas"]
[null,null,"CIIU REV. 4, SECCIÓN C - CLASE N°",null,null,null,null,null,"2021-Fabricación de plaguicidas y otros productos químicos de uso agropecuario",null,null,null,null,null,null,9,"2030-Fabricación de fibras artificiales"]
[null,null,"UBICACIÓN DE LA INSTALACIÓN INDUSTRIAL",null,null,null,"Departamento","AMAZONAS",null,null,null,null,null,null,null,10,"2100-Fabricación de productos farmacéuticos, sustancias químicas medicinales y productos botánicos de uso farmacéutico"]
[null,null,null,null,null,null,"Provincia","CHACHAPOYAS",null,null,null,null,null,null,null,null,null,null,"Seleccione"]
[null,null,null,null,null,null,"Diistrito","CHACHAPOYAS",null,null,null,null,null,null,null,null,null,null,"GRAN EMPRESA"]
[null,null,null,null,null,null,"Dirección",null,null,null,null,null,null,null,null,null,null,null,"MEDIANA EMPRESA"]
[null,null,"RANGO EMPRESARIAL DECLARADO POR EL ADMINISTRADO",null,null,null,null,null,null,null,null,null,null,null,null,{"$f":"IF(P16=S12,1,IF(P16=S13,2,IF(P16=S14,3,IF(P16=S15,4,IF(P16=S16,5,)))))","v":1},null,null,"PEQUEÑA EMPRESA"]
[null,null,null,null,null,null,null,null,null,null,null,null,null,null,null,"Seleccione",null,null,"MICRO EMPRESA"]
[null,null,"CONDICIONES DE ADECUACIÓN ESTABLECIDAS EN EL DS 006-2019-PRODUCE"]
[null,null,null,null,null,null,null,null,null,null,null,null,null,null,null,null,null,null,"Seleccione",null,"Condiciones"]
[null,null,"TIPO","N°","CONDICIONES ",null,null,"OPCIONES",null,null,null,null,null,null,null,null,null,null,"SI"]
[null,null,"Generales",1,"Los efluentes (de procesos industriales) son vertidos a un cuerpo/curso natural de agua.",null,null,null,"NO",null,null,null,null,"Seleccione",null,null,null,null,"NO"]
[null,null,null,2,"Generen licor negro como efluente.",null,null,null,"NO",null,null,null,null,"Seleccione"]
[null,null,null,3,"La actividad se realiza dentro de un ANP o zona de amortiguamiento.",null,null,null,"NO",null,null,null,null,"Seleccione"]
[null,null,null,4,"La actividad se realiza a una distancia menor o igual de 250 m de ecosistemas frágiles.",null,null,null,"NO",null,null,null,null,"Seleccione"]
[null,null,null,5,"La actividad se realiza dentro de comunidades campesinas, nativas o pueblos indígenas.",null,null,null,"NO",null,null,null,null,"Seleccione"]
[null,null,null,6,"Se realizan procesos mecanizados (no manuales) que generan emisiones difusas o fugitivas de material particulado y emisiones gaseosas (no incluye fuentes fijas ni móviles) colindantes con viviendas y no están encapsulados.",null,null,null,"NO",null,null,null,null,"Seleccione"]
[null,null,null,7,"El proceso productivo usa agua de una fuente natural y no cuenta con la autorización de la autoridad de recursos hídricos correspondientes.",null,null,null,"NO",null,null,null,null,"Seleccione"]
[null,null,null,8,"Genera ruido de los procesos mecanizados sin contar con alguna medida de mitigación (barreras acústicas, encapsulamiento u otros) y colindan con viviendas.",null,null,null,"NO",null,null,null,null,"Seleccione"]
[null,null,null,9,"Utilizan combustibles sólidos o líquidos sin contar con sistemas de control de emisiones (filtros manga, lavador Venturi, precipitados electrostático u otros).",null,null,null,"NO",null,null,null,null,"Seleccione"]
[null,null,null,10,"Genera emisiones atmosféricas de procesos industriales sin contar con sistemas de tratamiento de partículas y/o gases.",null,null,null,"NO",null,null,{"$f":"IF(AND(OR($P$15=2,$P$15=3,$P$15=4),OR($N$25=\"SI\",$N$26=\"SI\",$N$27=\"SI\",$N$28=\"SI\",$N$29=\"SI\"),OR($N$5=7,$N$5=2,$N$5=3,$N$5=4,$N$5=5,$N$5=6,$N$5=8,$N$5=9,$N$5=10)),\"DAA\",\"TT\")","v":"TT"},null,"Seleccione"]
[null,null,"Específica",11,"Realiza actividades de fabricación de sustancias químicas básicas; fabricación y/o síntesis de productos fitosanitarios y/o biocidas.\n",null,null,null,"NO",null,null,{"$f":"IF(AND(N30=\"SI\",OR($N$5=2,$N$5=5),OR($P$15=2,$P$15=3,$P$15=4)),\"PAMA*\",\"TT\")","v":"TT"},null,"Seleccione"]
[null,null,null,12,"Realizan la fabricación de productos químicos secundarios (pinturas, barnices, agroquímicos, soluciones ácidas).\n",null,null,null,"NO",null,null,{"$f":"IF(AND(OR(N31=\"SI\"),OR($N$5=3,$N$5=6,$N$5=8),OR(P15=2,P15=3,P15=4)),\"DAA*\",\"ww\")","v":"ww"},null,"Seleccione"]
[null,null,null,13,"Genera efluentes de procesos industriales y los vierte al sistema de alcantarillado sin tratamiento previo.\n",null,null,null,"SI",null,null,{"$f":"IF(AND($N$20=\"Seleccione\",$N$21=\"Seleccione\",$N$22=\"Seleccione\",$N$23=\"Seleccione\",$N$24=\"Seleccione\",N25=\"Seleccione\",N26=\"Seleccione\",N27=\"Seleccione\",N28=\"Seleccione\",N29=\"Seleccione\"),\"falta\",IF(AND($N$20=\"NO\",$N$21=\"NO\",$N$22=\"NO\",$N$23=\"NO\",$N$24=\"NO\",N25=\"NO\",N26=\"NO\",N27=\"NO\",N28=\"NO\",N29=\"NO\",N30=\"NO\",N31=\"NO\",N32=\"NO\",N33=\"NO\"),\"NO REQUIERE\",\"OK\"))","v":"falta"},null,"Seleccione"]
[null,null,null,14,"Genera efluentes de procesos industriales y los vierte a un cuerpo receptor.\n",null,null,null,"SI",null,null,{"$f":"IF(AND(OR($P$15=2,$P$15=3,$P$15=4),OR($N$20=\"SI\",$N$21=\"SI\",$N$22=\"SI\",$N$23=\"SI\",$N$24=\"SI\"),OR($N$5=7,$N$5=2,$N$5=3,$N$5=4,$N$5=5,$N$5=6,$N$5=8,$N$5=9,$N$5=10)),\"PAMA\",\"TT\")","v":"TT"},null,"Seleccione"]
[]
[null,null,"INSTRUMENTO A PRESENTAR:",null,null,null,null,null,null,null,"DAA",{"$f":"IF(AND(OR(N33=\"SI\"),OR($N$5=7,$N$5=2,$N$5=3,$N$5=4,$N$5=5,$N$5=6,$N$5=8,$N$5=9,$N$5=10),OR($P$15=5)),\"DAA*\",\"ww\")","v":"ww"}]
[null,null,null,null,null,null,null,null,null,null,null,{"$f":"IF(AND(OR(N32=\"SI\"),OR($N$5=7,$N$5=2,$N$5=3,$N$5=4,$N$5=5,$N$5=6,$N$5=8,$N$5=9,$N$5=10),OR($P$15=5,P15=2,P15=3,P15=4)),\"DAA*\",\"ww\")","v":"ww"}]
[]
[null,null,"Nota: Esta información es proporcionada por el administrado, con carácter de Declaración Jurada, sujeta a fiscalización; y, en caso la información proporcionada no sea veraz está sujeta al procedimiento y a las sanciones previstas en el Texto Único Ordenado de la Ley N° 27444,  Ley del Procedimiento Administrativo General, aprobado por el Decreto Supremo N° 006-2017-JUS.",null,null,null,null,null,null,null,null,{"$f":"IF(L32=\"falta\",\"COMPLETE DATOS GENERALES\",IF(L32=\"NO REQUIERE\",\"NO REQUIERE\",IF(AND(OR(L30=\"PAMA*\",L33=\"PAMA\"),OR(L29=\"DAA\",L35=\"DAA\")),\"PAMA\",IF(AND(L30<>\"PAMA*\",L33=\"TT\",OR(L31=\"DAA*\",L29=\"DAA\",L35=\"DAA*\",L36=\"DAA*\")),\"DAA\",IF(AND(OR(L36=\"DAA*\",L33=\"PAMA\",L30=\"PAMA*\"),L35=\"ww\"),\"PAMA\",\"REVISE LOS DATOS INGRESADOS\")))))","v":"COMPLETE DATOS GENERALES"}]
[]
[]
[]
[null,null,null,null,null,null,null,null,null,null,null,null,null,null,"N25=2;N26=2;N27=2;N28=2;N29=2"]
[null,null,"Leyenda"]
[null,null,"Objeto desglozable"]
[]
[null,null,"Registro de información"]

{"sheet":"medidas","index":10,"n_rows":72,"n_cols":9,"rows_kept":72,"cut":false,"hidden":false,"merged":[]}
["ruc","razon_soc","tipo_mitig","medida1","medida2","medida3","medida4","RUC","SECTOR"]
[1,2,3,"rt","trtrtt","rtrt","",77777777777,"FABRICACIÓN DE  METALES COMUNES; FABRICACIÓN DE PRODUCTOS ELABORADOS DE METAL, EXCEPTO MAQUINARIA  EQUIPO"]
[1,2,3,"qw","qwddd","dddd","666666"]
["Ruido",2,3,"wewew","wew","weew","wew"]
[1,2,0,"sd","sdsd","sds","sds"]
[1,2,"Ruido","ssss","ss","ss","ss"]
[1,2,"Ruido","wewe","wewe","wewe","wewewe"]
[1,2,"Ruido","xxxxxxx","xxxxxxxxxx","xx","xxx"]
[1,2,"Control Ruido","sd","sd","d","s"]
[1,2,"Control Ruido","dssds","sd","sds","sdsdsdsd"]
[1,2,"Control Ruido","rrrrrrrr","rrrrrr","rrrrrrr","rrrr"]
[1,2,"Control Ruido","ds","s","yy","yyy"]
[1,2,"Control Ruido","qqqqq","bbbb","bbb","bbb"]
[1,2,"Control Ruido","SD","D","D",""]
[1,2,"Control Ruido","S","S","S","S"]
[1,2,"Control Ruido","c","c","c","c"]
[1,2,"Control Ruido","2","2","2","2"]
[1,2,"Control Emisiones","s","asas","asas","asas"]
[1,2,"Control Emisiones","33","3434","343","3434"]
[null,2,"Control Emisiones","SS","SS","S","S"]
[null,2,"Control Emisiones","R","R","R",""]
[null,2,"Control Emisiones","F","F","F","F"]
[null,2,"Control Emisiones","3","3","3","3"]
[null,2,"Control Emisiones","y","y","y"," y"]
[null,2,"Control Emisiones","1","1","1",""]
[22267776771,2,"Control Ruido","6","6","6",""]
[22267776771,2,"Control Emisiones","E","E","E","E"]
[22267776771,2,"Control Ruido","T","T","T","T"]
[22267776771,null,"Control Ruido","yyy","yy","y","y"]
[22267776771,null,"Control Ruido","s","n","n",""]
[22267776771,"INDUSTRIAS DE BEBIDAS","Control Ruido","q","f","",""]
[22267776771,"INDUSTRIAS DE BEBIDAS","Control Ruido","ee","eu","u","u"]
[22267776771,2,"Control Emisiones","e","e","e","e"]
[null,null,"Control Ruido","sd","sd","",""]
[22267776771,"INDUSTRIAS DE BEBIDAS","Control Ruido","WW","WW","W",""]
[22267776771,2,"Control Emisiones","BBB","DD","D","D"]
[22267776771,"INDUSTRIAS DE BEBIDAS","Control Ruido","W","W","W",""]
[22267776771,"INDUSTRIAS DE BEBIDAS","Control Ruido","Z","Z","",""]
[22267776771,"INDUSTRIAS DE BEBIDAS","Control Ruido","F","F","",""]
[22267776771,"INDUSTRIAS DE BEBIDAS","Control Emisiones","R","R","",""]
[56655454545,"INDUSTRIAS DE BEBIDAS","Control Ruido","GFFD","FDFDF","DF","DFDFDF"]
[56655454545,"INDUSTRIAS DE BEBIDAS","Control Emisiones","DSDDS","SDSD","SDSD","SDSD"]
[44444444444,"INDUSTRIAS DE ALIMENTOS","Control Ruido","RR","ERE","ER","ERERERERER"]
[44444444444,"INDUSTRIAS DE ALIMENTOS","Control Emisiones","OOO","OOO","OO","OO"]
[66666666666,"INDUSTRIAS DE ALIMENTOS","Control Ruido","FG","FGF","FGF","FG"]
[66666666666,"INDUSTRIAS DE ALIMENTOS","Control Emisiones","FGF","FGFGF","FFF","FF"]
[99999999999,"INDUSTRIAS DE BEBIDAS","Control Ruido","DF","DF","",""]
[99999999999,"INDUSTRIAS DE PAPEL Y DE PRODUCTOS DE PAPEL; IMPRESIÓN Y REPRODUCCIÓN DE GRABACIONES","Control Ruido","moi","f","",""]
[99999999999,"INDUSTRIAS DE PAPEL Y DE PRODUCTOS DE PAPEL; IMPRESIÓN Y REPRODUCCIÓN DE GRABACIONES","Control Emisiones","fff","f","",""]
[99999999999,"INDUSTRIAS DE BEBIDAS","Control Ruido","ewewe","wew","",""]
[99999999999,"INDUSTRIAS DE BEBIDAS","Control Emisiones","454","454","",""]
[99999999999,"INDUSTRIAS DE BEBIDAS","Control Ruido","w","w","",""]
[99999999999,"INDUSTRIAS DE BEBIDAS","Control Ruido","qq","qqq","",""]
[99999999999,"INDUSTRIAS DE BEBIDAS","Control Emisiones","ee","ee","",""]
[88888888888,"INDUSTRIAS DE BEBIDAS","Control Ruido","www","www","",""]
[88888888888,"INDUSTRIAS DE BEBIDAS","Control Emisiones","1221","222","",""]
[88888888888,"INDUSTRIAS DE BEBIDAS","Control Emisiones","wewe","wewew","",""]
[32333333333,"INDUSTRIAS DE PAPEL Y DE PRODUCTOS DE PAPEL; IMPRESIÓN Y REPRODUCCIÓN DE GRABACIONES","Control Ruido","2222","2","",""]
[32333333333,"INDUSTRIAS DE PAPEL Y DE PRODUCTOS DE PAPEL; IMPRESIÓN Y REPRODUCCIÓN DE GRABACIONES","Control Emisiones","666","6","",""]
[32333333333,"INDUSTRIAS DE PAPEL Y DE PRODUCTOS DE PAPEL; IMPRESIÓN Y REPRODUCCIÓN DE GRABACIONES","Control Emisiones","ft","fft","",""]
[32333333333,"INDUSTRIAS DE PAPEL Y DE PRODUCTOS DE PAPEL; IMPRESIÓN Y REPRODUCCIÓN DE GRABACIONES","Combustibles - Control Emisiones","ee","we","",""]
[32333333333,"INDUSTRIAS DE PAPEL Y DE PRODUCTOS DE PAPEL; IMPRESIÓN Y REPRODUCCIÓN DE GRABACIONES","Control Ruido","","","",""]
[32333333333,"INDUSTRIAS DE PAPEL Y DE PRODUCTOS DE PAPEL; IMPRESIÓN Y REPRODUCCIÓN DE GRABACIONES","Control Ruido","","","",""]
[32333333333,"INDUSTRIAS DE PAPEL Y DE PRODUCTOS DE PAPEL; IMPRESIÓN Y REPRODUCCIÓN DE GRABACIONES","Emisiones - tratamiento partículas","ttt","tt","",""]
[32333333333,"INDUSTRIAS DE PAPEL Y DE PRODUCTOS DE PAPEL; IMPRESIÓN Y REPRODUCCIÓN DE GRABACIONES","Control Ruido","q","q","",""]
[32333333333,"INDUSTRIAS DE PAPEL Y DE PRODUCTOS DE PAPEL; IMPRESIÓN Y REPRODUCCIÓN DE GRABACIONES","Control Emisiones - Combustibles","yyy","y","",""]
[32333333333,"INDUSTRIAS DE PAPEL Y DE PRODUCTOS DE PAPEL; IMPRESIÓN Y REPRODUCCIÓN DE GRABACIONES","Emisiones - tratamiento partículas","ppp","pp","",""]
[33333333333,"INDUSTRIAS DE ALIMENTOS","Control Emisiones - Combustibles","rr","rrr","",""]
[66666666666,"INDUSTRIA DEL CUERO Y SUS PRODUCTOS","Control Emisiones - Combustibles","er","erere","",""]
[66666666666,"INDUSTRIA DEL CUERO Y SUS PRODUCTOS","Emisiones - tratamiento partículas/gases","s","s","",""]
[88888888888,"FABRICACIÓN DE OTROS PRODUCTOS MINERALES NO METÁLICOS","Emisión Cocción/Fundición","G","G","",""]
[88888888888,"FABRICACIÓN DE OTROS PRODUCTOS MINERALES NO METÁLICOS","Emisiones - partículas/gases","3","3","",""]

{"sheet":"INDUSTRIAS_ALIMENTOS_IMP","index":11,"n_rows":41,"n_cols":21,"rows_kept":41,"cut":false,"hidden":false,"merged":[[19,7,19,8],[20,7,20,8],[21,7,21,8],[22,7,22,8],[23,7,23,8],[33,12,33,15],[36,2,38,8],[41,2,41,3],[42,2,42,3],[44,2,44,3],[33,7,35,8],[46,2,46,3],[29,2,31,2],[29,4,29,6],[30,4,30,6],[31,4,31,6],[33,2,35,6],[30,7,30,8],[31,7,31,8],[23,4,23,6],[24,4,24,6],[25,4,25,6],[26,4,26,6],[27,4,27,6],[28,4,28,6],[29,7,29,8],[24,7,24,8],[25,7,25,8],[26,7,26,8],[27,7,27,8],[28,7,28,8],[14,2,14,5],[15,2,15,8],[16,2,17,8],[18,4,18,6],[18,7,18,8],[14,6,14,8],[19,2,28,2],[19,4,19,6],[20,4,20,6],[21,4,21,6],[22,4,22,6],[8,2,8,5],[8,6,8,8],[9,2,9,5],[10,2,13,5],[10,7,10,8],[11,7,11,8],[12,7,12,8],[13,7,13,8],[9,6,9,8],[7,2,7,5],[7,6,7,8],[4,2,4,8],[5,2,5,5],[5,6,5,8],[6,2,6,5],[6,6,6,8]]}
[]
[null,"VISTA DE IMPRESIÓN DE FICHA"]
[]
[null,null,"Dirección General de Asuntos Ambientales de Industria",null,null,null,null,"Fecha de Impresión:",{"$f":"TODAY()","v":"2019-08-22"}]
[null,null,"INDUSTRIAS DE ALIMENTOS"]
[null,null,"N° DE REGISTRO",null,null,null,"yuu"]
[null,null,"RAZÓN SOCIAL",null,null,null,"trtrtrtrt"]
[null,null,"RUC",null,null,null,11111111111]
[null,null,"ACTIVIDAD INDUSTRIAL MANUFACTURERA DECLARADA POR EL ADMINISTRADO",null,null,null,"ererer"]
[null,null,"CIIU REV. 4, SECCIÓN C - CLASE N°",null,null,null,{"$f":"INDUSTRIAS_ALIMENTOS!O5","v":"Seleccione"}]
[null,null,"UBICACIÓN DE LA INSTALACIÓN INDUSTRIAL",null,null,null,"Departamento",{"$f":"INDUSTRIAS_ALIMENTOS!H11","v":"AMAZONAS"}]
[null,null,null,null,null,null,"Provincia",{"$f":"INDUSTRIAS_ALIMENTOS!H12","v":"CHACHAPOYAS"}]
[null,null,null,null,null,null,"Diistrito",{"$f":"INDUSTRIAS_ALIMENTOS!H13","v":"CHACHAPOYAS"}]
[null,null,null,null,null,null,"Dirección"]
[null,null,"RANGO EMPRESARIAL DECLARADO POR EL ADMINISTRADO",null,null,null,{"$f":"INDUSTRIAS_ALIMENTOS!Q24","v":"Seleccione"}]
[]
[null,null,"CONDICIONES DE ADECUACIÓN ESTABLECIDAS EN EL DS 006-2019-PRODUCE"]
[null,null,null,null,null,null,null,null,null,null,null,null,null,null,null,null,null,null,null,null,"Condiciones"]
[null,null,"TIPO","N°","CONDICIONES ",null,null,"OPCIONES"]
[null,null,"Generales",1,{"$f":"INDUSTRIAS_ALIMENTOS!E20","v":"Los efluentes (de procesos industriales) son vertidos a un cuerpo/curso natural de agua."},null,null,{"$f":"INDUSTRIAS_ALIMENTOS!I20","v":"NO"},"Seleccione"]
[null,null,null,2,{"$f":"INDUSTRIAS_ALIMENTOS!E21","v":"Generen licor negro como efluente."},null,null,{"$f":"INDUSTRIAS_ALIMENTOS!I21","v":"NO"},"Seleccione"]
[null,null,null,3,{"$f":"INDUSTRIAS_ALIMENTOS!E22","v":"La actividad se realiza dentro de un ANP o zona de amortiguamiento."},null,null,{"$f":"INDUSTRIAS_ALIMENTOS!I22","v":"NO"},"Seleccione"]
[null,null,null,4,{"$f":"INDUSTRIAS_ALIMENTOS!E23","v":"La actividad se realiza a una distancia menor o igual de 250 m de ecosistemas frágiles."},null,null,{"$f":"INDUSTRIAS_ALIMENTOS!I23","v":"NO"},"Seleccione"]
[null,null,null,5,{"$f":"INDUSTRIAS_ALIMENTOS!E24","v":"La actividad se realiza dentro de comunidades campesinas, nativas o pueblos indígenas."},null,null,{"$f":"INDUSTRIAS_ALIMENTOS!I24","v":"NO"},"Seleccione"]
[null,null,null,6,{"$f":"INDUSTRIAS_ALIMENTOS!E25","v":"Se realizan procesos mecanizados (no manuales) que generan emisiones difusas o fugitivas de material particulado y emisiones gaseosas (no incluye fuentes fijas ni móviles) colindantes con viviendas y no están encapsulados."},null,null,{"$f":"INDUSTRIAS_ALIMENTOS!I25","v":"NO"},"Seleccione"]
[null,null,null,7,{"$f":"INDUSTRIAS_ALIMENTOS!E26","v":"El proceso productivo usa agua de una fuente natural y no cuenta con la autorización de la autoridad de recursos hídricos correspondientes."},null,null,{"$f":"INDUSTRIAS_ALIMENTOS!I26","v":"NO"},"Seleccione"]
[null,null,null,8,{"$f":"INDUSTRIAS_ALIMENTOS!E27","v":"Genera ruido de los procesos mecanizados sin contar con alguna medida de mitigación (barreras acústicas, encapsulamiento u otros) y colindan con viviendas."},null,null,{"$f":"INDUSTRIAS_ALIMENTOS!I27","v":"NO"},"Seleccione"]
[null,null,null,9,{"$f":"INDUSTRIAS_ALIMENTOS!E28","v":"Utilizan combustibles sólidos o líquidos sin contar con sistemas de control de emisiones (filtros manga, lavador Venturi, precipitados electrostático u otros)."},null,null,{"$f":"INDUSTRIAS_ALIMENTOS!I28","v":"NO"},"Seleccione"]
[null,null,null,10,{"$f":"INDUSTRIAS_ALIMENTOS!E29","v":"Genera emisiones atmosféricas de procesos industriales sin contar con sistemas de tratamiento de partículas y/o gases."},null,null,{"$f":"INDUSTRIAS_ALIMENTOS!I29","v":"NO"},"Seleccione"]
[null,null,"Específica",11,{"$f":"INDUSTRIAS_ALIMENTOS!E30","v":"Comprende cosecha o manejo de cultivos utilizando procedimientos que involucren quema.\n"},null,null,{"$f":"INDUSTRIAS_ALIMENTOS!I30","v":"Seleccione"},"Seleccione"]
[null,null,null,"-","-",null,null,"-","Seleccione"]
[null,null,null,"-","-",null,null,"-","Seleccione"]
[]
[null,null,"INSTRUMENTO A PRESENTAR:",null,null,null,null,{"$f":"IF(INDUSTRIAS_ALIMENTOS!H34 <>\"\",INDUSTRIAS_ALIMENTOS!H34,\"NO PROCESADO\")","v":"NO PROCESADO"}]
[null,null,null,null,null,null,null,null,null,null,"COMPLETE DATOS GENERALES"]
[]
[null,null,"Nota: Esta información es proporcionada por el administrado, con carácter de Declaración Jurada, sujeta a fiscalización; y, en caso la información proporcionada no sea veraz está sujeta al procedimiento y a las sanciones previstas en el Texto Único Ordenado de la Ley N° 27444,  Ley del Procedimiento Administrativo General, aprobado por el Decreto Supremo N° 006-2017-JUS."]
[]
[]
[]
[null,null,null,null,null,null,null,null,null,null,null,null,null,null,"N25=2;N26=2;N27=2;N28=2;N29=2"]

{"sheet":"INDUSTRIAS_ALIMENTOS","index":12,"n_rows":45,"n_cols":21,"rows_kept":45,"cut":false,"hidden":false,"merged":[[33,12,33,15],[36,2,38,8],[41,2,41,3],[42,2,42,3],[44,2,44,3],[33,7,35,8],[46,2,46,3],[29,2,31,2],[29,4,29,6],[30,4,30,6],[31,4,31,6],[33,2,35,6],[28,4,28,6],[14,2,14,5],[15,2,15,8],[16,2,17,8],[18,4,18,6],[18,7,18,8],[19,2,28,2],[19,4,19,6],[20,4,20,6],[21,4,21,6],[22,4,22,6],[23,4,23,6],[24,4,24,6],[25,4,25,6],[26,4,26,6],[27,4,27,6],[9,2,9,5],[10,2,13,5],[10,7,10,8],[11,7,11,8],[12,7,12,8],[7,2,7,5],[4,2,4,8],[5,2,5,5],[6,2,6,5],[8,2,8,5]]}
[]
[]
[]
[null,null,null,null,null,null,null,null,null,null,null,null,null,null,null,1,"Seleccione"]
[null,null,"INDUSTRIAS DE ALIMENTOS",null,null,null,null,null,null,null,null,null,null,{"$f":"IF(O5=Q4,1,IF(O5=Q5,2,IF(O5=Q6,3,IF(O5=Q7,4,IF(O5=Q8,5,IF(O5=Q9,6,IF(O5=Q10,7,IF(O5=Q11,8,IF(O5=Q12,9,IF(O5=Q13,10,IF(O5=Q14,11,IF(O5=Q15,12,IF(O5=Q16,13,IF(O5=Q17,14,))))))))))))))","v":1},"Seleccione",2,"1010 - Elaboración y conservación de carne"]
[null,null,"N° DE REGISTRO",null,null,null,null,null,null,null,null,null,null,null,null,3,"1030 - Elaboración y conservación de frutas, legumbres y hortalizas"]
[null,null,"RAZÓN SOCIAL",null,null,null,null,null,null,null,null,null,null,null,null,4,"1040 - Elaboración de aceites y grasas de origen vegetal y animal"]
[null,null,"RUC",null,null,null,null,null,null,null,null,null,null,null,null,5,"1050 - Elaboración de productos lácteos",null,"Clase"]
[null,null,"ACTIVIDAD INDUSTRIAL MANUFACTURERA DECLARADA POR EL ADMINISTRADO",null,null,null,null,null,null,null,null,null,null,null,null,6,"1061 - Elaboración de productos de molinería",null,1101,"Destilación, rectificación y mezcla de bebidas alcohólicas"]
[null,null,"CIIU REV. 4, SECCIÓN C - CLASE N°",null,null,null,null,null,"1313-Acabado de productos textiles",null,null,null,null,null,null,7,"1062 - Elaboración de almidones y productos derivados del almidón"]
[null,null,"UBICACIÓN DE LA INSTALACIÓN INDUSTRIAL",null,null,null,"Departamento","AMAZONAS",null,null,null,null,null,null,null,8,"1071 - Elaboración de productos de panadería"]
[null,null,null,null,null,null,"Provincia","CHACHAPOYAS",null,null,null,null,null,null,null,9,"1072 - Elaboración de azúcar"]
[null,null,null,null,null,null,"Diistrito","CHACHAPOYAS",null,null,null,null,null,null,null,10,"1073 - Elaboración de cacao y chocolate y de productos de confitería"]
[null,null,null,null,null,null,"Dirección",null,null,null,null,null,null,null,null,11,"1074 - Elaboración de macarrones, fideos, alcuzcuz y productos farináceos similares"]
[null,null,"RANGO EMPRESARIAL DECLARADO POR EL ADMINISTRADO",null,null,null,null,null,null,null,null,null,null,null,null,12,"1075 - Elaboración de comidas y platos preparados"]
[null,null,null,null,null,null,null,null,null,null,null,null,null,null,null,13,"1079 - Elaboración de otros productos alimenticios n.c.p"]
[null,null,"CONDICIONES DE ADECUACIÓN ESTABLECIDAS EN EL DS 006-2019-PRODUCE",null,null,null,null,null,null,null,null,null,null,null,null,14,"1080 - Elaboración de piensos preparados para animales"]
[null,null,null,null,null,null,null,null,null,null,null,null,null,null,null,null,null,null,"Seleccione",null,"Condiciones"]
[null,null,"TIPO","N°","CONDICIONES ",null,null,"OPCIONES",null,null,null,null,null,null,null,null,null,null,"SI"]
[null,null,"Generales",1,"Los efluentes (de procesos industriales) son vertidos a un cuerpo/curso natural de agua.",null,null,null,"NO",null,null,null,null,"Seleccione",null,null,null,null,"NO"]
[null,null,null,2,"Generen licor negro como efluente.",null,null,null,"NO",null,null,null,null,"Seleccione"]
[null,null,null,3,"La actividad se realiza dentro de un ANP o zona de amortiguamiento.",null,null,null,"NO",null,null,null,null,"Seleccione",null,null,null,null,"Seleccione"]
[null,null,null,4,"La actividad se realiza a una distancia menor o igual de 250 m de ecosistemas frágiles.",null,null,null,"NO",null,null,null,null,"Seleccione",null,null,{"$f":"IF(Q24=S22,1,IF(Q24=S23,2,IF(Q24=S24,3,IF(Q24=S25,4,IF(Q24=S26,5,)))))","v":1},null,"GRAN EMPRESA"]
[null,null,null,5,"La actividad se realiza dentro de comunidades campesinas, nativas o pueblos indígenas.",null,null,null,"NO",null,null,null,null,"Seleccione",null,null,"Seleccione",null,"MEDIANA EMPRESA"]
[null,null,null,6,"Se realizan procesos mecanizados (no manuales) que generan emisiones difusas o fugitivas de material particulado y emisiones gaseosas (no incluye fuentes fijas ni móviles) colindantes con viviendas y no están encapsulados.",null,null,null,"NO",null,null,null,null,"Seleccione",null,null,null,null,"PEQUEÑA EMPRESA"]
[null,null,null,7,"El proceso productivo usa agua de una fuente natural y no cuenta con la autorización de la autoridad de recursos hídricos correspondientes.",null,null,null,"NO",null,null,null,null,"Seleccione",null,null,null,null,"MICRO EMPRESA"]
[null,null,null,8,"Genera ruido de los procesos mecanizados sin contar con alguna medida de mitigación (barreras acústicas, encapsulamiento u otros) y colindan con viviendas.",null,null,null,"NO",null,null,null,null,"Seleccione"]
[null,null,null,9,"Utilizan combustibles sólidos o líquidos sin contar con sistemas de control de emisiones (filtros manga, lavador Venturi, precipitados electrostático u otros).",null,null,null,"NO",null,null,null,null,"Seleccione"]
[null,null,null,10,"Genera emisiones atmosféricas de procesos industriales sin contar con sistemas de tratamiento de partículas y/o gases.",null,null,null,"NO",null,null,{"$f":"IF(AND(OR($Q$23=2,$Q$23=3,$Q$23=4),OR($N$25=\"SI\",$N$26=\"SI\",$N$27=\"SI\",$N$28=\"SI\",$N$29=\"SI\"),OR($N$5=2,$N$5=7,$N$5=3,$N$5=4,$N$5=5,$N$5=6,$N$5=14,$N$5=8,$N$5=9,$N$5=10,$N$5=11,$N$5=12,$N$5=13)),\"DAA\",\"TT\")","v":"TT"},null,"Seleccione"]
[null,null,"Específica",11,"Comprende cosecha o manejo de cultivos utilizando procedimientos que involucren quema.\n",null,null,null,"Seleccione",null,null,{"$f":"IF(AND(N30=\"SI\",OR($N$5=9),OR($Q$23=2,$Q$23=3,$Q$23=4)),\"PAMA*\",\"TT\")","v":"TT"},null,"Seleccione"]
[null,null,null,null,null,null,null,null,"Seleccione",null,null,{"$f":"IF(AND($N$20=\"Seleccione\",$N$21=\"Seleccione\",$N$22=\"Seleccione\",$N$23=\"Seleccione\",$N$24=\"Seleccione\",N25=\"Seleccione\",N26=\"Seleccione\",N27=\"Seleccione\",N28=\"Seleccione\",N29=\"Seleccione\"),\"falta\",IF(AND($N$20=\"NO\",$N$21=\"NO\",$N$22=\"NO\",$N$23=\"NO\",$N$24=\"NO\",N25=\"NO\",N26=\"NO\",N27=\"NO\",N28=\"NO\",N29=\"NO\",N30=\"NO\"),\"NO REQUIERE\"))","v":"falta"}]
[null,null,null,null,null,null,null,null,"Seleccione",null,null,{"$f":"IF(AND(OR($Q$23=2,$Q$23=3,$Q$23=4),OR($N$20=\"SI\",$N$21=\"SI\",$N$22=\"SI\",$N$23=\"SI\",$N$24=\"SI\"),OR($N$5=2,$N$5=14,$N$5=3,$N$5=4,$N$5=5,$N$5=6,$N$5=7,$N$5=8,$N$5=9,$N$5=10,$N$5=11,$N$5=12,$N$5=13)),\"PAMA\",\"TT\")","v":"TT"}]
[]
[null,null,"INSTRUMENTO A PRESENTAR:",null,null,null,null,null,null,null,null,{"$f":"IF(AND(OR(N32=\"SI\"),OR($N$5=2,$N$5=3,$N$5=4,$N$5=5),OR($Q$23=5)),\"DAA*\",\"ww\")","v":"ww"}]
[null,null,null,null,null,null,null,null,null,null,"DAA",{"$f":"IF(AND(OR(N31=\"SI\"),OR($N$5=1,$N$5=2,$N$5=3,$N$5=4),OR($Q$23=5,Q23=2,Q23=3,Q23=4)),\"DAA*\",\"ww\")","v":"ww"}]
[]
[null,null,"Nota: Esta información es proporcionada por el administrado, con carácter de Declaración Jurada, sujeta a fiscalización; y, en caso la información proporcionada no sea veraz está sujeta al procedimiento y a las sanciones previstas en el Texto Único Ordenado de la Ley N° 27444,  Ley del Procedimiento Administrativo General, aprobado por el Decreto Supremo N° 006-2017-JUS."]
[null,null,null,null,null,null,null,null,null,null,null,{"$f":"IF(L31=\"falta\",\"COMPLETE DATOS GENERALES\",IF(L31=\"NO REQUIERE\",\"NO REQUIERE\",IF(AND(OR(L30=\"PAMA*\",L32=\"PAMA\"),OR(L29=\"DAA\",L34=\"DAA\")),\"PAMA\",IF(AND(L32=\"TT\",OR(L29=\"DAA\",L30=\"DAA*\",,L34=\"DAA*\",L35=\"DAA*\")),\"DAA\",IF(AND(OR(L32=\"PAMA\",L30=\"PAMA*\"),L34=\"ww\"),\"PAMA\",\"REVISE LOS DATOS INGRESADOS\")))))","v":"COMPLETE DATOS GENERALES"}]
[]
[]
[null,null,null,null,null,null,null,null,null,null,null,null,null,null,"N25=2;N26=2;N27=2;N28=2;N29=2"]
[null,null,"Leyenda"]
[null,null,"Objeto desglozable"]
[]
[null,null,"Registro de información"]

{"sheet":"INDUSTRIAS_BEBIDAS_IMP","index":13,"n_rows":43,"n_cols":21,"rows_kept":43,"cut":false,"hidden":false,"merged":[[9,2,9,5],[9,6,9,8],[6,2,6,8],[7,2,7,5],[7,6,7,8],[8,2,8,5],[8,6,8,8],[10,2,10,5],[10,6,10,8],[11,2,11,5],[12,2,15,5],[12,7,12,8],[13,7,13,8],[14,7,14,8],[15,7,15,8],[11,6,11,8],[21,2,30,2],[21,4,21,6],[22,4,22,6],[23,4,23,6],[24,4,24,6],[16,2,16,5],[17,2,17,8],[18,2,19,8],[20,4,20,6],[20,7,20,8],[16,6,16,8],[33,7,33,8],[25,4,25,6],[26,4,26,6],[27,4,27,6],[28,4,28,6],[29,4,29,6],[30,4,30,6],[31,7,31,8],[32,7,32,8],[26,7,26,8],[27,7,27,8],[28,7,28,8],[29,7,29,8],[30,7,30,8],[48,2,48,3],[31,2,33,2],[31,4,31,6],[32,4,32,6],[33,4,33,6],[35,2,37,6],[44,4,44,5],[35,12,35,15],[38,2,40,8],[43,2,43,3],[44,2,44,3],[46,2,46,3],[35,7,37,8],[21,7,21,8],[22,7,22,8],[23,7,23,8],[24,7,24,8],[25,7,25,8]]}
[]
[null,"VISTA DE IMPRESIÓN DE FICHA"]
[]
[]
[null,null,"Dirección General de Asuntos Ambientales de Industria",null,null,null,null,"Fecha de Impresión:",{"$f":"TODAY()","v":"2019-08-22"}]
[]
[null,null,"INDUSTRIAS DE BEBIDAS"]
[null,null,"N° DE REGISTRO"]
[null,null,"RAZÓN SOCIAL"]
[null,null,"RUC",null,null,null,44444444444]
[null,null,"ACTIVIDAD INDUSTRIAL MANUFACTURERA DECLARADA POR EL ADMINISTRADO"]
[null,null,"CIIU REV. 4, SECCIÓN C - CLASE N°",null,null,null,{"$f":"INDUSTRIAS_BEBIDAS!O5","v":"Seleccione"}]
[null,null,"UBICACIÓN DE LA INSTALACIÓN INDUSTRIAL",null,null,null,"Departamento",{"$f":"INDUSTRIAS_BEBIDAS!H11","v":"AMAZONAS"}]
[null,null,null,null,null,null,"Provincia",{"$f":"INDUSTRIAS_BEBIDAS!H12","v":"CHACHAPOYAS"}]
[null,null,null,null,null,null,"Diistrito",{"$f":"INDUSTRIAS_BEBIDAS!H13","v":"CHACHAPOYAS"}]
[null,null,null,null,null,null,"Dirección"]
[null,null,"RANGO EMPRESARIAL DECLARADO POR EL ADMINISTRADO",null,null,null,{"$f":"INDUSTRIAS_BEBIDAS!P16","v":"Seleccione"},null,"MEDIANA EMPRESA"]
[]
[null,null,"CONDICIONES DE ADECUACIÓN ESTABLECIDAS EN EL DS 006-2019-PRODUCE"]
[null,null,null,null,null,null,null,null,null,null,null,null,null,null,null,null,null,null,null,null,"Condiciones"]
[null,null,"TIPO","N°","CONDICIONES ",null,null,"OPCIONES"]
[null,null,"Generales",1,{"$f":"INDUSTRIAS_BEBIDAS!E20","v":"Los efluentes (de procesos industriales) son vertidos a un cuerpo/curso natural de agua."},null,null,{"$f":"INDUSTRIAS_BEBIDAS!I20","v":"NO"}]
[null,null,null,2,{"$f":"INDUSTRIAS_BEBIDAS!E21","v":"Generen licor negro como efluente."},null,null,{"$f":"INDUSTRIAS_BEBIDAS!I21","v":"NO"}]
[null,null,null,3,{"$f":"INDUSTRIAS_BEBIDAS!E22","v":"La actividad se realiza dentro de un ANP o zona de amortiguamiento."},null,null,{"$f":"INDUSTRIAS_BEBIDAS!I22","v":"NO"}]
[null,null,null,4,{"$f":"INDUSTRIAS_BEBIDAS!E23","v":"La actividad se realiza a una distancia menor o igual de 250 m de ecosistemas frágiles."},null,null,{"$f":"INDUSTRIAS_BEBIDAS!I23","v":"NO"}]
[null,null,null,5,{"$f":"INDUSTRIAS_BEBIDAS!E24","v":"La actividad se realiza dentro de comunidades campesinas, nativas o pueblos indígenas."},null,null,{"$f":"INDUSTRIAS_BEBIDAS!I24","v":"NO"}]
[null,null,null,6,{"$f":"INDUSTRIAS_BEBIDAS!E25","v":"Se realizan procesos mecanizados (no manuales) que generan emisiones difusas o fugitivas de material particulado y emisiones gaseosas (no incluye fuentes fijas ni móviles) colindantes con viviendas y no están encapsulados."},null,null,{"$f":"INDUSTRIAS_BEBIDAS!I25","v":"NO"}]
[null,null,null,7,{"$f":"INDUSTRIAS_BEBIDAS!E26","v":"El proceso productivo usa agua de una fuente natural y no cuenta con la autorización de la autoridad de recursos hídricos correspondientes."},null,null,{"$f":"INDUSTRIAS_BEBIDAS!I26","v":"NO"}]
[null,null,null,8,{"$f":"INDUSTRIAS_BEBIDAS!E27","v":"Genera ruido de los procesos mecanizados sin contar con alguna medida de mitigación (barreras acústicas, encapsulamiento u otros) y colindan con viviendas."},null,null,{"$f":"INDUSTRIAS_BEBIDAS!I27","v":"NO"}]
[null,null,null,9,{"$f":"INDUSTRIAS_BEBIDAS!E28","v":"Utilizan combustibles sólidos o líquidos sin contar con sistemas de control de emisiones (filtros manga, lavador Venturi, precipitados electrostático u otros)."},null,null,{"$f":"INDUSTRIAS_BEBIDAS!I28","v":"NO"}]
[null,null,null,10,{"$f":"INDUSTRIAS_BEBIDAS!E29","v":"Genera emisiones atmosféricas de procesos industriales sin contar con sistemas de tratamiento de partículas y/o gases."},null,null,{"$f":"INDUSTRIAS_BEBIDAS!I29","v":"NO"}]
[null,null,"Específica",11,{"$f":"INDUSTRIAS_BEBIDAS!E30","v":"Para su proceso productivo emplea agua de alguna fuente natural subterránea y no cuenta con la autorización de la autoridad de recursos hídricos correspondientes.\n"},null,null,{"$f":"INDUSTRIAS_BEBIDAS!I30","v":"NO"}]
[null,null,null,"-","-",null,null,"-","Seleccione"]
[null,null,null,"-","-",null,null,"-","Seleccione"]
[]
[null,null,"INSTRUMENTO A PRESENTAR:",null,null,null,null,{"$f":"IF(INDUSTRIAS_BEBIDAS!H34 <>\"\",INDUSTRIAS_BEBIDAS!H34,\"NO PROCESADO\")","v":"NO PROCESADO"}]
[]
[]
[null,null,"Nota: Esta información es proporcionada por el administrado, con carácter de Declaración Jurada, sujeta a fiscalización; y, en caso la información proporcionada no sea veraz está sujeta al procedimiento y a las sanciones previstas en el Texto Único Ordenado de la Ley N° 27444,  Ley del Procedimiento Administrativo General, aprobado por el Decreto Supremo N° 006-2017-JUS."]
[]
[]
[]
[null,null,null,null,null,null,null,null,null,null,null,null,null,null,"N25=2;N26=2;N27=2;N28=2;N29=2"]

{"sheet":"INDUSTRIAS_BEBIDAS","index":14,"n_rows":45,"n_cols":21,"rows_kept":45,"cut":false,"hidden":false,"merged":[[7,2,7,5],[4,2,4,8],[5,2,5,5],[6,2,6,5],[8,2,8,5],[9,2,9,5],[10,2,13,5],[10,7,10,8],[11,7,11,8],[12,7,12,8],[28,4,28,6],[14,2,14,5],[15,2,15,8],[16,2,17,8],[18,4,18,6],[18,7,18,8],[19,2,28,2],[19,4,19,6],[20,4,20,6],[21,4,21,6],[22,4,22,6],[23,4,23,6],[24,4,24,6],[25,4,25,6],[26,4,26,6],[27,4,27,6],[46,2,46,3],[29,2,31,2],[29,4,29,6],[30,4,30,6],[31,4,31,6],[33,2,35,6],[33,12,33,15],[36,2,38,8],[41,2,41,3],[42,2,42,3],[44,2,44,3],[33,7,35,8]]}
[]
[]
[]
[]
[null,null,"INDUSTRIAS DE BEBIDAS",null,null,null,null,null,null,null,null,null,null,{"$f":"IF(O5=Q5,1,IF(O5=Q6,2,IF(O5=Q7,3,IF(O5=Q8,4,IF(O5=Q9,5,IF(O5=Q10,6,IF(O5=Q11,7,)))))))","v":1},"Seleccione",1,"Seleccione"]
[null,null,"N° DE REGISTRO",null,null,null,null,null,null,null,null,null,null,null,null,2,"1101-Destilación, rectificación y mezcla de bebidas alcohólicas"]
[null,null,"RAZÓN SOCIAL",null,null,null,null,null,null,null,null,null,null,null,null,3,"1102-Elaboración de vinos"]
[null,null,"RUC",null,null,null,"fdf",null,null,null,null,null,null,null,null,4,"1103-Elaboración de bebidas malteadas y de malta",null,"Clase"]
[null,null,"ACTIVIDAD INDUSTRIAL MANUFACTURERA DECLARADA POR EL ADMINISTRADO",null,null,null,null,null,null,null,null,null,null,null,null,5,"1104-Elaboración de bebidas no alcohólicas; producción de aguas minerales y otras aguas embotelladas",null,1101,"Destilación, rectificación y mezcla de bebidas alcohólicas"]
[null,null,"CIIU REV. 4, SECCIÓN C - CLASE N°",null,null,null,null,null,"1102-Elaboración de vinos",null,null,null,null,null,null,6]
[null,null,"UBICACIÓN DE LA INSTALACIÓN INDUSTRIAL",null,null,null,"Departamento","AMAZONAS",null,null,null,null,null,null,null,7,"Seleccione"]
[null,null,null,null,null,null,"Provincia","CHACHAPOYAS",null,null,null,null,null,null,null,null,null,null,"Seleccione"]
[null,null,null,null,null,null,"Diistrito","CHACHAPOYAS",null,null,null,null,null,null,null,null,null,null,"GRAN EMPRESA"]
[null,null,null,null,null,null,"Dirección",null,null,null,null,null,null,null,null,null,null,null,"MEDIANA EMPRESA"]
[null,null,"RANGO EMPRESARIAL DECLARADO POR EL ADMINISTRADO",null,null,null,null,null,null,null,null,null,null,null,null,{"$f":"IF(P16=S12,1,IF(P16=S13,2,IF(P16=S14,3,IF(P16=S15,4,IF(P16=S16,5,)))))","v":1},null,null,"PEQUEÑA EMPRESA"]
[null,null,null,null,null,null,null,null,null,null,null,null,null,null,null,"Seleccione",null,null,"MICRO EMPRESA"]
[null,null,"CONDICIONES DE ADECUACIÓN ESTABLECIDAS EN EL DS 006-2019-PRODUCE"]
[null,null,null,null,null,null,null,null,null,null,null,null,null,null,null,null,null,null,"Seleccione",null,"Condiciones"]
[null,null,"TIPO","N°","CONDICIONES ",null,null,"OPCIONES",null,null,null,null,null,null,null,null,null,null,"SI"]
[null,null,"Generales",1,"Los efluentes (de procesos industriales) son vertidos a un cuerpo/curso natural de agua.",null,null,null,"NO",null,null,null,null,"Seleccione",null,null,null,null,"NO"]
[null,null,null,2,"Generen licor negro como efluente.",null,null,null,"NO",null,null,null,null,"Seleccione"]
[null,null,null,3,"La actividad se realiza dentro de un ANP o zona de amortiguamiento.",null,null,null,"NO",null,null,null,null,"Seleccione"]
[null,null,null,4,"La actividad se realiza a una distancia menor o igual de 250 m de ecosistemas frágiles.",null,null,null,"NO",null,null,null,null,"Seleccione"]
[null,null,null,5,"La actividad se realiza dentro de comunidades campesinas, nativas o pueblos indígenas.",null,null,null,"NO",null,null,null,null,"Seleccione"]
[null,null,null,6,"Se realizan procesos mecanizados (no manuales) que generan emisiones difusas o fugitivas de material particulado y emisiones gaseosas (no incluye fuentes fijas ni móviles) colindantes con viviendas y no están encapsulados.",null,null,null,"NO",null,null,null,null,"Seleccione"]
[null,null,null,7,"El proceso productivo usa agua de una fuente natural y no cuenta con la autorización de la autoridad de recursos hídricos correspondientes.",null,null,null,"NO",null,null,null,null,"Seleccione"]
[null,null,null,8,"Genera ruido de los procesos mecanizados sin contar con alguna medida de mitigación (barreras acústicas, encapsulamiento u otros) y colindan con viviendas.",null,null,null,"NO",null,null,null,null,"Seleccione"]
[null,null,null,9,"Utilizan combustibles sólidos o líquidos sin contar con sistemas de control de emisiones (filtros manga, lavador Venturi, precipitados electrostático u otros).",null,null,null,"NO",null,null,null,null,"Seleccione"]
[null,null,null,10,"Genera emisiones atmosféricas de procesos industriales sin contar con sistemas de tratamiento de partículas y/o gases.",null,null,null,"NO",null,null,{"$f":"IF(AND(OR($P$15=2,$P$15=3,$P$15=4),OR($N$25=\"SI\",$N$26=\"SI\",$N$27=\"SI\",$N$28=\"SI\",$N$29=\"SI\"),OR($N$5=2,$N$5=3,$N$5=4,$N$5=5)),\"DAA\",\"TT\")","v":"TT"},null,"Seleccione"]
[null,null,"Específica",11,"Para su proceso productivo emplea agua de alguna fuente natural subterránea y no cuenta con la autorización de la autoridad de recursos hídricos correspondientes.\n",null,null,null,"NO",null,null,{"$f":"IF(AND(N30=\"SI\",OR($N$5=2,$N$5=3,$N$5=4,$N$5=5),OR($P$15=2,$P$15=3,$P$15=4)),\"DAA*\",\"TT\")","v":"TT"},null,"Seleccione"]
[null,null,null,null,null,null,null,null,"Seleccione",null,null,{"$f":"IF(OR($N$20=\"Seleccione\",$N$21=\"Seleccione\",$N$22=\"Seleccione\",$N$23=\"Seleccione\",$N$24=\"Seleccione\",N25=\"Seleccione\",N26=\"Seleccione\",N27=\"Seleccione\",N28=\"Seleccione\",N29=\"Seleccione\",N30=\"Seleccione\"),\"falta\",IF(AND($N$20=\"NO\",$N$21=\"NO\",$N$22=\"NO\",$N$23=\"NO\",$N$24=\"NO\",N25=\"NO\",N26=\"NO\",N27=\"NO\",N28=\"NO\",N29=\"NO\",N30=\"NO\"),\"NO REQUIERE\",))","v":"falta"}]
[null,null,null,null,null,null,null,null,"Seleccione",null,null,{"$f":"IF(AND(OR($P$15=2,$P$15=3,$P$15=4),OR($N$20=\"SI\",$N$21=\"SI\",$N$22=\"SI\",$N$23=\"SI\",$N$24=\"SI\"),OR($N$5=2,$N$5=3,$N$5=4,$N$5=5)),\"PAMA\",\"TT\")","v":"TT"}]
[]
[null,null,"INSTRUMENTO A PRESENTAR:",null,null,null,null,null,null,null,null,{"$f":"IF(AND(OR(N32=\"SI\"),OR($N$5=2,$N$5=3,$N$5=4,$N$5=5),OR($P$15=5)),\"DAA*\",\"ww\")","v":"ww"}]
[null,null,null,null,null,null,null,null,null,null,"NO REQUIERE",{"$f":"IF(AND(OR(N31=\"SI\"),OR($N$5=2,$N$5=3,$N$5=5,$N$5=4),OR($P$15=5,P15=2,P15=3,P15=4)),\"DAA*\",\"ww\")","v":"ww"}]
[]
[null,null,"Nota: Esta información es proporcionada por el administrado, con carácter de Declaración Jurada, sujeta a fiscalización; y, en caso la información proporcionada no sea veraz está sujeta al procedimiento y a las sanciones previstas en el Texto Único Ordenado de la Ley N° 27444,  Ley del Procedimiento Administrativo General, aprobado por el Decreto Supremo N° 006-2017-JUS."]
[null,null,null,null,null,null,null,null,null,null,null,{"$f":"IF(L31=\"falta\",\"COMPLETE DATOS\",IF(L31=\"NO REQUIERE\",\"NO REQUIERE\",IF(AND(OR(L30=\"PAMA*\",L32=\"PAMA\"),OR(L29=\"DAA\",L34=\"DAA\")),\"PAMA\",IF(AND(L32=\"TT\",OR(L29=\"DAA\",L30=\"DAA*\",,L34=\"DAA*\",L35=\"DAA*\")),\"DAA\",IF(AND(OR(L32=\"PAMA\",L30=\"PAMA*\"),L34=\"ww\"),\"PAMA\",\"REVISE LOS DATOS INGRESADOS\")))))","v":"COMPLETE DATOS"}]
[]
[]
[null,null,null,null,null,null,null,null,null,null,null,null,null,null,"N25=2;N26=2;N27=2;N28=2;N29=2"]
[null,null,"Leyenda"]
[null,null,"Objeto desglozable"]
[]
[null,null,"Registro de información"]

{"sheet":"INDUSTRIAS DEL PAPEL_IMP","index":15,"n_rows":42,"n_cols":21,"rows_kept":42,"cut":false,"hidden":false,"merged":[[16,2,16,5],[23,4,23,6],[10,2,10,5],[10,6,10,8],[11,2,11,5],[12,2,15,5],[12,7,12,8],[13,7,13,8],[14,7,14,8],[15,7,15,8],[11,6,11,8],[16,6,16,8],[20,7,20,8],[21,7,21,8],[22,7,22,8],[23,7,23,8],[17,2,18,8],[19,4,19,6],[19,7,19,8],[20,2,29,2],[20,4,20,6],[21,4,21,6],[22,4,22,6],[25,7,25,8],[26,7,26,8],[27,7,27,8],[28,7,28,8],[34,12,34,15],[37,2,39,8],[42,2,42,3],[43,2,43,3],[45,2,45,3],[34,7,36,8],[47,2,47,3],[30,2,32,2],[30,4,30,6],[31,4,31,6],[32,4,32,6],[34,2,36,6],[31,7,31,8],[32,7,32,8],[24,4,24,6],[25,4,25,6],[26,4,26,6],[27,4,27,6],[28,4,28,6],[29,4,29,6],[29,7,29,8],[30,7,30,8],[24,7,24,8],[9,2,9,5],[9,6,9,8],[6,2,6,8],[7,2,7,5],[7,6,7,8],[8,2,8,5],[8,6,8,8]]}
[]
[null,"VISTA DE IMPRESIÓN DE FICHA"]
[]
[]
[null,null,"Dirección General de Asuntos Ambientales de Industria",null,null,null,null,"Fecha de Impresión:",{"$f":"TODAY()","v":"2019-08-22"}]
[]
[null,null,"INDUSTRIAS DE PAPEL Y DE PRODUCTOS DE PAPEL; IMPRESIÓN Y REPRODUCCIÓN DE GRABACIONES"]
[null,null,"N° DE REGISTRO",null,null,null,2323]
[null,null,"RAZÓN SOCIAL"]
[null,null,"RUC",null,null,null,32333333333]
[null,null,"ACTIVIDAD INDUSTRIAL MANUFACTURERA DECLARADA POR EL ADMINISTRADO"]
[null,null,"CIIU REV. 4, SECCIÓN C - CLASE N°",null,null,null,{"$f":"'INDUSTRIAS DEL PAPEL_1'!$O$5","v":"Seleccione"}]
[null,null,"UBICACIÓN DE LA INSTALACIÓN INDUSTRIAL",null,null,null,"Departamento",{"$f":"'INDUSTRIAS DEL PAPEL_1'!H11:I11","v":"AMAZONAS"}]
[null,null,null,null,null,null,"Provincia",{"$f":"'INDUSTRIAS DEL PAPEL_1'!H12:I12","v":"CHACHAPOYAS"}]
[null,null,null,null,null,null,"Diistrito",{"$f":"'INDUSTRIAS DEL PAPEL_1'!H13:I13","v":"CHACHAPOYAS"}]
[null,null,null,null,null,null,"Dirección"]
[null,null,"RANGO EMPRESARIAL DECLARADO POR EL ADMINISTRADO",null,null,null,{"$f":"'INDUSTRIAS DEL PAPEL_1'!$P$16","v":"Seleccione"}]
[null,null,{"$f":"'INDUSTRIAS DEL PAPEL_1'!$C$17","v":"CONDICIONES DE ADECUACIÓN ESTABLECIDAS EN EL DS 006-2019-PRODUCE"}]
[null,null,null,null,null,null,null,null,null,null,null,null,null,null,null,null,null,null,null,null,"Condiciones"]
[null,null,"TIPO","N°","CONDICIONES ",null,null,"OPCIONES",null,null,null,null,null,null,null,null,null,null,null,null,"Seleccione"]
[null,null,"Generales",1,{"$f":"'INDUSTRIAS DEL PAPEL_1'!$E20","v":"Los efluentes (de procesos industriales) son vertidos a un cuerpo/curso natural de agua."},null,null,{"$f":"'INDUSTRIAS DEL PAPEL_1'!$I$20","v":"NO"},null,null,null,null,null,null,null,null,null,null,null,null,"SI"]
[null,null,null,2,{"$f":"'INDUSTRIAS DEL PAPEL_1'!$E21","v":"Generen licor negro como efluente."},null,null,{"$f":"'INDUSTRIAS DEL PAPEL_1'!I21","v":"NO"},null,null,null,null,null,null,null,null,null,null,null,null,"NO"]
[null,null,null,3,{"$f":"'INDUSTRIAS DEL PAPEL_1'!$E22","v":"La actividad se realiza dentro de un ANP o zona de amortiguamiento."},null,null,{"$f":"'INDUSTRIAS DEL PAPEL_1'!I22","v":"NO"},null,null,null,null,null,null,null,null,null,null,null,null,"NO PRECISÓ"]
[null,null,null,4,{"$f":"'INDUSTRIAS DEL PAPEL_1'!$E23","v":"La actividad se realiza a una distancia menor o igual de 250 m de ecosistemas frágiles."},null,null,{"$f":"'INDUSTRIAS DEL PAPEL_1'!I23","v":"NO"}]
[null,null,null,5,{"$f":"'INDUSTRIAS DEL PAPEL_1'!$E24","v":"La actividad se realiza dentro de comunidades campesinas, nativas o pueblos indígenas."},null,null,{"$f":"'INDUSTRIAS DEL PAPEL_1'!I24","v":"NO"}]
[null,null,null,6,{"$f":"'INDUSTRIAS DEL PAPEL_1'!$E25","v":"Se realizan procesos mecanizados (no manuales) que generan emisiones difusas o fugitivas de material particulado y emisiones gaseosas (no incluye fuentes fijas ni móviles) colindantes con viviendas y no están encapsulados."},null,null,{"$f":"'INDUSTRIAS DEL PAPEL_1'!I25","v":"NO"}]
[null,null,null,7,{"$f":"'INDUSTRIAS DEL PAPEL_1'!$E26","v":"El proceso productivo usa agua de una fuente natural y no cuenta con la autorización de la autoridad de recursos hídricos correspondientes."},null,null,{"$f":"'INDUSTRIAS DEL PAPEL_1'!I26","v":"NO"}]
[null,null,null,8,{"$f":"'INDUSTRIAS DEL PAPEL_1'!$E27","v":"Genera ruido de los procesos mecanizados sin contar con alguna medida de mitigación (barreras acústicas, encapsulamiento u otros) y colindan con viviendas."},null,null,{"$f":"'INDUSTRIAS DEL PAPEL_1'!I27","v":"NO"}]
[null,null,null,9,{"$f":"'INDUSTRIAS DEL PAPEL_1'!$E28","v":"Utilizan combustibles sólidos o líquidos sin contar con sistemas de control de emisiones (filtros manga, lavador Venturi, precipitados electrostático u otros)."},null,null,{"$f":"'INDUSTRIAS DEL PAPEL_1'!I28","v":"NO"}]
[null,null,null,10,{"$f":"'INDUSTRIAS DEL PAPEL_1'!$E29","v":"Genera emisiones atmosféricas de procesos industriales sin contar con sistemas de tratamiento de partículas y/o gases."},null,null,{"$f":"'INDUSTRIAS DEL PAPEL_1'!I29","v":"NO"}]
[null,null,"Específica",11,{"$f":"'INDUSTRIAS DEL PAPEL_1'!$E30","v":"Para su proceso productivo emplea agua de alguna fuente natural subterránea y no cuenta con la autorización de la autoridad de recursos hídricos correspondientes."},null,null,{"$f":"'INDUSTRIAS DEL PAPEL_1'!I30","v":"NO"}]
[null,null,null,12,{"$f":"'INDUSTRIAS DEL PAPEL_1'!$E31","v":"Genera efluentes de procesos industriales y los vierte al sistema de alcantarillado sin tratamiento previo.\n"},null,null,{"$f":"'INDUSTRIAS DEL PAPEL_1'!I31","v":"NO"}]
[null,null,null,13,{"$f":"'INDUSTRIAS DEL PAPEL_1'!$E32","v":"Genera efluentes de procesos industriales y los vierte a un cuerpo receptor.\n"},null,null,{"$f":"'INDUSTRIAS DEL PAPEL_1'!I32","v":"NO"}]
[]
[null,null,"INSTRUMENTO A PRESENTAR:",null,null,null,null,{"$f":"IF('INDUSTRIAS DEL PAPEL_1'!$H$34<>\"\",'INDUSTRIAS DEL PAPEL_1'!$H$34,\"NO PROCESADO\")","v":"NO PROCESADO"}]
[]
[]
[null,null,"Nota: Esta información es proporcionada por el administrado, con carácter de Declaración Jurada, sujeta a fiscalización; y, en caso la información proporcionada no sea veraz está sujeta al procedimiento y a las sanciones previstas en el Texto Único Ordenado de la Ley N° 27444,  Ley del Procedimiento Administrativo General, aprobado por el Decreto Supremo N° 006-2017-JUS."]
[]
[]
[]
[null,null,null,null,null,null,null,null,null,null,null,null,null,null,"N25=2;N26=2;N27=2;N28=2;N29=2"]

{"sheet":"INDUSTRIAS DEL PAPEL_1","index":16,"n_rows":45,"n_cols":21,"rows_kept":45,"cut":false,"hidden":false,"merged":[[14,2,14,5],[30,4,30,6],[29,2,31,2],[15,2,15,8],[16,2,17,8],[18,4,18,6],[18,7,18,8],[21,4,21,6],[22,4,22,6],[23,4,23,6],[33,12,33,15],[33,2,35,6],[33,7,35,8],[24,4,24,6],[25,4,25,6],[26,4,26,6],[31,4,31,6],[42,2,42,3],[44,2,44,3],[46,2,46,3],[27,4,27,6],[28,4,28,6],[29,4,29,6],[19,2,28,2],[19,4,19,6],[20,4,20,6],[36,2,38,8],[41,2,41,3],[7,2,7,5],[4,2,4,8],[5,2,5,5],[6,2,6,5],[8,2,8,5],[9,2,9,5],[10,2,13,5],[10,7,10,8],[11,7,11,8],[12,7,12,8]]}
[]
[]
[]
[]
[null,null,"INDUSTRIAS DE PAPEL Y DE PRODUCTOS DE PAPEL; IMPRESIÓN Y REPRODUCCIÓN DE GRABACIONES",null,null,null,null,null,null,null,null,null,null,{"$f":"IF(O5=Q5,1,IF(O5=Q6,2,IF(O5=Q7,3,IF(O5=Q8,4,IF(O5=Q9,5,IF(O5=Q10,6,IF(O5=Q11,7,)))))))","v":7},"Seleccione",1,"1701-Fabricación de pasta de madera, papel y cartón"]
[null,null,"N° DE REGISTRO",null,null,null,null,null,null,null,null,null,null,null,null,2,"1702-Fabricación de papel y cartón ondulado y de envases de papel y cartón"]
[null,null,"RAZÓN SOCIAL",null,null,null,null,null,null,null,null,null,null,null,null,3,"1709-Fabricación de otros artículos de papel y cartón"]
[null,null,"RUC",null,null,null,null,null,null,null,null,null,null,null,null,4,"1811-Impresión",null,"Clase"]
[null,null,"ACTIVIDAD INDUSTRIAL MANUFACTURERA DECLARADA POR EL ADMINISTRADO",null,null,null,null,null,null,null,null,null,null,null,null,5,"1812-Actividades de servicios relacionados con la impresión",null,1101,"Destilación, rectificación y mezcla de bebidas alcohólicas"]
[null,null,"CIIU REV. 4, SECCIÓN C - CLASE N°",null,null,null,null,null,"1702-Fabricación de papel y cartón ondulado y de envases de papel y cartón",null,null,null,null,null,null,6,"1820-Reproducción de grabaciones"]
[null,null,"UBICACIÓN DE LA INSTALACIÓN INDUSTRIAL",null,null,null,"Departamento","AMAZONAS",null,null,null,null,null,null,null,7,"Seleccione"]
[null,null,null,null,null,null,"Provincia","CHACHAPOYAS",null,null,null,null,null,null,null,null,null,null,"Seleccione"]
[null,null,null,null,null,null,"Diistrito","CHACHAPOYAS",null,null,null,null,null,null,null,null,null,null,"GRAN EMPRESA"]
[null,null,null,null,null,null,"Dirección",null,null,null,null,null,null,null,null,null,null,null,"MEDIANA EMPRESA"]
[null,null,"RANGO EMPRESARIAL DECLARADO POR EL ADMINISTRADO",null,null,null,null,null,null,null,null,null,null,null,null,{"$f":"IF(P16=S12,1,IF(P16=S13,2,IF(P16=S14,3,IF(P16=S15,4,IF(P16=S16,5,)))))","v":1},null,null,"PEQUEÑA EMPRESA"]
[null,null,null,null,null,null,null,null,null,null,null,null,null,null,null,"Seleccione",null,null,"MICRO EMPRESA"]
[null,null,"CONDICIONES DE ADECUACIÓN ESTABLECIDAS EN EL DS 006-2019-PRODUCE"]
[null,null,null,null,null,null,null,null,null,null,null,null,null,null,null,null,null,null,"Seleccione",null,"Condiciones"]
[null,null,"TIPO","N°","CONDICIONES ",null,null,"OPCIONES",null,null,null,null,null,null,null,null,null,null,"SI"]
[null,null,"Generales",1,"Los efluentes (de procesos industriales) son vertidos a un cuerpo/curso natural de agua.",null,null,null,"NO",null,null,null,null,"Seleccione",null,null,null,null,"NO"]
[null,null,null,2,"Generen licor negro como efluente.",null,null,null,"NO",null,null,null,null,"Seleccione"]
[null,null,null,3,"La actividad se realiza dentro de un ANP o zona de amortiguamiento.",null,null,null,"NO",null,null,null,null,"Seleccione"]
[null,null,null,4,"La actividad se realiza a una distancia menor o igual de 250 m de ecosistemas frágiles.",null,null,null,"NO",null,null,null,null,"Seleccione"]
[null,null,null,5,"La actividad se realiza dentro de comunidades campesinas, nativas o pueblos indígenas.",null,null,null,"NO",null,null,null,null,"Seleccione"]
[null,null,null,6,"Se realizan procesos mecanizados (no manuales) que generan emisiones difusas o fugitivas de material particulado y emisiones gaseosas (no incluye fuentes fijas ni móviles) colindantes con viviendas y no están encapsulados.",null,null,null,"NO",null,null,null,null,"Seleccione"]
[null,null,null,7,"El proceso productivo usa agua de una fuente natural y no cuenta con la autorización de la autoridad de recursos hídricos correspondientes.",null,null,null,"NO",null,null,null,null,"Seleccione"]
[null,null,null,8,"Genera ruido de los procesos mecanizados sin contar con alguna medida de mitigación (barreras acústicas, encapsulamiento u otros) y colindan con viviendas.",null,null,null,"NO",null,null,null,null,"Seleccione"]
[null,null,null,9,"Utilizan combustibles sólidos o líquidos sin contar con sistemas de control de emisiones (filtros manga, lavador Venturi, precipitados electrostático u otros).",null,null,null,"NO",null,null,null,null,"Seleccione"]
[null,null,null,10,"Genera emisiones atmosféricas de procesos industriales sin contar con sistemas de tratamiento de partículas y/o gases.",null,null,null,"NO",null,null,{"$f":"IF(AND(OR($P$15=2,$P$15=3,$P$15=4),OR($N$25=\"SI\",$N$26=\"SI\",$N$27=\"SI\",$N$28=\"SI\",$N$29=\"SI\"),OR($N$5=1,$N$5=2,$N$5=3,$N$5=4,$N$5=5,$N$5=6)),\"DAA\",\"TT\")","v":"TT"},null,"Seleccione"]
[null,null,"Específica",11,"Para su proceso productivo emplea agua de alguna fuente natural subterránea y no cuenta con la autorización de la autoridad de recursos hídricos correspondientes.",null,null,null,"NO",null,null,{"$f":"IF(AND(N30=\"SI\",OR($N$5=1,$N$5=2,$N$5=3),OR($P$15=2,$P$15=3,$P$15=4)),\"PAMA*\",\"TT\")","v":"TT"},null,"Seleccione"]
[null,null,null,12,"Genera efluentes de procesos industriales y los vierte al sistema de alcantarillado sin tratamiento previo.\n",null,null,null,"NO",null,null,{"$f":"IF(AND($N$20=\"Seleccione\",$N$21=\"Seleccione\",$N$22=\"Seleccione\",$N$23=\"Seleccione\",$N$24=\"Seleccione\",N25=\"Seleccione\",N26=\"Seleccione\",N27=\"Seleccione\",N28=\"Seleccione\",N29=\"Seleccione\"),\"falta\",IF(AND($N$20=\"NO\",$N$21=\"NO\",$N$22=\"NO\",$N$23=\"NO\",$N$24=\"NO\",N25=\"NO\",N26=\"NO\",N27=\"NO\",N28=\"NO\",N29=\"NO\",N30=\"NO\",N31=\"NO\",N32=\"NO\"),\"NO REQUIERE\",))","v":"falta"},null,"Seleccione"]
[null,null,null,13,"Genera efluentes de procesos industriales y los vierte a un cuerpo receptor.\n",null,null,null,"NO",null,null,{"$f":"IF(AND(OR($P$15=2,$P$15=3,$P$15=4),OR($N$20=\"SI\",$N$21=\"SI\",$N$22=\"SI\",$N$23=\"SI\",$N$24=\"SI\"),OR($N$5=1,$N$5=2,$N$5=3,$N$5=4,$N$5=5,$N$5=6)),\"PAMA\",\"TT\")","v":"TT"},null,"Seleccione"]
[]
[null,null,"INSTRUMENTO A PRESENTAR:",null,null,null,null,null,null,null,null,{"$f":"IF(AND(OR(N32=\"SI\"),OR($N$5=1,$N$5=2,$N$5=3,$N$5=4),OR($P$15=5)),\"DAA*\",\"ww\")","v":"ww"}]
[null,null,null,null,null,null,null,null,null,null,"DAA",{"$f":"IF(AND(OR(N31=\"SI\"),OR($N$5=1,$N$5=2,$N$5=3,$N$5=4),OR($P$15=5,P15=2,P15=3,P15=4)),\"DAA*\",\"ww\")","v":"ww"}]
[]
[null,null,"Nota: Esta información es proporcionada por el administrado, con carácter de Declaración Jurada, sujeta a fiscalización; y, en caso la información proporcionada no sea veraz está sujeta al procedimiento y a las sanciones previstas en el Texto Único Ordenado de la Ley N° 27444,  Ley del Procedimiento Administrativo General, aprobado por el Decreto Supremo N° 006-2017-JUS."]
[null,null,null,null,null,null,null,null,null,null,null,{"$f":"IF(L31=\"falta\",\"COMPLETE DATOS GENERALES\",IF(L31=\"NO REQUIERE\",\"NO REQUIERE\",IF(AND(OR(L30=\"PAMA*\",L32=\"PAMA\"),OR(L29=\"DAA\",L34=\"DAA\")),\"PAMA\",IF(AND(L32=\"TT\",OR(L29=\"DAA\",L34=\"DAA*\",L35=\"DAA*\")),\"DAA\",IF(AND(OR(L32=\"PAMA\",L30=\"PAMA*\"),L34=\"ww\"),\"PAMA\",\"REVISE LOS DATOS INGRESADOS\")))))","v":"COMPLETE DATOS GENERALES"}]
[]
[]
[null,null,null,null,null,null,null,null,null,null,null,null,null,null,"N25=2;N26=2;N27=2;N28=2;N29=2"]
[null,null,"Leyenda"]
[null,null,"Objeto desglozable"]
[]
[null,null,"Registro de información"]

{"sheet":"MENU","index":17,"n_rows":4,"n_cols":9,"rows_kept":4,"cut":false,"hidden":false,"merged":[[2,2,2,7],[3,2,4,7]]}
[null,null,null,null,null,null,null,null,{"$f":"TODAY()","v":"2019-08-22"}]
[null,null,"Dirección General de Asuntos Ambientales de Industria"]
[null,null,"FICHA DE DETERMINACIÓN DE ADECUACIÓN"]
[null,null,"CONDICIONES DE ADECUACIÓN ESTABLECIDAS EN EL DS 006-2019-PRODUCE                (Versión 3.1)"]

{"sheet":"Hoja5","index":18,"n_rows":0,"n_cols":0,"rows_kept":0,"cut":false,"hidden":true,"merged":[]}

{"sheet":"INDUSTRIAS DE BEBIDAS","index":19,"n_rows":44,"n_cols":21,"rows_kept":44,"cut":false,"hidden":true,"merged":[[41,2,41,3],[40,2,40,3],[43,2,43,3],[30,7,30,8],[32,7,34,8],[32,2,34,6],[35,2,37,8],[16,2,16,8],[17,2,18,8],[15,2,15,5],[11,2,14,5],[9,6,10,8],[27,7,27,8],[29,4,29,6],[30,4,30,6],[23,4,23,6],[24,4,24,6],[25,4,25,6],[26,4,26,6],[27,4,27,6],[8,6,8,8],[19,7,19,8],[20,7,20,8],[21,7,21,8],[22,7,22,8],[20,4,20,6],[19,4,19,6],[21,4,21,6],[22,4,22,6],[8,2,8,5],[9,2,10,5],[20,2,29,2],[23,7,23,8],[24,7,24,8],[25,7,25,8],[26,7,26,8],[31,12,31,15],[28,7,28,8],[29,7,29,8],[28,4,28,6],[4,2,4,8],[14,7,14,8],[15,6,15,8],[11,7,11,8],[12,7,12,8],[13,7,13,8],[5,6,5,8],[6,6,6,8],[7,6,7,8],[5,2,5,5],[6,2,6,5],[7,2,7,5]]}
[]
[]
[]
[]
[null,null,"INDUSTRIAS DE BEBIDAS"]
[null,null,"N° DE REGISTRO"]
[null,null,"NOMBRE DEL ADMINISTRADO",null,null,null,null,null,null,null,null,null,null,null,null,null,"Rango empresarial"]
[null,null,"RUC",null,null,null,null,null,null,null,null,null,null,null,null,null,"GRAN EMPRESA",null,"Clase"]
[null,null,"ACTIVIDAD INDUSTRIAL MANUFACTURERA DECLARADA POR EL ADMINISTRADO",null,null,null,null,null,null,null,null,null,null,null,null,null,"MEDIANA EMPRESA",null,"1101-Destilación, rectificación y mezcla de bebidas alcohólicas","Destilación, rectificación y mezcla de bebidas alcohólicas",{"$f":"CONCATENATE(S9,\"-\",T9)","v":"1101-Destilación, rectificación y mezcla de bebidas alcohólicas-Destilación, rectificación y mezcla de bebidas alcohólicas"}]
[null,null,"CIIU REV. 4, SECCIÓN C - CLASE N°",null,null,null,"1104-Elaboración de bebidas no alcohólicas; producción de aguas minerales y otras aguas embotelladas",null,null,null,null,null,null,null,null,null,"PEQUEÑA EMPRESA",null,"1102-Elaboración de vinos","Elaboración de vinos",{"$f":"CONCATENATE(S10,\"-\",T10)","v":"1102-Elaboración de vinos-Elaboración de vinos"}]
[null,null,null,null,null,null,null,null,null,null,null,null,null,null,null,null,"MICRO EMPRESA",null,"1103-Elaboración de bebidas malteadas y de malta","Elaboración de bebidas malteadas y de malta","1103-Elaboración de bebidas malteadas y de malta-Elaboración de bebidas malteadas y de malta"]
[null,null,"UBICACIÓN DE LA INSTALACIÓN INDUSTRIAL",null,null,null,"Departamento","AMAZONAS",null,null,null,null,null,null,null,null,null,null,"1104-Elaboración de bebidas no alcohólicas; producción de aguas minerales y otras aguas embotelladas","Elaboración de bebidas no alcohólicas; producción de aguas minerales y otras aguas embotelladas","1104-Elaboración de bebidas no alcohólicas; producción de aguas minerales y otras aguas embotelladas-Elaboración de bebidas no alcohólicas; producción de aguas minerales y otras aguas embotelladas"]
[null,null,null,null,null,null,"Provincia","CHACHAPOYAS"]
[null,null,null,null,null,null,"Diistrito","CHACHAPOYAS"]
[null,null,null,null,null,null,"Dirección"]
[null,null,"RANGO EMPRESARIAL DECLARADO POR EL ADMINISTRADO",null,null,null,"MICRO EMPRESA"]
[null,null,{"$f":"IF(G16=\"Micro Empresa\",\"NO REQUIERE ADECUACIÓN\",\"EVALUAR CONDICIONES DE ADECUACIÓN ESTABLECIDAS EN EL DS 006-2019-PRODUCE\")","v":"NO REQUIERE ADECUACIÓN"}]
[null,null,"CONDICIONES DE ADECUACIÓN ESTABLECIDAS EN EL DS 006-2019-PRODUCE",null,null,null,null,null,null,null,null,null,null,null,null,null,null,null,null,null,"Condiciones"]
[null,null,null,null,null,null,null,null,null,null,null,null,null,null,null,null,"F","G","H","I"]
[null,null,"TIPO","N°","CONDICIONES ",null,null,"CUMPLE",null,null,null,null,null,null,null,null,"PAMA","DAA","NO REQUIERE","NO PRECISÓ","Seleccione"]
[null,null,"Generales",1,"Los efluentes (de procesos industriales) son vertidos a un cuerpo/curso natural de agua.",null,null,"NO",null,null,null,null,null,null,null,null,{"$f":"IF(H21=\"Si\",\"X\",\"-\")","v":"-"},{"$f":"IF(Q21=\"Si\",\"X\",\"-\")","v":"-"},{"$f":"IF(H21=\"No\",\"X\",\"-\")","v":"X"},{"$f":"IF(H21=\"No precisó\",\"Completar Información\",\"-\")","v":"-"},"SI"]
[null,null,null,2,"Generen licor negro como efluente.",null,null,"NO",null,null,null,null,null,null,null,null,{"$f":"IF(H22=\"Si\",\"X\",\"-\")","v":"-"},{"$f":"IF(Q22=\"Si\",\"X\",\"-\")","v":"-"},"X","-","NO"]
[null,null,null,3,"La actividad se realiza dentro de un ANP o zona de amortiguamiento.",null,null,"NO",null,null,null,null,null,null,null,null,{"$f":"IF(H23=\"Si\",\"X\",\"-\")","v":"-"},{"$f":"IF(Q23=\"Si\",\"X\",\"-\")","v":"-"},"X","-","NO PRECISÓ"]
[null,null,null,4,"La actividad se realiza a una distancia menor o igual de 250 m de ecosistemas frágiles.",null,null,"NO",null,null,null,null,null,null,null,null,{"$f":"IF(H24=\"Si\",\"X\",\"-\")","v":"-"},{"$f":"IF(Q24=\"Si\",\"X\",\"-\")","v":"-"},"X","-"]
[null,null,null,5,"La activida se realiza dentro de comunidades campesinas, nativas o pueblos indígenas.",null,null,"NO",null,null,null,null,null,null,null,null,{"$f":"IF(H25=\"Si\",\"X\",\"-\")","v":"-"},{"$f":"IF(Q25=\"Si\",\"X\",\"-\")","v":"-"},"X","-"]
[null,null,null,6,"Se realizan procesos mecanizados (no manuales) que generan emisiones difusas o fugitivas de material particulado y emisiones gaseosas (no incluye fuentes fijas ni móviles) colindantes con viviendas y no están encapsulados.",null,null,"NO",null,null,null,null,null,null,null,null,{"$f":"IF(R26=\"X\",\"-\",\"-\")","v":"-"},{"$f":"IF(H26=\"Si\",\"X\",\"-\")","v":"-"},"X","-"]
[null,null,null,7,"El proceso productivo usa agua de una fuente natural y no cuenta con la autorización de la autoridad de recursos hídricos correspondientes.",null,null,"NO",null,null,null,null,null,null,null,null,{"$f":"IF(R27=\"X\",\"-\",\"-\")","v":"-"},{"$f":"IF(H27=\"Si\",\"X\",\"-\")","v":"-"},"X","-"]
[null,null,null,8,"Genera ruido de los procesos mecanizados sin contar con alguna medida de mitigación (barreras acústicas, encapsulamiento u otros) y colindan con viviendas.",null,null,"NO",null,null,null,null,null,null,null,null,"-",{"$f":"IF(H28=\"Si\",\"X\",\"-\")","v":"-"},"X","-"]
[null,null,null,9,"Utilizan combustibles sólidos o líquidos sin contar con sistemas de control de emisiones (filtros manga, lavador Venturi, precipitados electrostático u otros).",null,null,"NO",null,null,null,null,null,null,null,null,"-",{"$f":"IF(H29=\"Si\",\"X\",\"-\")","v":"-"},"X","-"]
[null,null,null,10,"Genera emisiones atmosféricas de procesos industriales sin contar con sistemas de tratamiento de partículas y/o gases.",null,null,"NO",null,null,null,null,null,null,null,null,"-",{"$f":"IF(H30=\"Si\",\"X\",\"-\")","v":"-"},"X","-"]
[null,null,"Específica",{"$f":"IF(G10=\"1101-Destilación, rectificación y mezcla de bebidas alcohólicas\",\"NO REVISAR\",\"REVISAR\")","v":"REVISAR"},{"$f":"IF(D31=\"NO REVISAR\",\"MARCAR LA OPCIÓN NO\",\"Para su proceso productivo emplea agua de alguna fuente natural subterránea y no cuenta con la autorización de la autoridad de recursos hídricos correspondientes. (Aplica sólo para CLASES: 1102, 1103 y 1104)\")","v":"Para su proceso productivo emplea agua de alguna fuente natural subterránea y no cuenta con la autorización de la autoridad de recursos hídricos correspondientes. (Aplica sólo para CLASES: 1102, 1103 y 1104)"},null,null,"NO",null,null,null,null,null,null,null,null,{"$f":"IF(H31=\"Si\",\"X\",\"-\")","v":"-"},{"$f":"IF(Q31=\"Si\",\"X\",\"-\")","v":"-"},"X","-"]
[null,null,null,null,null,null,null,null,null,null,null,null,"RESULTADO",null,null,null,{"$f":"COUNTIF(Q21:Q31,\"X\")","v":0},{"$f":"COUNTIF(R21:R31,\"X\")","v":0},{"$f":"COUNTIF(S21:S31,\"X\")","v":11},{"$f":"COUNTIF(T21:T31,\"Completar Información\")","v":0}]
[null,null,"INSTRUMENTO A PRESENTAR:",null,null,null,null,{"$f":"IF(N33<>\"-\",N33,IF(N34<>\"-\",N34,IF(N35<>\"-\",N35,\"REVISAR OPCIONES\")))","v":"NO REQUIERE"},null,null,null,null,null,{"$f":"IF($S$32=11,\"NO REQUIERE\",\"-\")","v":"NO REQUIERE"}]
[null,null,null,null,null,null,null,null,null,null,null,null,null,{"$f":"IF(AND($R$32>=1, $R$32<6, $Q$32<=0), \"DAA\",\"-\")","v":"-"}]
[null,null,null,null,null,null,null,null,null,null,null,null,null,{"$f":"IF(AND($Q$32>=1), \"PAMA\",\"-\")","v":"-"}]
[null,null,"Nota: Esta información es proporcionada por el administrado, con carácter de Declaración Jurada, sujeta a fiscalización; y, en caso la información proporcionada no sea veraz está sujeta al procedimiento y a las sanciones previstas en el Texto Único Ordenado de la Ley N° 27444,  Ley del Procedimiento Administrativo General, aprobado por el Decreto Supremo N° 006-2017-JUS."]
[]
[]
[]
[]
[null,null,"Leyenda"]
[null,null,"Objeto desglozable"]
[]
[null,null,"Registro de información"]

{"sheet":"INDUSTRIAS_OTRAS_IND","index":20,"n_rows":46,"n_cols":21,"rows_kept":46,"cut":false,"hidden":false,"merged":[[15,2,15,8],[4,2,4,8],[5,2,5,5],[6,2,6,5],[7,2,7,5],[8,2,8,5],[9,2,9,5],[10,2,13,5],[10,7,10,8],[11,7,11,8],[12,7,12,8],[14,2,14,5],[16,2,17,8],[18,4,18,6],[18,7,18,8],[19,2,28,2],[19,4,19,6],[20,4,20,6],[21,4,21,6],[22,4,22,6],[23,4,23,6],[24,4,24,6],[25,4,25,6],[26,4,26,6],[27,4,27,6],[28,4,28,6],[29,2,32,2],[29,4,29,6],[30,4,30,6],[31,4,31,6],[32,4,32,6],[45,2,45,3],[47,2,47,3],[34,2,36,6],[34,7,36,8],[34,12,34,15],[37,2,39,8],[42,2,42,3],[43,2,43,3]]}
[]
[null,null,null,null,null,null,null,null,null,null,null,null,null,null,null,1,"Seleccione"]
[null,null,null,null,null,null,null,null,null,null,null,null,null,null,null,2,"2410-Industrias básicas de hierro y acero"]
[null,null,null,null,null,null,null,null,null,null,null,null,null,null,null,3,"2420-Fabricación de productos primarios de metales preciosos y otros metales no ferrosos"]
[null,null,"OTRAS INDUSTRIAS",null,null,null,null,null,null,null,null,null,null,{"$f":"IF(O5=Q2,1,IF(O5=Q3,2,IF(O5=Q4,3,IF(O5=Q5,4,IF(O5=Q6,5,IF(O5=Q7,6,IF(O5=Q8,7,IF(O5=Q9,8,IF(O5=Q10,9,IF(O5=Q11,10,IF(O5=Q12,11,IF(O5=Q13,12,IF(O5=Q14,13,)))))))))))))","v":1},"Seleccione",4,"2431-Fundición de hierro y acero"]
[null,null,"N° DE REGISTRO",null,null,null,null,null,null,null,null,null,null,null,null,5,"2432-Fundición de metales no ferrosos"]
[null,null,"RAZÓN SOCIAL",null,null,null,null,null,null,null,null,null,null,null,null,6,"2511-Fabricación de productos metálicos para uso estructural"]
[null,null,"RUC",null,null,null,null,null,null,null,null,null,null,null,null,7,"2512-Fabricación de tanques, depósitos y recipientes de metal",null,"Clase"]
[null,null,"ACTIVIDAD INDUSTRIAL MANUFACTURERA DECLARADA POR EL ADMINISTRADO",null,null,null,null,null,null,null,null,null,null,null,null,8,"2513-Fabricación de generadores de vapor, excepto calderas de agua caliente para calefacción central",null,null,"Destilación, rectificación y mezcla de bebidas alcohólicas"]
[null,null,"CIIU REV. 4, SECCIÓN C - CLASE N°",null,null,null,null,null,"2219 - Fabricación de otros productos de caucho",null,null,null,null,null,null,9,"2520-Fabricación de armas y municiones"]
[null,null,"UBICACIÓN DE LA INSTALACIÓN INDUSTRIAL",null,null,null,"Departamento","AMAZONAS",null,null,null,null,null,null,null,10,"2591-Forja, prensado, estampado y laminado de metales; pulvimetalurgia"]
[null,null,null,null,null,null,"Provincia","CHACHAPOYAS",null,null,null,null,null,null,null,11,"2592-Tratamiento y revestimiento de metales; maquinado"]
[null,null,null,null,null,null,"Diistrito","CHACHAPOYAS",null,null,null,null,null,null,null,12,"2593-Fabricación de artículos de cuchillería, herramientas de mano y artículos de ferretería"]
[null,null,null,null,null,null,"Dirección",null,null,null,null,null,null,null,null,13,"2599-Fabricación de otros productos elaborados de metal n.c.p."]
[null,null,"RANGO EMPRESARIAL DECLARADO POR EL ADMINISTRADO",null,null,null,null,null,null,null,null,null,null,null,null,{"$f":"IF(P16=S16,1,IF(P16=S17,2,IF(P16=S18,3,IF(P16=S19,4,IF(P16=S20,5,)))))","v":1}]
[null,null,null,null,null,null,null,null,null,null,null,null,null,null,null,"Seleccione",null,null,"Seleccione"]
[null,null,"CONDICIONES DE ADECUACIÓN ESTABLECIDAS EN EL DS 006-2019-PRODUCE",null,null,null,null,null,null,null,null,null,null,null,null,null,null,null,"GRAN EMPRESA"]
[null,null,null,null,null,null,null,null,null,null,null,null,null,null,null,null,null,null,"MEDIANA EMPRESA",null,"Condiciones"]
[null,null,"TIPO","N°","CONDICIONES ",null,null,"CUMPLE",null,null,null,null,null,null,null,null,null,null,"PEQUEÑA EMPRESA"]
[null,null,"Generales",1,"Los efluentes (de procesos industriales) son vertidos a un cuerpo/curso natural de agua.",null,null,null,"NO",null,null,null,null,"Seleccione",null,null,null,null,"MICRO EMPRESA"]
[null,null,null,2,"Generen licor negro como efluente.",null,null,null,"NO",null,null,null,null,"Seleccione"]
[null,null,null,3,"La actividad se realiza dentro de un ANP o zona de amortiguamiento.",null,null,null,"NO",null,null,null,null,"Seleccione",null,null,null,null,"Seleccione"]
[null,null,null,4,"La actividad se realiza a una distancia menor o igual de 250 m de ecosistemas frágiles.",null,null,null,"NO",null,null,null,null,"Seleccione",null,null,null,null,"SI"]
[null,null,null,5,"La actividad se realiza dentro de comunidades campesinas, nativas o pueblos indígenas.",null,null,null,"NO",null,null,null,null,"Seleccione",null,null,null,null,"NO"]
[null,null,null,6,"Se realizan procesos mecanizados (no manuales) que generan emisiones difusas o fugitivas de material particulado y emisiones gaseosas (no incluye fuentes fijas ni móviles) colindantes con viviendas y no están encapsulados.",null,null,null,"NO",null,null,null,null,"Seleccione"]
[null,null,null,7,"El proceso productivo usa agua de una fuente natural y no cuenta con la autorización de la autoridad de recursos hídricos correspondientes.",null,null,null,"NO",null,null,null,null,"Seleccione"]
[null,null,null,8,"Genera ruido de los procesos mecanizados sin contar con alguna medida de mitigación (barreras acústicas, encapsulamiento u otros) y colindan con viviendas.",null,null,null,"NO",null,null,null,null,"Seleccione"]
[null,null,null,9,"Utilizan combustibles sólidos o líquidos sin contar con sistemas de control de emisiones (filtros manga, lavador Venturi, precipitados electrostático u otros).",null,null,null,"NO",null,null,null,null,"Seleccione"]
[null,null,null,10,"Genera emisiones atmosféricas de procesos industriales sin contar con sistemas de tratamiento de partículas y/o gases.",null,null,null,"NO",null,null,{"$f":"IF(AND(OR($P$15=2,$P$15=3,$P$15=4),OR($N$25=\"SI\",$N$26=\"SI\",$N$27=\"SI\",$N$28=\"SI\",$N$29=\"SI\"),OR($N$5=2,$N$5=3,$N$5=4,$N$5=5,$N$5=6,$N$5=7,$N$5=8,$N$5=9)),\"DAA\",\"TT\")","v":"TT"},null,"Seleccione"]
[null,null,"Específica",null,null,null,null,null,"NO",null,null,{"$f":"IF(AND(OR(N30=\"SI\"),OR($N$5=2,$N$5=3,$N$5=4,$N$5=5,$N$5=10,$N$5=11),OR($P$15=2,$P$15=3,$P$15=4)),\"PAMA*\",\"TT\")","v":"TT"},null,"NO"]
[null,null,null,null,null,null,null,null,null,null,null,{"$f":"IF(AND(OR(N30=\"SI\",N31=\"SI\"),OR($N$5=2,$N$5=3,$N$5=4,$N$5=5,$N$5=6),OR($P$15=5)),\"DAA*\",\"TT\")","v":"TT"},null,"NO"]
[null,null,null,null,null,null,null,null,null,null,null,{"$f":"IF(AND($N$20=\"Seleccione\",$N$21=\"Seleccione\",$N$22=\"Seleccione\",$N$23=\"Seleccione\",$N$24=\"Seleccione\",N25=\"Seleccione\",N26=\"Seleccione\",N27=\"Seleccione\",N28=\"Seleccione\",N29=\"Seleccione\"),\"falta\",IF(AND($N$20=\"NO\",$N$21=\"NO\",$N$22=\"NO\",$N$23=\"NO\",$N$24=\"NO\",N25=\"NO\",N26=\"NO\",N27=\"NO\",N28=\"NO\",N29=\"NO\",N30=\"NO\",N31=\"NO\",N32=\"NO\",N33=\"NO\"),\"NO REQUIERE\",\"OK\"))","v":"falta"},null,"NO"]
[null,null,null,null,null,null,null,null,null,null,null,{"$f":"IF(AND(OR($P$15=2,$P$15=3,$P$15=4),OR($N$20=\"SI\",$N$21=\"SI\",$N$22=\"SI\",$N$23=\"SI\",$N$24=\"SI\"),OR($N$5=2,$N$5=3,$N$5=4,$N$5=5,$N$5=6,$N$5=7,$N$5=8,$N$5=9)),\"PAMA\",\"TT\")","v":"TT"},null,"NO"]
[]
[null,null,"INSTRUMENTO A PRESENTAR:",null,null,null,null,null,null,null,"NO REQUIERE",{"$f":"IF(AND(OR(N32=\"SI\",N33=\"SI\"),OR($N$5=2,$N$5=3,$N$5=4,$N$5=5,$N$5=6),OR($P$15=2,$P$15=3,$P$15=4)),\"DAA*\",\"ww\")","v":"ww"}]
[null,null,null,null,null,null,null,null,null,null,null,{"$f":"IF(AND(OR(N32=\"SI\"),OR($N$5=2),OR($P$15=5)),\"DAA*\",\"ww\")","v":"ww"}]
[]
[null,null,"Nota: Esta información es proporcionada por el administrado, con carácter de Declaración Jurada, sujeta a fiscalización; y, en caso la información proporcionada no sea veraz está sujeta al procedimiento y a las sanciones previstas en el Texto Único Ordenado de la Ley N° 27444,  Ley del Procedimiento Administrativo General, aprobado por el Decreto Supremo N° 006-2017-JUS."]
[null,null,null,null,null,null,null,null,null,null,null,{"$f":"IF(L32=\"falta\",\"COMPLETE DATOS GENERALES\",IF(L32=\"NO REQUIERE\",\"NO REQUIERE\",IF(AND(OR(L30=\"PAMA*\",L33=\"PAMA\"),OR(L29=\"WW\",L35=\"WW\")),\"PAMA\",IF(AND(L30<>\"PAMA*\",L33=\"TT\",OR(L31=\"DAA*\",L29=\"DAA\",L35=\"DAA*\",L36=\"DAA*\")),\"DAA\",IF(AND(OR(L36=\"DAA*\",L33=\"PAMA\",L30=\"PAMA*\"),L35=\"DAA*\"),\"PAMA\",\"REVISE LOS DATOS INGRESADOS\")))))","v":"COMPLETE DATOS GENERALES"}]
[]
[]
[null,null,null,null,null,null,null,null,null,null,null,null,null,null,"N25=2;N26=2;N27=2;N28=2;N29=2"]
[null,null,"Leyenda"]
[null,null,"Objeto desglozable"]
[]
[null,null,"Registro de información"]

{"sheet":"INDUSTRIAS_OTRAS_IND_IMP","index":21,"n_rows":42,"n_cols":15,"rows_kept":42,"cut":false,"hidden":false,"merged":[[7,2,7,5],[7,6,7,8],[4,2,4,8],[5,2,5,5],[5,6,5,8],[6,2,6,5],[6,6,6,8],[8,2,8,5],[8,6,8,8],[9,2,9,5],[9,6,9,8],[10,2,13,5],[10,7,10,8],[11,7,11,8],[12,7,12,8],[13,7,13,8],[14,2,14,5],[14,6,14,8],[15,2,15,8],[16,2,17,8],[18,4,18,6],[18,7,18,8],[26,4,26,6],[26,7,26,8],[19,2,28,2],[19,4,19,6],[19,7,19,8],[20,4,20,6],[20,7,20,8],[21,4,21,6],[21,7,21,8],[22,4,22,6],[22,7,22,8],[23,4,23,6],[23,7,23,8],[24,4,24,6],[24,7,24,8],[25,4,25,6],[25,7,25,8],[34,12,34,15],[27,4,27,6],[27,7,27,8],[28,4,28,6],[28,7,28,8],[29,4,29,6],[29,7,29,8],[30,4,30,6],[30,7,30,8],[31,4,31,6],[31,7,31,8],[32,4,32,6],[32,7,32,8],[34,2,36,6],[34,7,36,8],[47,2,47,3],[29,2,32,2],[37,2,39,8],[42,2,42,3],[43,2,43,3],[45,2,45,3]]}
[]
[]
[]
[null,null,"Dirección General de Asuntos Ambientales de Industria",null,null,null,null,"Fecha de Impresión:",{"$f":"TODAY()","v":"2019-08-22"}]
[null,null,"OTRAS INDUSTRIAS"]
[null,null,"N° DE REGISTRO"]
[null,null,"RAZÓN SOCIAL"]
[null,null,"RUC",null,null,null,11111111111]
[null,null,"ACTIVIDAD INDUSTRIAL MANUFACTURERA DECLARADA POR EL ADMINISTRADO",null,null,null,"INDUSTRIA DE PRODUCTOS DE CAUCHO Y DE PLÁSTICO"]
[null,null,"CIIU REV. 4, SECCIÓN C - CLASE N°",null,null,null,"2219 - Fabricación de otros productos de caucho"]
[null,null,"UBICACIÓN DE LA INSTALACIÓN INDUSTRIAL",null,null,null,"Departamento",{"$f":"INDUSTRIAS_MIN_NO_MET!H11","v":"AMAZONAS"}]
[null,null,null,null,null,null,"Provincia",{"$f":"INDUSTRIAS_MIN_NO_MET!H12","v":"CHACHAPOYAS"}]
[null,null,null,null,null,null,"Diistrito",{"$f":"INDUSTRIAS_MIN_NO_MET!H13","v":"CHACHAPOYAS"}]
[null,null,null,null,null,null,"Dirección","FD"]
[null,null,"RANGO EMPRESARIAL DECLARADO POR EL ADMINISTRADO",null,null,null,{"$f":"IF(INDUSTRIAS_MIN_NO_MET!I15<>\"\",INDUSTRIAS_MIN_NO_MET!I15,\"SIN DATOS\")","v":"SIN DATOS"}]
[]
[null,null,"CONDICIONES DE ADECUACIÓN ESTABLECIDAS EN EL DS 006-2019-PRODUCE"]
[]
[null,null,"TIPO","N°","CONDICIONES ",null,null,"CUMPLE"]
[null,null,"Generales",1,"Los efluentes (de procesos industriales) son vertidos a un cuerpo/curso natural de agua.",null,null,{"$f":"INDUSTRIAS_MET_COMUN!I20","v":"NO"},"NO"]
[null,null,null,2,"Generen licor negro como efluente.",null,null,{"$f":"INDUSTRIAS_MET_COMUN!I21","v":"NO"},"NO"]
[null,null,null,3,"La actividad se realiza dentro de un ANP o zona de amortiguamiento.",null,null,{"$f":"INDUSTRIAS_MET_COMUN!I22","v":"NO"},"NO"]
[null,null,null,4,"La actividad se realiza a una distancia menor o igual de 250 m de ecosistemas frágiles.",null,null,{"$f":"INDUSTRIAS_MET_COMUN!I23","v":"NO"},"NO"]
[null,null,null,5,"La activida se realiza dentro de comunidades campesinas, nativas o pueblos indígenas.",null,null,{"$f":"INDUSTRIAS_MET_COMUN!I24","v":"NO"},"NO"]
[null,null,null,6,"Se realizan procesos mecanizados (no manuales) que generan emisiones difusas o fugitivas de material particulado y emisiones gaseosas (no incluye fuentes fijas ni móviles) colindantes con viviendas y no están encapsulados.",null,null,{"$f":"INDUSTRIAS_MET_COMUN!I25","v":"NO"},"NO"]
[null,null,null,7,"El proceso productivo usa agua de una fuente natural y no cuenta con la autorización de la autoridad de recursos hídricos correspondientes.",null,null,{"$f":"INDUSTRIAS_MET_COMUN!I26","v":"NO"},"NO"]
[null,null,null,8,"Genera ruido de los procesos mecanizados sin contar con alguna medida de mitigación (barreras acústicas, encapsulamiento u otros) y colindan con viviendas.",null,null,{"$f":"INDUSTRIAS_MET_COMUN!I27","v":"NO"},"NO"]
[null,null,null,9,"Utilizan combustibles sólidos o líquidos sin contar con sistemas de control de emisiones (filtros manga, lavador Venturi, precipitados electrostático u otros).",null,null,{"$f":"INDUSTRIAS_MET_COMUN!I28","v":"NO"},"NO"]
[null,null,null,10,"Genera emisiones atmosféricas de procesos industriales sin contar con sistemas de tratamiento de partículas y/o gases.",null,null,{"$f":"INDUSTRIAS_MET_COMUN!I29","v":"NO"},"NO",null,1]
[null,null,"Específica",11,"Para su proceso productivo emplea agua de alguna fuente natural subterránea y no cuenta con la autorización de la autoridad de recursos hídricos correspondientes.\n",null,null,{"$f":"INDUSTRIAS_MET_COMUN!I30","v":"SI"},"NO"]
[]
[]
[]
[]
[null,null,"INSTRUMENTO A PRESENTAR:",null,null,null,null,{"$f":"IF(INDUSTRIAS_OTRAS_IND!H35<>\"\",INDUSTRIAS_OTRAS_IND!H35,\"NO PROCESADO\")","v":"NO PROCESADO"}]
[]
[]
[null,null,"Nota: Esta información es proporcionada por el administrado, con carácter de Declaración Jurada, sujeta a fiscalización; y, en caso la información proporcionada no sea veraz está sujeta al procedimiento y a las sanciones previstas en el Texto Único Ordenado de la Ley N° 27444,  Ley del Procedimiento Administrativo General, aprobado por el Decreto Supremo N° 006-2017-JUS."]
[]
[]
[]
[null,null,null,null,null,null,null,null,null,null,null,null,null,null,"N25=2;N26=2;N27=2;N28=2;N29=2"]

{"sheet":"OTRAS INDUSTRIAS","index":22,"n_rows":29,"n_cols":12,"rows_kept":29,"cut":false,"hidden":false,"merged":[[4,1,4,3],[0,1,0,8],[2,1,2,3],[2,4,2,8],[3,1,3,3],[3,4,3,8],[4,4,4,8],[1,1,1,3],[1,4,1,8],[5,4,5,8],[5,1,5,3],[11,1,11,8],[6,1,9,3],[6,5,6,8],[7,5,7,8],[8,5,8,8],[9,5,9,8],[10,1,10,3],[10,4,10,8],[16,0,25,0],[15,2,15,3],[16,2,16,3],[17,2,17,3],[18,2,18,3],[19,2,19,3],[23,2,23,3],[24,2,24,3],[25,1,25,4],[26,1,28,4],[26,5,26,8],[27,5,27,8],[28,5,28,8],[12,1,13,8],[14,2,14,3],[20,2,20,3],[21,2,21,3],[22,2,22,3]]}
[null,"OTRAS ACTIVIDADES INDUSTRIALES MANUFACTURERAS"]
[null,"N° DE REGISTRO"]
[null,"NOMBRE DEL ADMINISTRADO",null,null,null,null,null,null,null,null,null,"GRAN EMPRESA"]
[null,"RUC",null,null,null,null,null,null,null,null,null,"MEDIANA EMPRESA"]
[null,"ACTIVIDAD INDUSTRIAL MANUFACTURERA DECLARADA POR EL ADMINISTRADO",null,null,"INDUSTRIA DE PRODUCTOS DE CAUCHO Y DE PLÁSTICO",null,null,null,null,null,null,"PEQUEÑA EMPRESA"]
[null,"CIIU REV. 4, SECCIÓN C - CLASE N°",null,null,"2920 - Fabricación de carrocerías para vehículos automotores; fabricación de remolques y semirremolques",null,null,null,null,null,null,"MICRO EMPRESA"]
[null,"UBICACIÓN DE LA INSTALACIÓN INDUSTRIAL",null,null,"Departamento","AMAZONAS",null,null,null,null,null,"SI"]
[null,null,null,null,"Provincia","CHACHAPOYAS",null,null,null,null,null,"NO"]
[null,null,null,null,"Diistrito","CHACHAPOYAS",null,null,null,null,null,"NO PRECISÓ"]
[null,null,null,null,"Dirección"]
[null,"RANGO EMPRESARIAL DECLARADO POR EL ADMINISTRADO",null,null,"PEQUEÑA EMPRESA"]
[null,{"$f":"IF(E11=\"Micro Empresa\",\"NO REQUIERE ADECUACIÓN\",\"EVALUAR CONDICIONES DE ADECUACIÓN ESTABLECIDAS EN EL DS 006-2019-PRODUCE\")","v":"EVALUAR CONDICIONES DE ADECUACIÓN ESTABLECIDAS EN EL DS 006-2019-PRODUCE"}]
[null,"CONDICIONES DE ADECUACIÓN ESTABLECIDAS EN EL DS 006-2019-PRODUCE"]
[]
[null,"N°","CONDICIONES GENERALES",null,"CUMPLE","PAMA","DAA","NO REQUIERE","NO PRECISÓ"]
[null,{"$f":"IF(AND(E$11=\"MICRO EMPRESA\"),\"NO REVISAR\",\"REVISAR\")","v":"REVISAR"},{"$f":"IF(B16=\"NO REVISAR\",\"MARCAR LA OPCIÓN NO\", \"Los efluentes (de procesos industriales) son vertidos a un cuerpo/curso natural de agua.\")","v":"Los efluentes (de procesos industriales) son vertidos a un cuerpo/curso natural de agua."},null,"NO",{"$f":"IF(E16=\"Si\",\"X\",\"-\")","v":"-"},{"$f":"IF(F16=\"Si\",\"X\",\"-\")","v":"-"},{"$f":"IF(E16=\"No\",\"X\",\"-\")","v":"X"},{"$f":"IF(E16=\"No precisó\",\"Completar Información\",\"-\")","v":"-"}]
["Condiciones Generales",{"$f":"IF(AND(E$11=\"MICRO EMPRESA\"),\"NO REVISAR\",\"REVISAR\")","v":"REVISAR"},{"$f":"IF(B17=\"NO REVISAR\",\"MARCAR LA OPCIÓN NO\", \"Generen licor negro como efluente.\")","v":"Generen licor negro como efluente."},null,"NO",{"$f":"IF(E17=\"Si\",\"X\",\"-\")","v":"-"},"-",{"$f":"IF(E17=\"No\",\"X\",\"-\")","v":"X"},{"$f":"IF(E17=\"No precisó\",\"Completar Información\",\"-\")","v":"-"}]
[null,"REVISAR",{"$f":"IF(B18=\"NO REVISAR\",\"MARCAR LA OPCIÓN NO\", \"La actividad se realiza dentro de un ANP o zona de amortiguamiento.\")","v":"La actividad se realiza dentro de un ANP o zona de amortiguamiento."},null,"NO","-","-","X","-"]
[null,"REVISAR",{"$f":"IF(B19=\"NO REVISAR\",\"MARCAR LA OPCIÓN NO\", \"La actividad se realiza a una distancia menor o igual de 250 m de ecosistemas frágiles.\")","v":"La actividad se realiza a una distancia menor o igual de 250 m de ecosistemas frágiles."},null,"NO","-","-","X","-"]
[null,"REVISAR",{"$f":"IF(B20=\"NO REVISAR\",\"MARCAR LA OPCIÓN NO\", \"La activida se realiza dentro de comunidades campesinas, nativas o pueblos indígenas.\")","v":"La activida se realiza dentro de comunidades campesinas, nativas o pueblos indígenas."},null,"NO","-","-","X","-"]
[null,"REVISAR",{"$f":"IF(B21=\"NO REVISAR\",\"MARCAR LA OPCIÓN NO\", \"Se realizan procesos mecanizados (no manuales) que generan emisiones difusas o fugitivas de material particulado y emisiones gaseosas (no incluye fuentes fijas ni móviles) colindantes con viviendas y no están encapsulados.\")","v":"Se realizan procesos mecanizados (no manuales) que generan emisiones difusas o fugitivas de material particulado y emisiones gaseosas (no incluye fuentes fijas ni móviles) colindantes con viviendas y no están encapsulados."},null,"NO",{"$f":"IF(G21=\"X\",\"-\",\"-\")","v":"-"},{"$f":"IF(E21=\"Si\",\"X\",\"-\")","v":"-"},{"$f":"IF(E21=\"No\",\"X\",\"-\")","v":"X"},"-"]
[null,"REVISAR",{"$f":"IF(B22=\"NO REVISAR\",\"MARCAR LA OPCIÓN NO\", \"El proceso productivo usa agua de una fuente natural y no cuenta con la autorización de la autoridad de recursos hídricos correspondientes.\")","v":"El proceso productivo usa agua de una fuente natural y no cuenta con la autorización de la autoridad de recursos hídricos correspondientes."},null,"NO",{"$f":"IF(G22=\"X\",\"-\",\"-\")","v":"-"},{"$f":"IF(E22=\"Si\",\"X\",\"-\")","v":"-"},{"$f":"IF(E22=\"No\",\"X\",\"-\")","v":"X"},"-"]
[null,"REVISAR",{"$f":"IF(B23=\"NO REVISAR\",\"MARCAR LA OPCIÓN NO\", \"Genera ruido de los procesos mecanizados sin contar con alguna medida de mitigación (barreras acústicas, encapsulamiento u otros) y colindan con viviendas.\")","v":"Genera ruido de los procesos mecanizados sin contar con alguna medida de mitigación (barreras acústicas, encapsulamiento u otros) y colindan con viviendas."},null,"NO","-","-","X","-"]
[null,"REVISAR",{"$f":"IF(B24=\"NO REVISAR\",\"MARCAR LA OPCIÓN NO\", \"Utilizan combustibles sólidos o líquidos sin contar con sistemas de control de emisiones (filtros manga, lavador Venturi, precipitados electrostático u otros).\")","v":"Utilizan combustibles sólidos o líquidos sin contar con sistemas de control de emisiones (filtros manga, lavador Venturi, precipitados electrostático u otros)."},null,"NO","-","-","X","-"]
[null,"REVISAR",{"$f":"IF(B25=\"NO REVISAR\",\"MARCAR LA OPCIÓN NO\", \"Genera emisiones atmosféricas de procesos industriales sin contar con sistemas de tratamiento de partículas y/o gases.\")","v":"Genera emisiones atmosféricas de procesos industriales sin contar con sistemas de tratamiento de partículas y/o gases."},null,"NO","-","-","X","-"]
[null,"RESULTADO",null,null,null,{"$f":"COUNTIF(F16:F25,\"X\")","v":0},{"$f":"COUNTIF(G16:G25,\"X\")","v":0},{"$f":"COUNTIF(H16:H25,\"X\")","v":10},{"$f":"COUNTIF(I16:I25,\"Completar Información\")","v":0}]
[null,"INSTRUMENTO A PRESENTAR",null,null,null,{"$f":"IF(H26=10,\"NO REQUIERE\",\"-\")","v":"NO REQUIERE"}]
[null,null,null,null,null,{"$f":"IF(AND(G26>=1, G26<6, F26<=0), \"DAA\",\"-\")","v":"-"}]
[null,null,null,null,null,{"$f":"IF(AND(F26>=1), \"PAMA\",\"-\")","v":"-"}]

{"sheet":"Hoja4","index":23,"n_rows":265,"n_cols":28,"rows_kept":265,"cut":false,"hidden":true,"merged":[]}
[]
[]
["dePARTAMENTOS","AMAZONAS","ANCASH","APURIMAC","AREQUIPA","AYACUCHO","CAJAMARCA","CALLAO","CUSCO","HUANCAVELICA","HUANUCO","ICA","JUNIN","LA_LIBERTAD","LAMBAYEQUE","LIMA","LORETO","MADRE_DE_DIOS","MOQUEGUA","PASCO","PIURA","PUNO","SAN_MARTIN","TACNA","TUMBES","UCAYALI"]
[null,"CHACHAPOYAS","HUARAZ","ABANCAY","_AREQUIPA","HUAMANGA","_CAJAMARCA","_CALLAO","_CUSCO","_HUANCAVELICA","_HUANUCO","_ICA","HUANCAYO","TRUJILLO","CHICLAYO","_LIMA","MAYNAS","TAMBOPATA","MARISCAL_NIETO","_PASCO","_PUIRA","_PUNO","MOYOBAMBA","_TACNA","_TUMBES","CORONEL_PORTILLO"]
[null,"BAGUA","AIJA","ANDAHUAYLAS","CAMANA","CANGALLO","CAJABAMBA",null,"ACOMAYO","ACOBAMBA","AMBO","CHINCHA","CONCEPCION","ASCOPE","FERREÑAFE","BARRANCA","ALTO_AMAZONAS","MANU","GENERAL_SANCHEZ_CERRO","DANIEL_ALCIDES_CARRION","AYABACA","AZANGARO","BELLAVISTA","CANDARAVE","CONTRALMIRANTE_VILLAR","ATALAYA"]
[null,"BONGARA","ANTONIO_RAYMONDI","ANTABAMBA","CARAVELI","HUANCA_SANCOS","CELENDIN",null,"ANTA","ANGARAES","DOS_DE_MAYO","NAZCA","CHANCHAMAYO","BOLIVAR","_LAMBAYEQUE","CAJATAMBO","_LORETO","TAHUAMANU","ILO","OXAPAMPA","HUANCABAMBA","CARABAYA","EL_DORADO","JORGE_BASADRE","ZARUMILLA","PADRE_ABAD"]
[null,"CONDORCANQUI","ASUNCION","AYMARAES","CASTILLA","HUANTA","CHOTA",null,"CALCA","CASTROVIRREYNA","HUACAYBAMBA","PALPA","JAUJA","CHEPEN",null,"CANTA","MARISCAL_RAMON_CASTILLA",null,null,null,"MORROPON","CHUCUITO","HUALLAGA","TARATA",null,"PURUS"]
[null,"LUYA","BOLOGNESI","COTABAMBAS","CAYLLOMA","LA_MAR","CONTUMAZA",null,"CANAS","CHURCAMPA","HUAMALIES","PISCO","_JUNIN","JULCAN",null,"CAÑETE","REQUENA",null,null,null,"PAITA","EL_COLLAO","LAMAS"]
[null,"RODRIGUEZ_DE_MENDOZA","CARHUAZ","CHINCHEROS","CONDESUYOS","LUCANAS","CUTERVO",null,"CANCHIS","HUAYTARA","LEONCIO_PRADO",null,"SATIPO","OTUZCO",null,"HUARAL","_UCAYALI",null,null,null,"SULLANA","HUANCANE","MARISCAL_CACERES"]
[null,"UTCUBAMBA","CARLOS_FERMIN_FITZCARRALD","GRAU","ISLAY","PARINACOCHAS","HUALGAYOC",null,"CHUMBIVILCAS","TAYACAJA","MARAÑON",null,"TARMA","PACASMAYO",null,"HUAROCHIRI","DATEM_DEL_MARAÑON",null,null,null,"TALARA","LAMPA","PICOTA"]
[null,null,"CASMA",null,"LA_UNION","PAUCAR_DEL_SARA_SARA","JAEN",null,"ESPINAR",null,"PACHITEA",null,"YAULI","PATAZ",null,"HUAURA",null,null,null,null,"SECHURA","MELGAR","RIOJA"]
[null,null,"CORONGO",null,null,"SUCRE","SAN_IGNACIO",null,"LA_CONVENCION",null,"PUERTO_INCA",null,"CHUPACA","SANCHEZ_CARRION",null,"OYON",null,null,null,null,null,"MOHO","_SAN_MARTIN"]
[null,null,"HUARI",null,null,"VICTOR_FAJARDO","SAN_MARCOS",null,"PARURO",null,"LAURICOCHA",null,null,"SANTIAGO_DE_CHUCO",null,"YAUYOS",null,null,null,null,null,"SAN_ANTONIO_DE_PUTINA","TOCACHE"]
[null,null,"HUARMEY",null,null,"VILCAS_HUAMAN","SAN_MIGUEL",null,"PAUCARTAMBO",null,"YAROWILCA",null,null,"GRAN_CHIMU",null,null,null,null,null,null,null,"SAN_ROMAN"]
[null,null,"HUAYLAS",null,null,null,"SAN_PABLO",null,"QUISPICANCHI",null,null,null,null,"VIRU",null,null,null,null,null,null,null,"SANDIA"]
[null,null,"MARISCAL_LUZURIAGA",null,null,null,"SANTA_CRUZ",null,"URUBAMBA",null,null,null,null,null,null,null,null,null,null,null,null,"YUNGUYO"]
[null,null,"OCROS"]
[null,null,"PALLASCA"]
[null,null,"POMABAMBA",null,null,null,null,null,null,"HUAMANGA","CANGALLO","HUANCA_SANCOS","HUANTA","LA_MAR","LUCANAS","PARINACOCHAS","PAUCAR_DEL_SARA_SARA","SUCRE","VICTOR_FAJARDO","VILCAS_HUAMAN"]
[null,null,"RECUAY",null,null,null,null,null,null,"AYACUCHO","CANGALLO","SANCOS","HUANTA","SAN MIGUEL","PUQUIO","CORACORA","PAUSA","QUEROBAMBA","HUANCAPI","VILCAS HUAMAN"]
[null,null,"SANTA",null,null,null,null,null,null,"ACOCRO","CHUSCHI","CARAPO","AYAHUANCO","ANCO","AUCARA","CHUMPI","COLTA","BELEN","ALCAMENCA","ACCOMARCA"]
[null,null,"SIHUAS",null,null,null,null,null,null,"ACOS VINCHOS","LOS MOROCHUCOS","SACSAMARCA","HUAMANGUILLA","AYNA","CABANA","CORONEL CASTAÑEDA","CORCULLA","CHALCOS","APONGO","CARHUANCA"]
[null,null,"YUNGAY",null,null,null,null,null,null,"CARMEN ALTO","MARIA PARADO DE BELLIDO","SANTIAGO DE LUCANAMARCA","IGUAIN","CHILCAS","CARMEN SALCEDO","PACAPAUSA","LAMPA","CHILCAYOC","ASQUIPATA","CONCEPCION"]
[null,null,null,null,null,null,null,null,null,"CHIARA","PARAS",null,"LURICOCHA","CHUNGUI","CHAVIÑA","PULLO","MARCABAMBA","HUACAÑA","CANARIA","HUAMBALPA"]
[null,null,null,null,null,null,null,null,null,"OCROS","TOTOS",null,"SANTILLANA","LUIS CARRANZA","CHIPAO","PUYUSCA","OYOLO","MORCOLLA","CAYARA","INDEPENDENCIA"]
["Provincias","CHACHAPOYAS","BAGUA","BONGARA","CONDORCANQUI","LUYA","RODRIGUEZ DE MENDOZA","UTCUBAMBA",null,"PACAYCASA",null,null,"SIVIA","SANTA ROSA","HUAC-HUAS","SAN FRANCISCO DE RAVACAYCO","PARARCA","PAICO","COLCA","SAURAMA"]
[null,"CHACHAPOYAS","LA PECA","JUMBILLA","NIEVA","LAMUD","SAN NICOLAS","BAGUA GRANDE",null,"QUINUA",null,null,"LLOCHEGUA","TAMBO","LARAMATE","UPAHUACHO","SAN JAVIER DE ALPABAMBA","SAN PEDRO DE LARCAY","HUAMANQUIQUIA","VISCHONGO"]
[null,"ASUNCION","ARAMANGO","CHISQUILLA","EL CENEPA","CAMPORREDONDO","CHIRIMOTO","CAJARURO",null,"SAN JOSE DE TICLLAS",null,null,null,null,"LEONCIO PRADO",null,"SAN JOSE DE USHUA","SAN SALVADOR DE QUIJE","HUANCARAYLLA"]
[null,"BALSAS","COPALLIN","CHURUJA","RIO SANTIAGO","COCABAMBA","COCHAMAL","CUMBA",null,"SAN JUAN BAUTISTA",null,null,null,null,"LLAUTA",null,"SARA SARA","SANTIAGO DE PAUCARAY","HUAYA"]
[null,"CHETO","EL PARCO","COROSHA",null,"COLCAMAR","HUAMBO","EL MILAGRO",null,"SANTIAGO DE PISCHA",null,null,null,null,"LUCANAS",null,null,"SORAS","SARHUA"]
[null,"CHILIQUIN","IMAZA","CUISPES",null,"CONILA","LIMABAMBA","JAMALCA",null,"SOCOS",null,null,null,null,"OCAÑA",null,null,null,"VILCANCHOS"]
[null,"CHUQUIBAMBA","BAGUA","FLORIDA",null,"INGUILPATA","LONGAR","LONYA GRANDE",null,"TAMBILLO",null,null,null,null,"OTOCA"]
[null,"GRANADA",null,"JAZAN",null,"LONGUITA","MARISCAL BENAVIDES","YAMON",null,"VINCHOS",null,null,null,null,"SAISA"]
[null,"HUANCAS",null,"RECTA",null,"LONYA CHICO","MILPUC",null,null,"JESUS NAZARENO",null,null,null,null,"SAN CRISTOBAL"]
[null,"LA JALCA",null,"SAN CARLOS",null,"LUYA","OMIA",null,null,null,null,null,null,null,"SAN JUAN"]
[null,"LEIMEBAMBA",null,"SHIPASBAMBA",null,"LUYA VIEJO","SANTA ROSA",null,null,null,null,null,null,null,"SAN PEDRO"]
[null,"LEVANTO",null,"VALERA",null,"MARIA","TOTORA",null,null,null,null,null,null,null,"SAN PEDRO DE PALCO"]
[null,"MAGDALENA",null,"YAMBRASBAMBA",null,"OCALLI","VISTA ALEGRE",null,null,null,null,null,null,null,"SANCOS"]
[null,"MARISCAL CASTILLA",null,null,null,"OCUMAL",null,null,null,null,null,null,null,null,"SANTA ANA DE HUAYCAHUACHO"]
[null,"MOLINOPAMPA",null,null,null,"PISUQUIA",null,null,null,null,null,null,null,null,"SANTA LUCIA"]
[null,"MONTEVIDEO",null,null,null,"PROVIDENCIA"]
[null,"OLLEROS",null,null,null,"SAN CRISTOBAL"]
[null,"QUINJALCA",null,null,null,"SAN FRANCISCO DEL YESO"]
[null,"SAN FRANCISCO DE DAGUAS",null,null,null,"SAN JERONIMO"]
[null,"SAN ISIDRO DE MAINO",null,null,null,"SAN JUAN DE LOPECANCHA"]
[null,"SOLOCO",null,null,null,"SANTA CATALINA"]
[null,"SONCHE",null,null,null,"SANTO TOMAS"]
[null,null,null,null,null,"TINGO"]
[null,null,null,null,null,"TRITA"]
[]
["Provincias","HUARAZ","AIJA","ANTONIO RAYMONDI","ASUNCION","BOLOGNESI","CARHUAZ","CARLOS FERMIN FITZCARRALD","CASMA","CORONGO","HUARI","HUARMEY","HUAYLAS","MARISCAL LUZURIAGA","OCROS","PALLASCA","POMABAMBA","RECUAY","SANTA","SIHUAS","YUNGAY"]
[null,"HUARAZ","AIJA","LLAMELLIN","CHACAS","CHIQUIAN","CARHUAZ","SAN LUIS","CASMA","CORONGO","HUARI","HUARMEY","CARAZ","PISCOBAMBA","OCROS","CABANA","POMABAMBA","RECUAY","CHIMBOTE","SIHUAS","YUNGAY"]
[null,"COCHABAMBA","CORIS","ACZO","ACOCHACA","ABELARDO PARDO LEZAMETA","ACOPAMPA","SAN NICOLAS","BUENA VISTA ALTA","ACO","ANRA","COCHAPETI","HUALLANCA","CASCA","ACAS","BOLOGNESI","HUAYLLAN","CATAC","CACERES DEL PERU","ACOBAMBA","CASCAPARA"]
[null,"COLCABAMBA","HUACLLAN","CHACCHO",null,"ANTONIO RAYMONDI","AMASHCA","YAUYA","COMANDANTE NOEL","BAMBAS","CAJAY","CULEBRAS","HUATA","ELEAZAR GUZMAN BARRON","CAJAMARQUILLA","CONCHUCOS","PAROBAMBA","COTAPARACO","COISHCO","ALFONSO UGARTE","MANCOS"]
[null,"HUANCHAY","LA MERCED","CHINGAS",null,"AQUIA","ANTA",null,"YAUTAN","CUSCA","CHAVIN DE HUANTAR","HUAYAN","HUAYLAS","FIDEL OLIVAS ESCUDERO","CARHUAPAMPA","HUACASCHUQUE","QUINUABAMBA","HUAYLLAPAMPA","MACATE","CASHAPAMPA","MATACOTO"]
[null,"INDEPENDENCIA","SUCCHA","MIRGAS",null,"CAJACAY","ATAQUERO",null,null,"LA PAMPA","HUACACHI","MALVAS","MATO","LLAMA","COCHAS","HUANDOVAL",null,"LLACLLIN","MORO","CHINGALPO","QUILLO"]
[null,"JANGAS",null,"SAN JUAN DE RONTOY",null,"CANIS","MARCARA",null,null,"YANAC","HUACCHIS",null,"PAMPAROMAS","LLUMPA","CONGAS","LACABAMBA",null,"MARCA","NEPEÑA","HUAYLLABAMBA","RANRAHIRCA"]
[null,"LA LIBERTAD",null,null,null,"COLQUIOC","PARIAHUANCA",null,null,"YUPAN","HUACHIS",null,"PUEBLO LIBRE","LUCMA","LLIPA","LLAPO",null,"PAMPAS CHICO","SAMANCO","QUICHES","SHUPLUY"]
[null,"OLLEROS",null,null,null,"HUALLANCA","SAN MIGUEL DE ACO",null,null,null,"HUANTAR",null,"SANTA CRUZ","MUSGA","SAN CRISTOBAL DE RAJAN","PALLASCA",null,"PARARIN","SANTA","RAGASH","YANAMA"]
[null,"PAMPAS",null,null,null,"HUASTA","SHILLA",null,null,null,"MASIN",null,"SANTO TORIBIO",null,"SAN PEDRO","PAMPAS",null,"TAPACOCHA","NUEVO CHIMBOTE","SAN JUAN"]
[null,"PARIACOTO",null,null,null,"HUAYLLACAYAN","TINCO",null,null,null,"PAUCAS",null,"YURACMARCA",null,"SANTIAGO DE CHILCAS","SANTA ROSA",null,"TICAPAMPA",null,"SICSIBAMBA"]
[null,"PIRA",null,null,null,"LA PRIMAVERA","YUNGAR",null,null,null,"PONTO",null,null,null,null,"TAUCA"]
[null,"TARICA",null,null,null,"MANGAS",null,null,null,null,"RAHUAPAMPA"]
[null,null,null,null,null,"PACLLON",null,null,null,null,"RAPAYAN"]
[null,null,null,null,null,"SAN MIGUEL DE CORPANQUI",null,null,null,null,"SAN MARCOS"]
[null,null,null,null,null,"TICLLOS",null,null,null,null,"SAN PEDRO DE CHANA"]
[null,null,null,null,null,null,null,null,null,null,"UCO"]
[]
[]
["Provincias","ABANCAY","ANDAHUAYLAS","ANTABAMBA","AYMARAES","COTABAMBAS","CHINCHEROS","GRAU",null,"AREQUIPA","CAMANA","CARAVELI","CASTILLA","CAYLLOMA","CONDESUYOS","ISLAY","LA_UNION",null,"HUANCAVELICA","ACOBAMBA","ANGARAES","CASTROVIRREYNA","CHURCAMPA","HUAYTARA","TAYACAJA"]
[null,"ABANCAY","ANDAHUAYLAS","ANTABAMBA","CHALHUANCA","TAMBOBAMBA","CHINCHEROS","CHUQUIBAMBILLA",null,"AREQUIPA","CAMANA","CARAVELI","APLAO","CHIVAY","CHUQUIBAMBA","MOLLENDO","COTAHUASI",null,"HUANCAVELICA","ACOBAMBA","LIRCAY","CASTROVIRREYNA","CHURCAMPA","HUAYTARA","PAMPAS"]
[null,"CHACOCHE","ANDARAPA","EL ORO","CAPAYA","COTABAMBAS","ANCO_HUALLO","CURPAHUASI",null,"ALTO SELVA ALEGRE","JOSE MARIA QUIMPER","ACARI","ANDAGUA","ACHOMA","ANDARAY","COCACHACRA","ALCA",null,"ACOBAMBILLA","ANDABAMBA","ANCHONGA","ARMA","ANCO","AYAVI","ACOSTAMBO"]
[null,"CIRCA","CHIARA","HUAQUIRCA","CARAYBAMBA","COYLLURQUI","COCHARCAS","GAMARRA",null,"CAYMA","MARIANO NICOLAS VALCARCEL","ATICO","AYO","CABANACONDE","CAYARANI","DEAN VALDIVIA","CHARCANA",null,"ACORIA","ANTA","CALLANMARCA","AURAHUA","CHINCHIHUASI","CORDOVA","ACRAQUIA"]
[null,"CURAHUASI","HUANCARAMA","JUAN ESPINOZA MEDRANO","CHAPIMARCA","HAQUIRA","HUACCANA","HUAYLLATI",null,"CERRO COLORADO","MARISCAL CACERES","ATIQUIPA","CHACHAS","CALLALLI","CHICHAS","ISLAY","HUAYNACOTAS",null,"CONAYCA","CAJA","CCOCHACCASA","CAPILLAS","EL CARMEN","HUAYACUNDO ARMA","AHUAYCHA"]
[null,"HUANIPACA","HUANCARAY","OROPESA","COLCABAMBA","MARA","OCOBAMBA","MAMARA",null,"CHARACATO","NICOLAS DE PIEROLA","BELLA UNION","CHILCAYMARCA","CAYLLOMA","IRAY","MEJIA","PAMPAMARCA",null,"CUENCA","MARCAS","CHINCHO","CHUPAMARCA","LA MERCED","LARAMARCA","COLCABAMBA"]
[null,"LAMBRAMA","HUAYANA","PACHACONAS","COTARUSE","CHALLHUAHUACHO","ONGOY","MICAELA BASTIDAS",null,"CHIGUATA","OCOÑA","CAHUACHO","CHOCO","COPORAQUE","RIO GRANDE","PUNTA DE BOMBON","PUYCA",null,"HUACHOCOLPA","PAUCARA","CONGALLA","COCAS","LOCROJA","OCOYO","DANIEL HERNANDEZ"]
[null,"PICHIRHUA","KISHUARA","SABAINO","HUAYLLO",null,"URANMARCA","PATAYPAMPA",null,"JACOBO HUNTER","QUILCA","CHALA","HUANCARQUI","HUAMBO","SALAMANCA",null,"QUECHUALLA",null,"HUAYLLAHUARA","POMACOCHA","HUANCA-HUANCA","HUACHOS","PAUCARBAMBA","PILPICHACA","HUACHOCOLPA"]
[null,"SAN PEDRO DE CACHORA","PACOBAMBA",null,"JUSTO APU SAHUARAURA",null,"RANRACANCHA","PROGRESO",null,"LA JOYA","SAMUEL PASTOR","CHAPARRA","MACHAGUAY","HUANCA","YANAQUIHUA",null,"SAYLA",null,"IZCUCHACA","ROSARIO","HUAYLLAY GRANDE","HUAMATAMBO","SAN MIGUEL DE MAYOCC","QUERCO","HUARIBAMBA"]
[null,"TAMBURCO","PACUCHA",null,"LUCRE",null,null,"SAN ANTONIO",null,"MARIANO MELGAR",null,"HUANUHUANU","ORCOPAMPA","ICHUPAMPA",null,null,"TAURIA",null,"LARIA",null,"JULCAMARCA","MOLLEPAMPA","SAN PEDRO DE CORIS","QUITO-ARMA","ÑAHUIMPUQUIO"]
[null,null,"PAMPACHIRI",null,"POCOHUANCA",null,null,"SANTA ROSA",null,"MIRAFLORES",null,"JAQUI","PAMPACOLCA","LARI",null,null,"TOMEPAMPA",null,"MANTA",null,"SAN ANTONIO DE ANTAPARCO","SAN JUAN","PACHAMARCA","SAN ANTONIO DE CUSICANCHA","PAZOS"]
[null,null,"POMACOCHA",null,"SAN JUAN DE CHACÑA",null,null,"TURPAY",null,"MOLLEBAYA",null,"LOMAS","TIPAN","LLUTA",null,null,"TORO",null,"MARISCAL CACERES",null,"SANTO TOMAS DE PATA","SANTA ANA",null,"SAN FRANCISCO DE SANGAYAICO","QUISHUAR"]
[null,null,"SAN ANTONIO DE CACHI",null,"SAÑAYCA",null,null,"VILCABAMBA",null,"PAUCARPATA",null,"QUICACHA","UÑON","MACA",null,null,null,null,"MOYA",null,"SECCLLA","TANTARA",null,"SAN ISIDRO","SALCABAMBA"]
[null,null,"SAN JERONIMO",null,"SORAYA",null,null,"VIRUNDO",null,"POCSI",null,"YAUCA","URACA","MADRIGAL",null,null,null,null,"NUEVO OCCORO",null,null,"TICRAPO",null,"SANTIAGO DE CHOCORVOS","SALCAHUASI"]
[null,null,"SAN MIGUEL DE CHACCRAMPA",null,"TAPAIRIHUA",null,null,"CURASCO",null,"POLOBAYA",null,null,"VIRACO","SAN ANTONIO DE CHUCA",null,null,null,null,"PALCA",null,null,null,null,"SANTIAGO DE QUIRAHUARA","SAN MARCOS DE ROCCHAC"]
[null,null,"SANTA MARIA DE CHICMO",null,"TINTAY",null,null,null,null,"QUEQUEÑA",null,null,null,"SIBAYO",null,null,null,null,"PILCHACA",null,null,null,null,"SANTO DOMINGO DE CAPILLAS","SURCUBAMBA"]
[null,null,"TALAVERA",null,"TORAYA",null,null,null,null,"SABANDIA",null,null,null,"TAPAY",null,null,null,null,"VILCA",null,null,null,null,"TAMBO","TINTAY PUNCU"]
[null,null,"TUMAY HUARACA",null,"YANACA",null,null,null,null,"SACHACA",null,null,null,"TISCO",null,null,null,null,"YAULI"]
[null,null,"TURPO",null,null,null,null,null,null,"SAN JUAN DE SIGUAS",null,null,null,"TUTI",null,null,null,null,"ASCENSION"]
[null,null,"KAQUIABAMBA",null,null,null,null,null,null,"SAN JUAN DE TARUCANI",null,null,null,"YANQUE",null,null,null,null,"HUANDO"]
[null,null,null,null,null,null,null,null,null,"SANTA ISABEL DE SIGUAS",null,null,null,"MAJES"]
[null,null,null,null,null,null,null,null,null,"SANTA RITA DE SIGUAS"]
[null,null,null,null,null,null,null,null,null,"SOCABAYA"]
[null,null,null,null,null,null,null,null,null,"TIABAYA"]
[null,null,null,null,null,null,null,null,null,"UCHUMAYO"]
[null,null,null,null,null,null,null,null,null,"VITOR"]
[null,null,null,null,null,null,null,null,null,"YANAHUARA"]
[null,null,null,null,null,null,null,null,null,"YARABAMBA"]
[null,null,null,null,null,null,null,null,null,"YURA"]
[null,null,null,null,null,null,null,null,null,"JOSE LUIS BUSTAMANTE Y RIVERO"]
[]
["CAJAMARCA","CAJABAMBA","CELENDIN","CHOTA","CONTUMAZA","CUTERVO","HUALGAYOC","JAEN","SAN_IGNACIO","SAN_MARCOS","SAN_MIGUEL","SAN_PABLO","SANTA_CRUZ",null,"CALLAO"]
["CAJAMARCA","CAJABAMBA","CELENDIN","CHOTA","CONTUMAZA","CUTERVO","BAMBAMARCA","JAEN","SAN IGNACIO","PEDRO GALVEZ","SAN MIGUEL","SAN PABLO","SANTA CRUZ",null,"CALLAO"]
["ASUNCION","CACHACHI","CHUMUCH","ANGUIA","CHILETE","CALLAYUC","CHUGUR","BELLAVISTA","CHIRINOS","CHANCAY","BOLIVAR","SAN BERNARDINO","ANDABAMBA",null,"BELLAVISTA"]
["CHETILLA","CONDEBAMBA","CORTEGANA","CHADIN","CUPISNIQUE","CHOROS","HUALGAYOC","CHONTALI","HUARANGO","EDUARDO VILLANUEVA","CALQUIS","SAN LUIS","CATACHE",null,"CARMEN DE LA LEGUA REYNOSO"]
["COSPAN","SITACOCHA","HUASMIN","CHIGUIRIP","GUZMANGO","CUJILLO",null,"COLASAY","LA COIPA","GREGORIO PITA","CATILLUC","TUMBADEN","CHANCAYBAÑOS",null,"LA PERLA"]
["ENCAÑADA",null,"JORGE CHAVEZ","CHIMBAN","SAN BENITO","LA RAMADA",null,"HUABAL","NAMBALLE","ICHOCAN","EL PRADO",null,"LA ESPERANZA",null,"LA PUNTA"]
["JESUS",null,"JOSE GALVEZ","CHOROPAMPA","SANTA CRUZ DE TOLED","PIMPINGOS",null,"LAS PIRIAS","SAN JOSE DE LOURDES","JOSE MANUEL QUIROZ","LA FLORIDA",null,"NINABAMBA",null,"VENTANILLA"]
["LLACANORA",null,"MIGUEL IGLESIAS","COCHABAMBA","TANTARICA","QUEROCOTILLO",null,"POMAHUACA","TABACONAS","JOSE SABOGAL","LLAPA",null,"PULAN"]
["LOS BAÑOS DEL INCA",null,"OXAMARCA","CONCHAN","YONAN","SAN ANDRES DE CUTERVO",null,"PUCARA",null,null,"NANCHOC",null,"SAUCEPAMPA"]
["MAGDALENA",null,"SOROCHUCO","HUAMBOS",null,"SAN JUAN DE CUTERVO",null,"SALLIQUE",null,null,"NIEPOS",null,"SEXI"]
["MATARA",null,"SUCRE","LAJAS",null,"SAN LUIS DE LUCMA",null,"SAN FELIPE",null,null,"SAN GREGORIO",null,"UTICYACU"]
["NAMORA",null,"UTCO","LLAMA",null,"SANTA CRUZ",null,"SAN JOSE DEL ALTO",null,null,"SAN SILVESTRE DE COCHAN",null,"YAUYUCAN"]
["SAN JUAN",null,"LA LIBERTAD DE PALLAN","MIRACOSTA",null,"SANTO DOMINGO DE LA CAPILLA",null,"SANTA ROSA",null,null,"TONGOD"]
[null,null,null,"PACCHA",null,"SANTO TOMAS",null,null,null,null,"UNION AGUA BLANCA"]
[null,null,null,"PION",null,"SOCOTA"]
[null,null,null,"QUEROCOTO",null,"TORIBIO CASANOVA"]
[null,null,null,"SAN JUAN DE LICUPIS"]
[null,null,null,"TACABAMBA"]
[null,null,null,"TOCMOCHE"]
[null,null,null,"CHALAMARCA"]
[]
["_CUSCO","ACOMAYO","ANTA","CALCA","CANAS","CANCHIS","CHUMBIVILCAS","ESPINAR","LA_CONVENCION","PARURO","PAUCARTAMBO","QUISPICANCHI","URUBAMBA"]
["CUSCO","ACOMAYO","ANTA","CALCA","YANAOCA","SICUANI","SANTO TOMAS","ESPINAR","SANTA ANA","PARURO","PAUCARTAMBO","URCOS","URUBAMBA"]
["CCORCA","ACOPIA","ANCAHUASI","COYA","CHECCA","CHECACUPE","CAPACMARCA","CONDOROMA","ECHARATE","ACCHA","CAICAY","ANDAHUAYLILLAS","CHINCHERO"]
["POROY","ACOS","CACHIMAYO","LAMAY","KUNTURKANKI","COMBAPATA","CHAMACA","COPORAQUE","HUAYOPATA","CCAPI","CHALLABAMBA","CAMANTI","HUAYLLABAMBA"]
["SAN JERONIMO","MOSOC LLACTA","CHINCHAYPUJIO","LARES","LANGUI","MARANGANI","COLQUEMARCA","OCORURO","MARANURA","COLCHA","COLQUEPATA","CCARHUAYO","MACHUPICCHU"]
["SAN SEBASTIAN","POMACANCHI","HUAROCONDO","PISAC","LAYO","PITUMARCA","LIVITACA","PALLPATA","OCOBAMBA","HUANOQUITE","HUANCARANI","CCATCA","MARAS"]
["SANTIAGO","RONDOCAN","LIMATAMBO","SAN SALVADOR","PAMPAMARCA","SAN PABLO","LLUSCO","PICHIGUA","QUELLOUNO","OMACHA","KOSÑIPATA","CUSIPATA","OLLANTAYTAMBO"]
["SAYLLA","SANGARARA","MOLLEPATA","TARAY","QUEHUE","SAN PEDRO","QUIÑOTA","SUYCKUTAMBO","KIMBIRI","PACCARITAMBO",null,"HUARO","YUCAY"]
["WANCHAQ",null,"PUCYURA","YANATILE","TUPAC AMARU","TINTA","VELILLE","ALTO PICHIGUA","SANTA TERESA","PILLPINTO",null,"LUCRE"]
[null,null,"ZURITE",null,null,null,null,null,"VILCABAMBA","YAURISQUE",null,"MARCAPATA"]
[null,null,null,null,null,null,null,null,"PICHARI",null,null,"OCONGATE"]
[null,null,null,null,null,null,null,null,null,null,null,"OROPESA"]
[null,null,null,null,null,null,null,null,null,null,null,"QUIQUIJANA"]
[]
[]
[]
[]
[null,null,null,"HUANUCO","AMBO","DOS_DE_MAYO","HUACAYBAMBA","HUAMALIES","LEONCIO_PRADO","MARAÑON","PACHITEA","PUERTO_INCA","LAURICOCHA","YAROWILCA","ICA","CHINCHA","NAZCA","PALPA","PISCO","HUANCAYO","CONCEPCION","CHANCHAMAYO","JAUJA","JUNIN","SATIPO","TARMA","YAULI","CHUPACA"]
[null,null,null,"HUANUCO","AMBO","LA UNION","HUACAYBAMBA","LLATA","RUPA-RUPA","HUACRACHUCO","PANAO","PUERTO INCA","JESUS","CHAVINILLO","ICA","CHINCHA ALTA","NAZCA","PALPA","PISCO","HUANCAYO","CONCEPCION","CHANCHAMAYO","JAUJA","JUNIN","SATIPO","TARMA","LA OROYA","CHUPACA"]
[null,null,null,"AMARILIS","CAYNA","CHUQUIS","CANCHABAMBA","ARANCAY","DANIEL ALOMIAS ROBLES","CHOLON","CHAGLLA","CODO DEL POZUZO","BAÑOS","CAHUAC","LA TINGUIÑA","ALTO LARAN","CHANGUILLO","LLIPATA","HUANCANO","CARHUACALLANGA","ACO","PERENE","ACOLLA","CARHUAMAYO","COVIRIALI","ACOBAMBA","CHACAPALPA","AHUAC"]
[null,null,null,"CHINCHAO","COLPAS","MARIAS","COCHABAMBA","CHAVIN DE PARIARCA","HERMILIO VALDIZAN","SAN BUENAVENTURA","MOLINO","HONORIA","JIVIA","CHACABAMBA","LOS AQUIJES","CHAVIN","EL INGENIO","RIO GRANDE","HUMAY","CHACAPAMPA","ANDAMARCA","PICHANAQUI","APATA","ONDORES","LLAYLLA","HUARICOLCA","HUAY-HUAY","CHONGOS BAJO"]
[null,null,null,"CHURUBAMBA","CONCHAMARCA","PACHAS","PINRA","JACAS GRANDE","JOSE CRESPO Y CASTILLO",null,"UMARI","TOURNAVISTA","QUEROPALCA","APARICIO POMARES","OCUCAJE","CHINCHA BAJA","MARCONA","SANTA CRUZ","INDEPENDENCIA","CHICCHE","CHAMBARA","SAN LUIS DE SHUARO","ATAURA","ULCUMAYO","MAZAMARI","HUASAHUASI","MARCAPOMACOCHA","HUACHAC"]
[null,null,null,"MARGOS","HUACAR","QUIVILLA",null,"JIRCAN","LUYANDO",null,null,"YUYAPICHIS","RONDOS","JACAS CHICO","PACHACUTEC","EL CARMEN","VISTA ALEGRE","TIBILLO","PARACAS","CHILCA","COCHAS","SAN RAMON","CANCHAYLLO",null,"PAMPA HERMOSA","LA UNION","MOROCOCHA","HUAMANCACA CHICO"]
[null,null,null,"QUISQUI","SAN FRANCISCO","RIPAN",null,"MIRAFLORES","MARIANO DAMASO BERAUN",null,null,null,"SAN FRANCISCO DE ASIS","OBAS","PARCONA","GROCIO PRADO",null,null,"SAN ANDRES","CHONGOS ALTO","COMAS","VITOC","CURICACA",null,"PANGOA","PALCA","PACCHA","SAN JUAN DE YSCOS"]
[null,null,null,"SAN FRANCISCO DE CAYRAN","SAN RAFAEL","SHUNQUI",null,"MONZON",null,null,null,null,"SAN MIGUEL DE CAURI","PAMPAMARCA","PUEBLO NUEVO","PUEBLO NUEVO",null,null,"SAN CLEMENTE","CHUPURO","HEROINAS TOLEDO",null,"EL MANTARO",null,"RIO NEGRO","PALCAMAYO","SANTA BARBARA DE CARHUACAYAN","SAN JUAN DE JARPA"]
[null,null,null,"SAN PEDRO DE CHAULAN","TOMAY KICHWA","SILLAPATA",null,"PUNCHAO",null,null,null,null,null,"CHORAS","SALAS","SAN JUAN DE YANAC",null,null,"TUPAC AMARU INCA","COLCA","MANZANARES",null,"HUAMALI",null,"RIO TAMBO","SAN PEDRO DE CAJAS","SANTA ROSA DE SACCO","TRES DE DICIEMBRE"]
[null,null,null,"SANTA MARIA DEL VALLE",null,"YANAS",null,"PUÑOS",null,null,null,null,null,null,"SAN JOSE DE LOS MOLINOS","SAN PEDRO DE HUACARPANA",null,null,null,"CULLHUAS","MARISCAL CASTILLA",null,"HUARIPAMPA",null,null,"TAPO","SUITUCANCHA","YANACANCHA"]
[null,null,null,"YARUMAYO",null,null,null,"SINGA",null,null,null,null,null,null,"SAN JUAN BAUTISTA","SUNAMPE",null,null,null,"EL TAMBO","MATAHUASI",null,"HUERTAS",null,null,null,"YAULI"]
[null,null,null,"PILLCO MARCA",null,null,null,"TANTAMAYO",null,null,null,null,null,null,"SANTIAGO","TAMBO DE MORA",null,null,null,"HUACRAPUQUIO","MITO",null,"JANJAILLO"]
[null,null,null,null,null,null,null,null,null,null,null,null,null,null,"SUBTANJALLA",null,null,null,null,"HUALHUAS","NUEVE DE JULIO",null,"JULCAN"]
[null,null,null,null,null,null,null,null,null,null,null,null,null,null,"TATE",null,null,null,null,"HUANCAN","ORCOTUNA",null,"LEONOR ORDOÑEZ"]
[null,null,null,null,null,null,null,null,null,null,null,null,null,null,"YAUCA DEL ROSARIO",null,null,null,null,"HUASICANCHA","SAN JOSE DE QUERO",null,"LLOCLLAPAMPA"]
[null,null,null,null,null,null,null,null,null,null,null,null,null,null,null,null,null,null,null,"HUAYUCACHI","SANTA ROSA DE OCOPA",null,"MARCO"]
[null,null,null,null,null,null,null,null,null,null,null,null,null,null,null,null,null,null,null,"INGENIO",null,null,"MASMA"]
[null,null,null,null,null,null,null,null,null,null,null,null,null,null,null,null,null,null,null,"PARIAHUANCA",null,null,"MASMA CHICCHE"]
[null,null,null,null,null,null,null,null,null,null,null,null,null,null,null,null,null,null,null,"PILCOMAYO",null,null,"MOLINOS"]
[null,null,null,null,null,null,null,null,null,null,null,null,null,null,null,null,null,null,null,"PUCARA",null,null,"MONOBAMBA"]
[null,null,null,null,null,null,null,null,null,null,null,null,null,null,null,null,null,null,null,"QUICHUAY",null,null,"MUQUI"]
[null,null,null,null,null,null,null,null,null,null,null,null,null,null,null,null,null,null,null,"QUILCAS",null,null,"MUQUIYAUYO"]
[null,null,null,null,null,null,null,null,null,null,null,null,null,null,null,null,null,null,null,"SAN AGUSTIN",null,null,"PACA"]
[null,null,null,null,null,null,null,null,null,null,null,null,null,null,null,null,null,null,null,"SAN JERONIMO DE TUNAN",null,null,"PACCHA"]
[null,null,null,null,null,null,null,null,null,null,null,null,null,null,null,null,null,null,null,"SAÑO",null,null,"PANCAN"]
[null,null,null,null,null,null,null,null,null,null,null,null,null,null,null,null,null,null,null,"SAPALLANGA",null,null,"PARCO"]
[null,null,null,null,null,null,null,null,null,null,null,null,null,null,null,null,null,null,null,"SICAYA",null,null,"POMACANCHA"]
[null,null,null,null,null,null,null,null,null,null,null,null,null,null,null,null,null,null,null,"SANTO DOMINGO DE ACOBAMBA",null,null,"RICRAN"]
[null,null,null,null,null,null,null,null,null,null,null,null,null,null,null,null,null,null,null,"VIQUES",null,null,"SAN LORENZO"]
[null,null,null,null,null,null,null,null,null,null,null,null,null,null,null,null,null,null,null,null,null,null,"SAN PEDRO DE CHUNAN"]
[null,null,null,null,null,null,null,null,null,null,null,null,null,null,null,null,null,null,null,null,null,null,"SAUSA"]
[null,null,null,null,null,null,null,null,null,null,null,null,null,null,null,null,null,null,null,null,null,null,"SINCOS"]
[null,null,null,null,null,null,null,null,null,null,null,null,null,null,null,null,null,null,null,null,null,null,"TUNAN MARCA"]
[null,null,null,null,null,null,null,null,null,null,null,null,null,null,null,null,null,null,null,null,null,null,"YAULI"]
[null,null,null,null,null,null,null,null,null,null,null,null,null,null,null,null,null,null,null,null,null,null,"YAUYOS"]
[]
["TRUJILLO","ASCOPE","BOLIVAR","CHEPEN","JULCAN","OTUZCO","PACASMAYO","PATAZ","SANCHEZ CARRION","SANTIAGO_DE_CHUCO","GRAN CHIMU","VIRU","CHICLAYO","FERREÑAFE","LAMBAYEQUE","LIMA","BARRANCA","CAJATAMBO","CANTA","CAÑETE","HUARAL","HUAROCHIRI","HUAURA","OYON","YAUYOS"]
["TRUJILLO","ASCOPE","BOLIVAR","CHEPEN","JULCAN","OTUZCO","SAN PEDRO DE LLOC","TAYABAMBA","HUAMACHUCO","SANTIAGO DE CHUCO","CASCAS","VIRU","CHICLAYO","FERREÑAFE","LAMBAYEQUE","LIMA","BARRANCA","CAJATAMBO","CANTA","SAN VICENTE DE CAÑETE","HUARAL","MATUCANA","HUACHO","OYON","YAUYOS"]
["EL PORVENIR","CHICAMA","BAMBAMARCA","PACANGA","CALAMARCA","AGALLPAMPA","GUADALUPE","BULDIBUYO","CHUGAY","ANGASMARCA","LUCMA","CHAO","CHONGOYAPE","CAÑARIS","CHOCHOPE","ANCON","PARAMONGA","COPA","ARAHUAY","ASIA","ATAVILLOS ALTO","ANTIOQUIA","AMBAR","ANDAJES","ALIS"]
["FLORENCIA DE MORA","CHOCOPE","CONDORMARCA","PUEBLO NUEVO","CARABAMBA","CHARAT","JEQUETEPEQUE","CHILLIA","COCHORCO","CACHICADAN","COMPIN","GUADALUPITO","ETEN","INCAHUASI","ILLIMO","ATE","PATIVILCA","GORGOR","HUAMANTANGA","CALANGO","ATAVILLOS BAJO","CALLAHUANCA","CALETA DE CARQUIN","CAUJUL","AYAUCA"]
["HUANCHACO","MAGDALENA DE CAO","LONGOTEA",null,"HUASO","HUARANCHAL","PACASMAYO","HUANCASPATA","CURGOS","MOLLEBAMBA","SAYAPULLO",null,"ETEN PUERTO","MANUEL ANTONIO MESONES MURO","JAYANCA","BARRANCO","SUPE","HUANCAPON","HUAROS","CERRO AZUL","AUCALLAMA","CARAMPOMA","CHECRAS","COCHAMARCA","AYAVIRI"]
["LA ESPERANZA","PAIJAN","UCHUMARCA",null,null,"LA CUESTA","SAN JOSE","HUAYLILLAS","MARCABAL","MOLLEPATA",null,null,"JOSE LEONARDO ORTIZ","PITIPO","MOCHUMI","BREÑA","SUPE PUERTO","MANAS","LACHAQUI","CHILCA","CHANCAY","CHICLA","HUALMAY","NAVAN","AZANGARO"]
["LAREDO","RAZURI","UCUNCHA",null,null,"MACHE",null,"HUAYO","SANAGORAN","QUIRUVILCA",null,null,"LA VICTORIA","PUEBLO NUEVO","MORROPE","CARABAYLLO",null,null,"SAN BUENAVENTURA","COAYLLO","IHUARI","CUENCA","HUAURA","PACHANGARA","CACRA"]
["MOCHE","SANTIAGO DE CAO",null,null,null,"PARANDAY",null,"ONGON","SARIN","SANTA CRUZ DE CHUCA",null,null,"LAGUNAS",null,"MOTUPE","CHACLACAYO",null,null,"SANTA ROSA DE QUIVES","IMPERIAL","LAMPIAN","HUACHUPAMPA","LEONCIO PRADO",null,"CARANIA"]
["POROTO","CASA GRANDE",null,null,null,"SALPO",null,"PARCOY","SARTIMBAMBA","SITABAMBA",null,null,"MONSEFU",null,"OLMOS","CHORRILLOS",null,null,null,"LUNAHUANA","PACARAOS","HUANZA","PACCHO",null,"CATAHUASI"]
["SALAVERRY",null,null,null,null,"SINSICAP",null,"PATAZ",null,null,null,null,"NUEVA ARICA",null,"PACORA","CIENEGUILLA",null,null,null,"MALA","SAN MIGUEL DE ACOS","HUAROCHIRI","SANTA LEONOR",null,"CHOCOS"]
["SIMBAL",null,null,null,null,"USQUIL",null,"PIAS",null,null,null,null,"OYOTUN",null,"SALAS","COMAS",null,null,null,"NUEVO IMPERIAL","SANTA CRUZ DE ANDAMARCA","LAHUAYTAMBO","SANTA MARIA",null,"COCHAS"]
["VICTOR LARCO HERRERA",null,null,null,null,null,null,"SANTIAGO DE CHALLAS",null,null,null,null,"PICSI",null,"SAN JOSE","EL AGUSTINO",null,null,null,"PACARAN","SUMBILCA","LANGA","SAYAN",null,"COLONIA"]
[null,null,null,null,null,null,null,"TAURIJA",null,null,null,null,"PIMENTEL",null,"TUCUME","INDEPENDENCIA",null,null,null,"QUILMANA","VEINTISIETE DE NOVIEMBRE","LARAOS","VEGUETA",null,"HONGOS"]
[null,null,null,null,null,null,null,"URPAY",null,null,null,null,"REQUE",null,null,"JESUS MARIA",null,null,null,"SAN ANTONIO",null,"MARIATANA",null,null,"HUAMPARA"]
[null,null,null,null,null,null,null,null,null,null,null,null,"SANTA ROSA",null,null,"LA MOLINA",null,null,null,"SAN LUIS",null,"RICARDO PALMA",null,null,"HUANCAYA"]
[null,null,null,null,null,null,null,null,null,null,null,null,"SAÑA",null,null,"LA VICTORIA",null,null,null,"SANTA CRUZ DE FLORES",null,"SAN ANDRES DE TUPICOCHA",null,null,"HUANGASCAR"]
[null,null,null,null,null,null,null,null,null,null,null,null,"CAYALTI",null,null,"LINCE",null,null,null,"ZUÑIGA",null,"SAN ANTONIO",null,null,"HUANTAN"]
[null,null,null,null,null,null,null,null,null,null,null,null,"PATAPO",null,null,"LOS OLIVOS",null,null,null,null,null,"SAN BARTOLOME",null,null,"HUAÑEC"]
[null,null,null,null,null,null,null,null,null,null,null,null,"POMALCA",null,null,"LURIGANCHO",null,null,null,null,null,"SAN DAMIAN",null,null,"LARAOS"]
[null,null,null,null,null,null,null,null,null,null,null,null,"PUCALA",null,null,"LURIN",null,null,null,null,null,"SAN JUAN DE IRIS",null,null,"LINCHA"]
[null,null,null,null,null,null,null,null,null,null,null,null,"TUMAN",null,null,"MAGDALENA DEL MAR",null,null,null,null,null,"SAN JUAN DE TANTARANCHE",null,null,"MADEAN"]
[null,"_PUIRA","_PUNO","MOYOBAMBA","_TACNA","_TUMBES","CORONEL_PORTILLO",null,null,null,null,null,null,null,null,"PUEBLO LIBRE",null,null,null,null,null,"SAN LORENZO DE QUINTI",null,null,"MIRAFLORES"]
[null,"AYABACA","AZANGARO","BELLAVISTA","CANDARAVE","CONTRALMIRANTE VILLAR","ATALAYA",null,null,null,null,null,null,null,null,"MIRAFLORES",null,null,null,null,null,"SAN MATEO",null,null,"OMAS"]
[null,"HUANCABAMBA","CARABAYA","EL_DORADO","JORGE_ BASADRE","ZARUMILLA","PADRE_ABAD",null,null,null,null,null,null,null,null,"PACHACAMAC",null,null,null,null,null,"SAN MATEO DE OTAO",null,null,"PUTINZA"]
[null,"MORROPON","CHUCUITO","HUALLAGA","TARATA",null,"PURUS",null,null,null,null,null,null,null,null,"PUCUSANA",null,null,null,null,null,"SAN PEDRO DE CASTA",null,null,"QUINCHES"]
[null,"PAITA","EL_COLLAO","LAMAS",null,null,null,null,null,null,null,null,null,null,null,"PUENTE PIEDRA",null,null,null,null,null,"SAN PEDRO DE HUANCAYRE",null,null,"QUINOCAY"]
[null,"SULLANA","HUANCANE","MARISCAL_CACERES",null,null,null,null,null,null,null,null,null,null,null,"PUNTA HERMOSA",null,null,null,null,null,"SANGALLAYA",null,null,"SAN JOAQUIN"]
[null,"TALARA","LAMPA","PICOTA",null,null,null,null,null,null,null,null,null,null,null,"PUNTA NEGRA",null,null,null,null,null,"SANTA CRUZ DE COCACHACRA",null,null,"SAN PEDRO DE PILAS"]
[null,"SECHURA","MELGAR","RIOJA",null,null,null,null,null,null,null,null,null,null,null,"RIMAC",null,null,null,null,null,"SANTA EULALIA",null,null,"TANTA"]
[null,null,"MOHO","SAN_MARTIN",null,null,null,null,null,null,null,null,null,null,null,"SAN BARTOLO",null,null,null,null,null,"SANTIAGO DE ANCHUCAYA",null,null,"TAURIPAMPA"]
[null,null,"SAN_ANTONIO_DE_PUTINA","TOCACHE",null,null,null,null,null,null,null,null,null,null,null,"SAN BORJA",null,null,null,null,null,"SANTIAGO DE TUNA",null,null,"TOMAS"]
[null,null,"SAN_ROMAN",null,null,null,null,null,null,null,null,null,null,null,null,"SAN ISIDRO",null,null,null,null,null,"SANTO DOMINGO DE LOS OLLEROS",null,null,"TUPE"]
[null,null,"SANDIA",null,null,null,null,null,null,null,null,null,null,null,null,"SAN JUAN DE LURIGANCHO",null,null,null,null,null,"SURCO",null,null,"VIÑAC"]
[null,null,"YUNGUYO",null,null,null,null,null,null,null,null,null,null,null,null,"SAN JUAN DE MIRAFLORES",null,null,null,null,null,null,null,null,"VITIS"]
[null,null,null,null,null,null,null,null,null,null,null,null,null,null,null,"SAN LUIS"]
[null,null,null,null,null,null,null,null,null,null,null,null,null,null,null,"SAN MARTIN DE PORRES"]
[null,null,null,null,null,null,null,null,null,null,null,null,null,null,null,"SAN MIGUEL"]
[null,null,null,null,null,null,null,null,null,null,null,null,null,null,null,"SANTA ANITA"]
[null,null,null,null,null,null,null,null,null,null,null,null,null,null,null,"SANTA MARIA DEL MAR"]
[null,null,null,null,null,null,null,null,null,null,null,null,null,null,null,"SANTA ROSA"]
[null,null,null,null,null,null,null,null,null,null,null,null,null,null,null,"SANTIAGO DE SURCO"]
[null,null,null,null,null,null,null,null,null,null,null,null,null,null,null,"SURQUILLO"]
[null,null,null,null,null,null,null,null,null,null,null,null,null,null,null,"VILLA EL SALVADOR"]
[null,null,null,null,null,null,null,null,null,null,null,null,null,null,null,"VILLA MARIA DEL TRIUNFO"]
[null,"MAYNAS","ALTO AMAZONAS","LORETO","MARISCAL RAMON CASTILLA","REQUENA","UCAYALI","DATEM DEL MARAÑON","TAMBOPATA","MANU","TAHUAMANU","MARISCAL NIETO","GENERAL SANCHEZ CERRO","ILO","PASCO","DANIEL ALCIDES CARRION","OXAPAMPA"]
[null,"IQUITOS","YURIMAGUAS","NAUTA","RAMON CASTILLA","REQUENA","CONTAMANA","BARRANCA","TAMBOPATA","MANU","IÑAPARI","MOQUEGUA","OMATE","ILO","CHAUPIMARCA","YANAHUANCA","OXAPAMPA"]
[null,"ALTO NANAY","BALSAPUERTO","PARINARI","PEBAS","ALTO TAPICHE","INAHUAYA","CAHUAPANAS","INAMBARI","FITZCARRALD","IBERIA","CARUMAS","CHOJATA","EL ALGARROBAL","HUACHON","CHACAYAN","CHONTABAMBA"]
[null,"FERNANDO LORES","JEBEROS","TIGRE","YAVARI","CAPELO","PADRE MARQUEZ","MANSERICHE","LAS PIEDRAS","MADRE DE DIOS","TAHUAMANU","CUCHUMBAYA","COALAQUE","PACOCHA","HUARIACA","GOYLLARISQUIZGA","HUANCABAMBA"]
[null,"INDIANA","LAGUNAS","TROMPETEROS","SAN PABLO","EMILIO SAN MARTIN","PAMPA HERMOSA","MORONA","LABERINTO","HUEPETUHE",null,"SAMEGUA","ICHUÑA",null,"HUAYLLAY","PAUCAR","PALCAZU"]
[null,"LAS AMAZONAS","SANTA CRUZ","URARINAS",null,"MAQUIA","SARAYACU","PASTAZA",null,null,null,"SAN CRISTOBAL","LA CAPILLA",null,"NINACACA","SAN PEDRO DE PILLAO","POZUZO"]
[null,"MAZAN","TENIENTE CESAR LOPEZ ROJAS",null,null,"PUINAHUA","VARGAS GUERRA","ANDOAS",null,null,null,"TORATA","LLOQUE",null,"PALLANCHACRA","SANTA ANA DE TUSI","PUERTO BERMUDEZ"]
[null,"NAPO",null,null,null,"SAQUENA",null,null,null,null,null,null,"MATALAQUE",null,"PAUCARTAMBO","TAPUC","VILLA RICA"]
[null,"PUNCHANA",null,null,null,"SOPLIN",null,null,null,null,null,null,"PUQUINA",null,"SAN FRANCISCO DE ASIS DE YARUSYACAN","VILCABAMBA"]
[null,"PUTUMAYO",null,null,null,"TAPICHE",null,null,null,null,null,null,"QUINISTAQUILLAS",null,"SIMON BOLIVAR"]
[null,"TORRES CAUSANA",null,null,null,"JENARO HERRERA",null,null,null,null,null,null,"UBINAS",null,"TICLACAYAN"]
[null,"BELEN",null,null,null,"YAQUERANA",null,null,null,null,null,null,"YUNGA",null,"TINYAHUARCO"]
[null,"SAN JUAN BAUTISTA",null,null,null,null,null,null,null,null,null,null,null,null,"VICCO"]
[null,"TENIENTE MANUEL CLAVERO",null,null,null,null,null,null,null,null,null,null,null,null,"YANACANCHA"]
[]
[null,"_PUIRA","AYABACA","HUANCABAMBA","MORROPON","PAITA","SULLANA","TALARA","SECHURA","_PUNO","AZANGARO","CARABAYA","CHUCUITO","EL_COLLAO","HUANCANE","LAMPA","MELGAR","MOHO","SAN_ANTONIO_DE_PUTINA","SAN_ROMAN","SANDIA","YUNGUYO"]
[null,"PIURA","AYABACA","HUANCABAMBA","CHULUCANAS","PAITA","SULLANA","PARIÑAS","SECHURA","PUNO","AZANGARO","MACUSANI","JULI","ILAVE","HUANCANE","LAMPA","AYAVIRI","MOHO","PUTINA","JULIACA","SANDIA","YUNGUYO"]
[null,"CASTILLA","FRIAS","CANCHAQUE","BUENOS AIRES","AMOTAPE","BELLAVISTA","EL ALTO","BELLAVISTA DE LA UNION","ACORA","ACHAYA","AJOYANI","DESAGUADERO","CAPAZO","COJATA","CABANILLA","ANTAUTA","CONIMA","ANANEA","CABANA","CUYOCUYO","ANAPIA"]
[null,"CATACAOS","JILILI","EL CARMEN DE LA FRONTERA","CHALACO","ARENAL","IGNACIO ESCUDERO","LA BREA","BERNAL","AMANTANI","ARAPA","AYAPATA","HUACULLANI","PILCUYO","HUATASANI","CALAPUJA","CUPI","HUAYRAPATA","PEDRO VILCA APAZA","CABANILLAS","LIMBANI","COPANI"]
[null,"CURA MORI","LAGUNAS","HUARMACA","LA MATANZA","COLAN","LANCONES","LOBITOS","CRISTO NOS VALGA","ATUNCOLLA","ASILLO","COASA","KELLUYO","SANTA ROSA","INCHUPALLA","NICASIO","LLALLI","TILALI","QUILCAPUNCU","CARACOTO","PATAMBUCO","CUTURAPI"]
[null,"EL TALLAN","MONTERO","LALAQUIZ","MORROPON","LA HUACA","MARCAVELICA","LOS ORGANOS","VICE","CAPACHICA","CAMINACA","CORANI","PISACOMA","CONDURIRI","PUSI","OCUVIRI","MACARI",null,"SINA",null,"PHARA","OLLARAYA"]
[null,"LA ARENA","PACAIPAMPA","SAN MIGUEL DE EL FAIQUE","SALITRAL","TAMARINDO","MIGUEL CHECA","MANCORA","RINCONADA LLICUAR","CHUCUITO","CHUPA","CRUCERO","POMATA",null,"ROSASPATA","PALCA","NUÑOA",null,null,null,"QUIACA","TINICACHI"]
[null,"LA UNION","PAIMAS","SONDOR","SAN JUAN DE BIGOTE","VICHAYAL","QUERECOTILLO",null,null,"COATA","JOSE DOMINGO CHOQUEHUANCA","ITUATA","ZEPITA",null,"TARACO","PARATIA","ORURILLO",null,null,null,"SAN JUAN DEL ORO","UNICACHI"]
[null,"LAS LOMAS","SAPILLICA","SONDORILLO","SANTA CATALINA DE MOSSA",null,"SALITRAL",null,null,"HUATA","MUÑANI","OLLACHEA",null,null,"VILQUE CHICO","PUCARA","SANTA ROSA",null,null,null,"YANAHUAYA"]
[null,"TAMBO GRANDE","SICCHEZ",null,"SANTO DOMINGO",null,null,null,null,"MAÑAZO","POTONI","SAN GABAN",null,null,null,"SANTA LUCIA","UMACHIRI",null,null,null,"ALTO INAMBARI"]
[null,null,"SUYO",null,"YAMANGO",null,null,null,null,"PAUCARCOLLA","SAMAN","USICAYOS",null,null,null,"VILAVILA",null,null,null,null,"SAN PEDRO DE PUTINA PUNCO"]
[null,null,null,null,null,null,null,null,null,"PICHACANI","SAN ANTON"]
[null,null,null,null,null,null,null,null,null,"PLATERIA","SAN JOSE"]
[null,null,null,null,null,null,null,null,null,"SAN ANTONIO","SAN JUAN DE SALINAS"]
[null,null,null,null,null,null,null,null,null,"TIQUILLACA","SANTIAGO DE PUPUJA"]
[null,null,null,null,null,null,null,null,null,"VILQUE","TIRAPATA"]
[]
["MOYOBAMBA","BELLAVISTA","EL_DORADO","HUALLAGA","LAMAS","MARISCAL_CACERES","PICOTA","RIOJA","SAN_MARTIN","TOCACHE","_TACNA","CANDARAVE","JORGE_BASADRE","TARATA","_TUMBES","CONTRALMIRANTE_VILLAR","ZARUMILLA","CORONEL_PORTILLO","ATALAYA","PADRE_ABAD","PURUS"]
["MOYOBAMBA","BELLAVISTA","SAN JOSE DE SISA","SAPOSOA","LAMAS","JUANJUI","PICOTA","RIOJA","TARAPOTO","TOCACHE","TACNA","CANDARAVE","LOCUMBA","TARATA","TUMBES","ZORRITOS","ZARUMILLA","CALLERIA","RAYMONDI","PADRE ABAD","PURUS"]
["CALZADA","ALTO BIAVO","AGUA BLANCA","ALTO SAPOSOA","ALONSO DE ALVARADO","CAMPANILLA","BUENOS AIRES","AWAJUN","ALBERTO LEVEAU","NUEVO PROGRESO","ALTO DE LA ALIANZA","CAIRANI","ILABAYA","HEROES ALBARRACIN","CORRALES","CASITAS","AGUAS VERDES","CAMPOVERDE","SEPAHUA","IRAZOLA"]
["HABANA","BAJO BIAVO","SAN MARTIN","EL ESLABON","BARRANQUITA","HUICUNGO","CASPISAPA","ELIAS SOPLIN VARGAS","CACATACHI","POLVORA","CALANA","CAMILACA","ITE","ESTIQUE","LA CRUZ","CANOAS DE PUNTA SAL","MATAPALO","IPARIA","TAHUANIA","CURIMANA"]
["JEPELACIO","HUALLAGA","SANTA ROSA","PISCOYACU","CAYNARACHI","PACHIZA","PILLUANA","NUEVA CAJAMARCA","CHAZUTA","SHUNTE","CIUDAD NUEVA","CURIBAYA",null,"ESTIQUE-PAMPA","PAMPAS DE HOSPITAL",null,"PAPAYAL","MASISEA","YURUA","NESHUYA"]
["SORITOR","SAN PABLO","SHATOJA","SACANCHE","CUÑUMBUQUI","PAJARILLO","PUCACACA","PARDO MIGUEL","CHIPURANA","UCHIZA","INCLAN","HUANUARA",null,"SITAJARA","SAN JACINTO",null,null,"YARINACOCHA",null,"ALEXANDER VON HUMBOLDT"]
["YANTALO","SAN RAFAEL",null,"TINGO DE SAPOSOA","PINTO RECODO",null,"SAN CRISTOBAL","POSIC","EL PORVENIR",null,"PACHIA","QUILAHUANI",null,"SUSAPAYA","SAN JUAN DE LA VIRGEN",null,null,"NUEVA REQUENA"]
[null,null,null,null,"RUMISAPA",null,"SAN HILARION","SAN FERNANDO","HUIMBAYOC",null,"PALCA",null,null,"TARUCACHI"]
[null,null,null,null,"SAN ROQUE DE CUMBAZA",null,"SHAMBOYACU","YORONGOS","JUAN GUERRA",null,"POCOLLAY",null,null,"TICACO"]
[null,null,null,null,"SHANAO",null,"TINGO DE PONASA","YURACYACU","LA BANDA DE SHILCAYO",null,"SAMA"]
[null,null,null,null,"TABALOSOS",null,"TRES UNIDOS",null,"MORALES",null,"CORONEL GREGORIO ALBARRACIN LANCHIPA"]
[null,null,null,null,"ZAPATERO",null,null,null,"PAPAPLAYA"]
[null,null,null,null,null,null,null,null,"SAN ANTONIO"]
[null,null,null,null,null,null,null,null,"SAUCE"]
[null,null,null,null,null,null,null,null,"SHAPAJA"]

{"sheet":"Hoja3","index":24,"n_rows":6,"n_cols":2,"rows_kept":6,"cut":false,"hidden":false,"merged":[]}
["idact","ACTIVIDADES"]
[1,"PRODUCCIÓN DE MADERA Y FABRICACIÓN DE PRODUCTOS DE MADERA Y CORCHO, EXCEPTO MUEBLES; FABRICACIÓN DE ARTÍCULOS DE PAJA Y DE MATERIALES TRENZABLES"]
[2,"INDUSTRIA DE PRODUCTOS DE CAUCHO Y DE PLÁSTICO"]
[3,"INDUSTRIA DE PRODUCTOS DE INFORMÁTICA Y EQUIPOS ELECTRÓNICOS"]
[4,"FABRICACIÓN DE MAQUINARIA Y EQUIPOS N.C.P., VEHÍCULOS AUTOMOTORES, REMOLQUES Y SEMIRREMOLQUES, OTROS EQUIPOS DE TRANSPORTE"]
[5,"FABRICACIÓN DE MUEBLES, REPARACIÓN E INSTALACIÓN DE MAQUINARIA Y/O EQUIPOS Y OTRAS INDUSTRIAS MANUFACTURERAS"]

{"sheet":"Hoja1","index":25,"n_rows":46,"n_cols":11,"rows_kept":46,"cut":false,"hidden":true,"merged":[]}
[]
[null,"PRODUCCIÓN DE MADERA Y FABRICACIÓN DE PRODUCTOS DE MADERA Y CORCHO, EXCEPTO MUEBLES; FABRICACIÓN DE ARTÍCULOS DE PAJA Y DE MATERIALES TRENZABLES","INDUSTRIA DE PRODUCTOS DE CAUCHO Y DE PLÁSTICO","INDUSTRIA DE PRODUCTOS DE INFORMÁTICA Y EQUIPOS ELECTRÓNICOS","FABRICACIÓN DE MAQUINARIA Y EQUIPOS N.C.P., VEHÍCULOS AUTOMOTORES, REMOLQUES Y SEMIRREMOLQUES, OTROS EQUIPOS DE TRANSPORTE","FABRICACIÓN DE MUEBLES, REPARACIÓN E INSTALACIÓN DE MAQUINARIA Y/O EQUIPOS Y OTRAS INDUSTRIAS MANUFACTURERAS"]
[null,"MADERA","PLÁSTICO","INFORMÁTICA"," MAQUINARIA","MUEBLES"]
[null,"1621 - Fabricación de hojas de madera para enchapado y tableros a base de madera","2211 - Fabricación de cubiertas y cámaras de caucho; recauchutado y renovación de cubiertas de caucho","2620 - Fabricación de ordenadores y equipo periférico","2811 - Fabricación de motores y turbinas, excepto motores para aeronaves, vehículos automotores y motocicletas","3100 - Fabricación de muebles"]
[null,"1622 - Fabricación de partes y piezas de carpintería para edificios y construcciones","2219 - Fabricación de otros productos de caucho","2651 -  Fabricación de equipo de medición, prueba, navegación y control","2812 - Fabricación de equipo de propulsión de fluidos","3211 - Fabricación de joyas y artículos conexos"]
[null,"1623 - Fabricación de recipientes de madera","2220 - Fabricación de productos de plástico","2652  - Fabricación de relojes","2813 - Fabricación de otras bombas, compresores, grifos y válvulas","3212 - Fabricación de bisutería y artículos conexos"]
[null,"1629 - Fabricación de otros productos de madera; fabricación de artículos de corcho, paja y materiales trenzables",null,"2670 - Fabricación de instrumentos ópticos y equipo fotográfico","2814 - Fabricación de cojinetes, engranajes, trenes de engranajes y piezas de transmisión","3220 - Fabricación de instrumentos de música"]
[null,null,null,"2680 - Fabricación de soportes magnéticos y ópticos","2815 - Fabricación de hornos, hogares y quemadores ","3230 - Fabricación de artículos de deporte"]
[null,null,null,"2720 - Fabricación de pilas, baterías y acumuladores","2816  - Fabricación de equipo de elevación y manipulación","3240 - Fabricación de juegos y juguetes"]
[null,null,null,"2731 - Fabricación de cables de fibra óptica","2817 - Fabricación de maquinaria y equipo de oficina (excepto ordenadores y equipo periférico)","3250 - Fabricación de instrumentos y materiales médicos y odontológicos"]
[null,null,null,"2732 - Fabricación de otros hilos y cables eléctricos","2818 - Fabricación de herramientas de mano motorizadas","3290 - Otras industrias manufactureras n.c.p. "]
[null,null,null,"2740 - Fabricación de equipo eléctrico de iluminación","2819 -  Fabricación de otros tipos de maquinaria de uso general","3311 – Reparación de productos elaborados de metal"]
[null,null,null,"2790 - Fabricación de otros tipos de equipo eléctrico","2821  - Fabricación de maquinaria agropecuaria y forestal","3312 - Reparación de maquinaria"]
[null,null,null,"2610 - Fabricación de componentes y tableros electrónicos","2822 - Fabricación de maquinaria para la conformación de metales y de máquinas herramienta","3313 - Reparación de equipo electrónico y óptico"]
[null,null,null,"2630 - Fabricación de equipo de comunicaciones","2823 - Fabricación de maquinaria metalúrgica","3314 - Reparación de equipo eléctrico"]
[null,null,null,"2640 - Fabricación de aparatos electrónicos de consumo","2824 - Fabricación de maquinaria para la explotación de minas y canteras y para obras de construcción","3319 - Reparación de otros tipos de equipo"]
[null,null,null,"2660 - Fabricación de equipo de irradiación y equipo electrónico de uso médico y terapéutico","2825 - Fabricación de maquinaria para la elaboración de alimentos, bebidas y tabaco","3320 - Instalación de maquinaria y equipo industriales"]
[null,null,null,"2710 - Fabricación de motores, generadores y transformadores eléctricos y aparatos de\ndistribución y control de la energía eléctrica","2826 - Fabricación de maquinaria para la elaboración de productos textiles, prendas de vestir y cueros","3315 - Reparación de equipo de transporte, excepto vehículos automotores"]
[null,null,null,"2733  - Fabricación de dispositivos de cableado\n","2829 - Fabricación de otros tipos de maquinaria de uso especial "]
[null,null,null,"2750 - Fabricación de aparatos de uso doméstico","2910 - Fabricación de vehículos automotores"]
[null,null,null,null,"2920 - Fabricación de carrocerías para vehículos automotores; fabricación de remolques y semirremolques"]
[null,null,null,null," 2930 - Fabricación de partes, piezas y accesorios para vehículos de automotores "]
[null,null,null,null,"3011 - Construcción de buques y estructuras flotantes"]
[null,null,null,null,"3012 - Construcción de embarcaciones de recreo y deporte"]
[null,null,null,null,"3020 - Fabricación de locomotoras y material rodante"]
[null,null,null,null,"3030 - Fabricación de aeronaves y naves espaciales y maquinaria conexa"]
[null,null,null,null,"3040 - Fabricación de vehículos militares de combate"]
[null,null,null,null,"3091 - Fabricación de motocicletas"]
[null,null,null,null,"3092 - Fabricación de bicicletas y de sillones de ruedas para inválidos"]
[null,null,null,null,"3099 - Fabricación de otros tipos de equipo de transporte n.c.p."]
[null,null,null,null,null,null,null,null,"INDIRECTO(\"Hoja1!$P\" & COINCIDIR(Hoja1!B30,codDEP2,0) & \":B\" & BUSCAR(2,1/(codDEP2=Hoja1!B30),FILA(codDEP2)))"]
[{"$f":"IFERROR(INDEX(Hoja3!A1:B6,MATCH('OTRAS INDUSTRIAS'!E5,detaact,0),1),\"\")","v":2},{"$f":"INDEX(CODPROV2,MAX((codDEP2=A32)*(NOMPROV='OTRAS INDUSTRIAS'!E6)*ROW(CODPROV2)))","v":0},{"$f":"INDEX(dis_cod_dis,MAX((dis_cod_dep=A32)*(dis_cod_pro=B32)*(dis_nom_dis=[2]INF_GENERAL!C52)*ROW(dis_cod_dis)))","v":4},{"$f":"IFERROR(MATCH(A32&B32,dis_cod_dep&dis_cod_pro,0),\"\")","v":""},{"$f":"MAX((dis_cod_dep=A32)*(dis_cod_pro=B32)*ROW(dis_cod_pro))","v":0},null,"Validaciones"]
[{"$f":"IFERROR(INDEX([2]DEPARTAMENTO!#REF!,MATCH([2]INF_GENERAL!A53,dep_nom_dep,0),1),\"\")","v":""},null,null,null,null,null,"Columna B","dep_nom_dep"]
[{"$f":"IFERROR(INDEX([2]DEPARTAMENTO!#REF!,MATCH([2]INF_GENERAL!A54,dep_nom_dep,0),1),\"\")","v":""},null,null,null,null,null,"Columna C","provincia","INDIRECTO(\"PROVINCIA!$C\" & COINCIDIR(UBIG!C2,pro_cod_dep,0) & \":C\" & BUSCAR(2,1/(pro_cod_dep=UBIG!C2),FILA(pro_cod_dep)))"]
[{"$f":"IFERROR(INDEX([2]DEPARTAMENTO!#REF!,MATCH([2]INF_GENERAL!A55,dep_nom_dep,0),1),\"\")","v":""},null,null,null,null,null,"Columna D","distrito","INDIRECTO(\"DISTRITO!$D\" & G2 & \":D\" & H2)"]
[{"$f":"IFERROR(INDEX([2]DEPARTAMENTO!#REF!,MATCH([2]INF_GENERAL!A56,dep_nom_dep,0),1),\"\")","v":""}]
[{"$f":"IFERROR(INDEX([2]DEPARTAMENTO!#REF!,MATCH([2]INF_GENERAL!A57,dep_nom_dep,0),1),\"\")","v":""},null,null,null,null,null,"Nombre","hoja","col"]
[{"$f":"IFERROR(INDEX([2]DEPARTAMENTO!#REF!,MATCH([2]INF_GENERAL!B60,dep_nom_dep,0),1),\"\")","v":""},null,null,null,null,null,"dep_cod_cep","Departamento","Cod Departamento",null,"CODACT"]
[null,null,null,null,null,null,"dep_nom_dep","Departamento","nombre Departamento",null,"detaact"]
[null,null,null,null,null,null,"pro_cod_dep","Provincia","Cod Departamento",null,"codDEP2"]
[null,null,null,null,null,null,"pro_cod_pro","Provincia","Cod Provincia",null,"CODPROV2"]
[null,null,null,null,null,null,"pro_nom_pro","Provincia","Nombre Provincia",null,"NOMPROV"]
[null,null,null,null,null,null,"dis_cod_dep","Distrito","Cod Departamento"]
[null,null,null,null,null,null,"dis_cod_pro","Distrito","Cod Provincia"]
[null,null,null,null,null,null,"dis_cod_dis","Distrito","Cod Distrito"]
[null,null,null,null,null,null,"dis_nom_dis","Distrito","Nombre Distrito"]

{"sheet":"data_ciiu","index":26,"n_rows":67,"n_cols":5,"rows_kept":67,"cut":false,"hidden":false,"merged":[]}
["grupo","idact","detalle_grupo",null,"detalleciiu"]
["PRODUCCIÓN DE MADERA Y FABRICACIÓN DE PRODUCTOS DE MADERA Y CORCHO, EXCEPTO MUEBLES; FABRICACIÓN DE ARTÍCULOS DE PAJA Y DE MATERIALES TRENZABLES",1,"PRODUCCIÓN DE MADERA Y FABRICACIÓN DE PRODUCTOS DE MADERA Y CORCHO, EXCEPTO MUEBLES; FABRICACIÓN DE ARTÍCULOS DE PAJA Y DE MATERIALES TRENZABLES",1,"1621 - Fabricación de hojas de madera para enchapado y tableros a base de madera"]
["INDUSTRIA DE PRODUCTOS DE CAUCHO Y DE PLÁSTICO",1,"PRODUCCIÓN DE MADERA Y FABRICACIÓN DE PRODUCTOS DE MADERA Y CORCHO, EXCEPTO MUEBLES; FABRICACIÓN DE ARTÍCULOS DE PAJA Y DE MATERIALES TRENZABLES",2,"1622 - Fabricación de partes y piezas de carpintería para edificios y construcciones"]
["INDUSTRIA DE PRODUCTOS DE INFORMÁTICA Y EQUIPOS ELECTRÓNICOS",1,"PRODUCCIÓN DE MADERA Y FABRICACIÓN DE PRODUCTOS DE MADERA Y CORCHO, EXCEPTO MUEBLES; FABRICACIÓN DE ARTÍCULOS DE PAJA Y DE MATERIALES TRENZABLES",3,"1623 - Fabricación de recipientes de madera"]
["FABRICACIÓN DE MAQUINARIA Y EQUIPOS N.C.P., VEHÍCULOS AUTOMOTORES, REMOLQUES Y SEMIRREMOLQUES, OTROS EQUIPOS DE TRANSPORTE",1,"PRODUCCIÓN DE MADERA Y FABRICACIÓN DE PRODUCTOS DE MADERA Y CORCHO, EXCEPTO MUEBLES; FABRICACIÓN DE ARTÍCULOS DE PAJA Y DE MATERIALES TRENZABLES",4,"1629 - Fabricación de otros productos de madera; fabricación de artículos de corcho, paja y materiales trenzables"]
["FABRICACIÓN DE MUEBLES, REPARACIÓN E INSTALACIÓN DE MAQUINARIA Y/O EQUIPOS Y OTRAS INDUSTRIAS MANUFACTURERAS",2,"INDUSTRIA DE PRODUCTOS DE CAUCHO Y DE PLÁSTICO",1,"2211 - Fabricación de cubiertas y cámaras de caucho; recauchutado y renovación de cubiertas de caucho"]
[null,2,"INDUSTRIA DE PRODUCTOS DE CAUCHO Y DE PLÁSTICO",2,"2219 - Fabricación de otros productos de caucho"]
[null,2,"INDUSTRIA DE PRODUCTOS DE CAUCHO Y DE PLÁSTICO",3,"2220 - Fabricación de productos de plástico"]
[null,3,"INDUSTRIA DE PRODUCTOS DE INFORMÁTICA Y EQUIPOS ELECTRÓNICOS",1,"2620 - Fabricación de ordenadores y equipo periférico"]
[null,3,"INDUSTRIA DE PRODUCTOS DE INFORMÁTICA Y EQUIPOS ELECTRÓNICOS",2,"2651 -  Fabricación de equipo de medición, prueba, navegación y control"]
[null,3,"INDUSTRIA DE PRODUCTOS DE INFORMÁTICA Y EQUIPOS ELECTRÓNICOS",3,"2652  - Fabricación de relojes"]
[null,3,"INDUSTRIA DE PRODUCTOS DE INFORMÁTICA Y EQUIPOS ELECTRÓNICOS",4,"2670 - Fabricación de instrumentos ópticos y equipo fotográfico"]
[null,3,"INDUSTRIA DE PRODUCTOS DE INFORMÁTICA Y EQUIPOS ELECTRÓNICOS",5,"2680 - Fabricación de soportes magnéticos y ópticos"]
[null,3,"INDUSTRIA DE PRODUCTOS DE INFORMÁTICA Y EQUIPOS ELECTRÓNICOS",6,"2720 - Fabricación de pilas, baterías y acumuladores"]
[null,3,"INDUSTRIA DE PRODUCTOS DE INFORMÁTICA Y EQUIPOS ELECTRÓNICOS",7,"2731 - Fabricación de cables de fibra óptica"]
[null,3,"INDUSTRIA DE PRODUCTOS DE INFORMÁTICA Y EQUIPOS ELECTRÓNICOS",8,"2732 - Fabricación de otros hilos y cables eléctricos"]
[null,3,"INDUSTRIA DE PRODUCTOS DE INFORMÁTICA Y EQUIPOS ELECTRÓNICOS",9,"2740 - Fabricación de equipo eléctrico de iluminación"]
[null,3,"INDUSTRIA DE PRODUCTOS DE INFORMÁTICA Y EQUIPOS ELECTRÓNICOS",10,"2790 - Fabricación de otros tipos de equipo eléctrico"]
[null,3,"INDUSTRIA DE PRODUCTOS DE INFORMÁTICA Y EQUIPOS ELECTRÓNICOS",11,"2610 - Fabricación de componentes y tableros electrónicos"]
[null,3,"INDUSTRIA DE PRODUCTOS DE INFORMÁTICA Y EQUIPOS ELECTRÓNICOS",12,"2630 - Fabricación de equipo de comunicaciones"]
[null,3,"INDUSTRIA DE PRODUCTOS DE INFORMÁTICA Y EQUIPOS ELECTRÓNICOS",13,"2640 - Fabricación de aparatos electrónicos de consumo"]
[null,3,"INDUSTRIA DE PRODUCTOS DE INFORMÁTICA Y EQUIPOS ELECTRÓNICOS",14,"2660 - Fabricación de equipo de irradiación y equipo electrónico de uso médico y terapéutico"]
[null,3,"INDUSTRIA DE PRODUCTOS DE INFORMÁTICA Y EQUIPOS ELECTRÓNICOS",15,"2710 - Fabricación de motores, generadores y transformadores eléctricos y aparatos de\ndistribución y control de la energía eléctrica"]
[null,3,"INDUSTRIA DE PRODUCTOS DE INFORMÁTICA Y EQUIPOS ELECTRÓNICOS",16,"2733  - Fabricación de dispositivos de cableado\n"]
[null,3,"INDUSTRIA DE PRODUCTOS DE INFORMÁTICA Y EQUIPOS ELECTRÓNICOS",17,"2750 - Fabricación de aparatos de uso doméstico"]
[null,4,"FABRICACIÓN DE MAQUINARIA Y EQUIPOS N.C.P., VEHÍCULOS AUTOMOTORES, REMOLQUES Y SEMIRREMOLQUES, OTROS EQUIPOS DE TRANSPORTE",1,"2811 - Fabricación de motores y turbinas, excepto motores para aeronaves, vehículos automotores y motocicletas"]
[null,4,"FABRICACIÓN DE MAQUINARIA Y EQUIPOS N.C.P., VEHÍCULOS AUTOMOTORES, REMOLQUES Y SEMIRREMOLQUES, OTROS EQUIPOS DE TRANSPORTE",2,"2812 - Fabricación de equipo de propulsión de fluidos"]
[null,4,"FABRICACIÓN DE MAQUINARIA Y EQUIPOS N.C.P., VEHÍCULOS AUTOMOTORES, REMOLQUES Y SEMIRREMOLQUES, OTROS EQUIPOS DE TRANSPORTE",3,"2813 - Fabricación de otras bombas, compresores, grifos y válvulas"]
[null,4,"FABRICACIÓN DE MAQUINARIA Y EQUIPOS N.C.P., VEHÍCULOS AUTOMOTORES, REMOLQUES Y SEMIRREMOLQUES, OTROS EQUIPOS DE TRANSPORTE",4,"2814 - Fabricación de cojinetes, engranajes, trenes de engranajes y piezas de transmisión"]
[null,4,"FABRICACIÓN DE MAQUINARIA Y EQUIPOS N.C.P., VEHÍCULOS AUTOMOTORES, REMOLQUES Y SEMIRREMOLQUES, OTROS EQUIPOS DE TRANSPORTE",5,"2815 - Fabricación de hornos, hogares y quemadores "]
[null,4,"FABRICACIÓN DE MAQUINARIA Y EQUIPOS N.C.P., VEHÍCULOS AUTOMOTORES, REMOLQUES Y SEMIRREMOLQUES, OTROS EQUIPOS DE TRANSPORTE",6,"2816  - Fabricación de equipo de elevación y manipulación"]
[null,4,"FABRICACIÓN DE MAQUINARIA Y EQUIPOS N.C.P., VEHÍCULOS AUTOMOTORES, REMOLQUES Y SEMIRREMOLQUES, OTROS EQUIPOS DE TRANSPORTE",7,"2817 - Fabricación de maquinaria y equipo de oficina (excepto ordenadores y equipo periférico)"]
[null,4,"FABRICACIÓN DE MAQUINARIA Y EQUIPOS N.C.P., VEHÍCULOS AUTOMOTORES, REMOLQUES Y SEMIRREMOLQUES, OTROS EQUIPOS DE TRANSPORTE",8,"2818 - Fabricación de herramientas de mano motorizadas"]
[null,4,"FABRICACIÓN DE MAQUINARIA Y EQUIPOS N.C.P., VEHÍCULOS AUTOMOTORES, REMOLQUES Y SEMIRREMOLQUES, OTROS EQUIPOS DE TRANSPORTE",9,"2819 -  Fabricación de otros tipos de maquinaria de uso general"]
[null,4,"FABRICACIÓN DE MAQUINARIA Y EQUIPOS N.C.P., VEHÍCULOS AUTOMOTORES, REMOLQUES Y SEMIRREMOLQUES, OTROS EQUIPOS DE TRANSPORTE",10,"2821  - Fabricación de maquinaria agropecuaria y forestal"]
[null,4,"FABRICACIÓN DE MAQUINARIA Y EQUIPOS N.C.P., VEHÍCULOS AUTOMOTORES, REMOLQUES Y SEMIRREMOLQUES, OTROS EQUIPOS DE TRANSPORTE",11,"2822 - Fabricación de maquinaria para la conformación de metales y de máquinas herramienta"]
[null,4,"FABRICACIÓN DE MAQUINARIA Y EQUIPOS N.C.P., VEHÍCULOS AUTOMOTORES, REMOLQUES Y SEMIRREMOLQUES, OTROS EQUIPOS DE TRANSPORTE",12,"2823 - Fabricación de maquinaria metalúrgica"]
[null,4,"FABRICACIÓN DE MAQUINARIA Y EQUIPOS N.C.P., VEHÍCULOS AUTOMOTORES, REMOLQUES Y SEMIRREMOLQUES, OTROS EQUIPOS DE TRANSPORTE",13,"2824 - Fabricación de maquinaria para la explotación de minas y canteras y para obras de construcción"]
[null,4,"FABRICACIÓN DE MAQUINARIA Y EQUIPOS N.C.P., VEHÍCULOS AUTOMOTORES, REMOLQUES Y SEMIRREMOLQUES, OTROS EQUIPOS DE TRANSPORTE",14,"2825 - Fabricación de maquinaria para la elaboración de alimentos, bebidas y tabaco"]
[null,4,"FABRICACIÓN DE MAQUINARIA Y EQUIPOS N.C.P., VEHÍCULOS AUTOMOTORES, REMOLQUES Y SEMIRREMOLQUES, OTROS EQUIPOS DE TRANSPORTE",15,"2826 - Fabricación de maquinaria para la elaboración de productos textiles, prendas de vestir y cueros"]
[null,4,"FABRICACIÓN DE MAQUINARIA Y EQUIPOS N.C.P., VEHÍCULOS AUTOMOTORES, REMOLQUES Y SEMIRREMOLQUES, OTROS EQUIPOS DE TRANSPORTE",16,"2829 - Fabricación de otros tipos de maquinaria de uso especial "]
[null,4,"FABRICACIÓN DE MAQUINARIA Y EQUIPOS N.C.P., VEHÍCULOS AUTOMOTORES, REMOLQUES Y SEMIRREMOLQUES, OTROS EQUIPOS DE TRANSPORTE",17,"2910 - Fabricación de vehículos automotores"]
[null,4,"FABRICACIÓN DE MAQUINARIA Y EQUIPOS N.C.P., VEHÍCULOS AUTOMOTORES, REMOLQUES Y SEMIRREMOLQUES, OTROS EQUIPOS DE TRANSPORTE",18,"2920 - Fabricación de carrocerías para vehículos automotores; fabricación de remolques y semirremolques"]
[null,4,"FABRICACIÓN DE MAQUINARIA Y EQUIPOS N.C.P., VEHÍCULOS AUTOMOTORES, REMOLQUES Y SEMIRREMOLQUES, OTROS EQUIPOS DE TRANSPORTE",19," 2930 - Fabricación de partes, piezas y accesorios para vehículos de automotores "]
[null,4,"FABRICACIÓN DE MAQUINARIA Y EQUIPOS N.C.P., VEHÍCULOS AUTOMOTORES, REMOLQUES Y SEMIRREMOLQUES, OTROS EQUIPOS DE TRANSPORTE",20,"3011 - Construcción de buques y estructuras flotantes"]
[null,4,"FABRICACIÓN DE MAQUINARIA Y EQUIPOS N.C.P., VEHÍCULOS AUTOMOTORES, REMOLQUES Y SEMIRREMOLQUES, OTROS EQUIPOS DE TRANSPORTE",21,"3012 - Construcción de embarcaciones de recreo y deporte"]
[null,4,"FABRICACIÓN DE MAQUINARIA Y EQUIPOS N.C.P., VEHÍCULOS AUTOMOTORES, REMOLQUES Y SEMIRREMOLQUES, OTROS EQUIPOS DE TRANSPORTE",22,"3020 - Fabricación de locomotoras y material rodante"]
[null,4,"FABRICACIÓN DE MAQUINARIA Y EQUIPOS N.C.P., VEHÍCULOS AUTOMOTORES, REMOLQUES Y SEMIRREMOLQUES, OTROS EQUIPOS DE TRANSPORTE",23,"3030 - Fabricación de aeronaves y naves espaciales y maquinaria conexa"]
[null,4,"FABRICACIÓN DE MAQUINARIA Y EQUIPOS N.C.P., VEHÍCULOS AUTOMOTORES, REMOLQUES Y SEMIRREMOLQUES, OTROS EQUIPOS DE TRANSPORTE",24,"3040 - Fabricación de vehículos militares de combate"]
[null,4,"FABRICACIÓN DE MAQUINARIA Y EQUIPOS N.C.P., VEHÍCULOS AUTOMOTORES, REMOLQUES Y SEMIRREMOLQUES, OTROS EQUIPOS DE TRANSPORTE",25,"3091 - Fabricación de motocicletas"]
[null,4,"FABRICACIÓN DE MAQUINARIA Y EQUIPOS N.C.P., VEHÍCULOS AUTOMOTORES, REMOLQUES Y SEMIRREMOLQUES, OTROS EQUIPOS DE TRANSPORTE",26,"3092 - Fabricación de bicicletas y de sillones de ruedas para inválidos"]
[null,4,"FABRICACIÓN DE MAQUINARIA Y EQUIPOS N.C.P., VEHÍCULOS AUTOMOTORES, REMOLQUES Y SEMIRREMOLQUES, OTROS EQUIPOS DE TRANSPORTE",27,"3099 - Fabricación de otros tipos de equipo de transporte n.c.p."]
[null,5,"FABRICACIÓN DE MUEBLES, REPARACIÓN E INSTALACIÓN DE MAQUINARIA Y/O EQUIPOS Y OTRAS INDUSTRIAS MANUFACTURERAS",1,"3100 - Fabricación de muebles"]
[null,5,"FABRICACIÓN DE MUEBLES, REPARACIÓN E INSTALACIÓN DE MAQUINARIA Y/O EQUIPOS Y OTRAS INDUSTRIAS MANUFACTURERAS",2,"3211 - Fabricación de joyas y artículos conexos"]
[null,5,"FABRICACIÓN DE MUEBLES, REPARACIÓN E INSTALACIÓN DE MAQUINARIA Y/O EQUIPOS Y OTRAS INDUSTRIAS MANUFACTURERAS",3,"3212 - Fabricación de bisutería y artículos conexos"]
[null,5,"FABRICACIÓN DE MUEBLES, REPARACIÓN E INSTALACIÓN DE MAQUINARIA Y/O EQUIPOS Y OTRAS INDUSTRIAS MANUFACTURERAS",4,"3220 - Fabricación de instrumentos de música"]
[null,5,"FABRICACIÓN DE MUEBLES, REPARACIÓN E INSTALACIÓN DE MAQUINARIA Y/O EQUIPOS Y OTRAS INDUSTRIAS MANUFACTURERAS",5,"3230 - Fabricación de artículos de deporte"]
[null,5,"FABRICACIÓN DE MUEBLES, REPARACIÓN E INSTALACIÓN DE MAQUINARIA Y/O EQUIPOS Y OTRAS INDUSTRIAS MANUFACTURERAS",6,"3240 - Fabricación de juegos y juguetes"]
[null,5,"FABRICACIÓN DE MUEBLES, REPARACIÓN E INSTALACIÓN DE MAQUINARIA Y/O EQUIPOS Y OTRAS INDUSTRIAS MANUFACTURERAS",7,"3250 - Fabricación de instrumentos y materiales médicos y odontológicos"]
[null,5,"FABRICACIÓN DE MUEBLES, REPARACIÓN E INSTALACIÓN DE MAQUINARIA Y/O EQUIPOS Y OTRAS INDUSTRIAS MANUFACTURERAS",8,"3290 - Otras industrias manufactureras n.c.p. "]
[null,5,"FABRICACIÓN DE MUEBLES, REPARACIÓN E INSTALACIÓN DE MAQUINARIA Y/O EQUIPOS Y OTRAS INDUSTRIAS MANUFACTURERAS",9,"3311 – Reparación de productos elaborados de metal"]
[null,5,"FABRICACIÓN DE MUEBLES, REPARACIÓN E INSTALACIÓN DE MAQUINARIA Y/O EQUIPOS Y OTRAS INDUSTRIAS MANUFACTURERAS",10,"3312 - Reparación de maquinaria"]
[null,5,"FABRICACIÓN DE MUEBLES, REPARACIÓN E INSTALACIÓN DE MAQUINARIA Y/O EQUIPOS Y OTRAS INDUSTRIAS MANUFACTURERAS",11,"3313 - Reparación de equipo electrónico y óptico"]
[null,5,"FABRICACIÓN DE MUEBLES, REPARACIÓN E INSTALACIÓN DE MAQUINARIA Y/O EQUIPOS Y OTRAS INDUSTRIAS MANUFACTURERAS",12,"3314 - Reparación de equipo eléctrico"]
[null,5,"FABRICACIÓN DE MUEBLES, REPARACIÓN E INSTALACIÓN DE MAQUINARIA Y/O EQUIPOS Y OTRAS INDUSTRIAS MANUFACTURERAS",13,"3319 - Reparación de otros tipos de equipo"]
[null,5,"FABRICACIÓN DE MUEBLES, REPARACIÓN E INSTALACIÓN DE MAQUINARIA Y/O EQUIPOS Y OTRAS INDUSTRIAS MANUFACTURERAS",14,"3320 - Instalación de maquinaria y equipo industriales"]
[null,5,"FABRICACIÓN DE MUEBLES, REPARACIÓN E INSTALACIÓN DE MAQUINARIA Y/O EQUIPOS Y OTRAS INDUSTRIAS MANUFACTURERAS",15,"3315 - Reparación de equipo de transporte, excepto vehículos automotores"]